{"text_format":"2","workbook":"xlsx","n_sheets":15,"sheets":["附件1人民医院报名表","附件2东华报名表","附件3美年报名表","附件4福华报名表","附件5宏元报名表","附件6人民医院套餐","附件6人民医院自选项目","附件7东华套餐","附件7东华自选项目","附件8美年套餐","附件8美年自选项目","附件9福华套餐","附件9福华自选项目","附件10宏元套餐","附件10宏元自选项目"],"not_rendered":{"charts":0,"images":0,"macros":0,"external_links":0,"defined_names":0,"comments":1,"pivot_tables":0},"unopened":[],"bounds":{"document_bytes":16777216,"sheet_cells":100000,"run_cost":"one","rows_first":2000,"rows_last":500,"rows_between":2000,"halvings":0,"cell_chars":16384,"cell_head_chars":4096},"cells_cut":0,"cells_raw":0,"read":"whole","date_system":"1900"}

{"sheet":"附件1人民医院报名表","index":0,"n_rows":36,"n_cols":10,"rows_kept":36,"cut":false,"hidden":false,"merged":[[0,0,0,3],[1,0,1,9],[3,0,3,3],[25,0,25,9],[26,0,26,9],[27,0,27,9],[35,0,35,9]]}
["附件1"]
["               律师所律师参加市人民医院体检报名表"]
[]
["填报单位（盖章）： _____________________________ "]
["序号","姓 名","性别","身份证号","女婚否","手机号码","选择的体检套餐","体检地点    （总院万江区请打“√”）","体检地点    （普济院区请打“√”）","备 注"]
[1," "]
[2]
[3]
[4,null,null," "]
[5]
[6]
[7]
[8]
[9]
[10]
[11]
[12]
[13]
[14]
[15]
[16]
[17]
[18]
[19]
[20]
["注：供选择的3种体检套餐：男律师、女律师（未婚）、女律师（已婚）。"]
["参加体检共____人，其中男律师____人、女律师____人。"]
["     填表人：                                联系电话："]
{"$rows_empty":7}
["—7—"]

{"sheet":"附件2东华报名表","index":1,"n_rows":31,"n_cols":7,"rows_kept":31,"cut":false,"hidden":false,"merged":[[0,0,0,3],[1,0,1,6],[3,0,3,3],[25,0,25,6],[26,0,26,6],[27,0,27,6],[28,0,28,6],[30,0,30,6]]}
["附件2"]
["               律师所律师参加东华医院体检报名表"]
[]
["填报单位（盖章）： _____________________________ "]
["序号","姓 名","性别","出生年月日","婚否","选择的体检套餐","备 注"]
[1," ",null," "]
[2]
[3]
[4,null,null," "]
[5]
[6]
[7]
[8]
[9]
[10]
[11]
[12]
[13]
[14]
[15]
[16]
[17]
[18]
[19]
[20]
["注：供选择的6种体检套餐：男性A、男性B，未婚女性A、未婚女性B，已婚女性A、已婚女性B。"]
["参加体检共____人，其中男律师____人、女律师____人。"]
["填表人：                                联系电话："]
["律师所地址："]
[]
["—8—"]

{"sheet":"附件3美年报名表","index":2,"n_rows":35,"n_cols":10,"rows_kept":35,"cut":false,"hidden":false,"merged":[[0,0,0,3],[1,0,1,9],[3,0,3,3],[25,0,25,9],[26,0,26,9],[27,0,27,9],[34,0,34,9]]}
["附件3"]
["               律师所律师参加美年健康体检中心体检报名表"]
[]
["填报单位（盖章）： _____________________________ "]
["序号","姓 名","性别","出生年月日","身份证号","婚否","选择的体检套餐","体检地点    （南城分院请打“√”）","体检地点    （松山湖分院请打“√”）","备 注"]
[1," ",null," "]
[2]
[3]
[4,null,null," "]
[5]
[6]
[7]
[8]
[9]
[10]
[11]
[12]
[13]
[14]
[15]
[16]
[17]
[18]
[19]
[20]
["供选择的3种体检套餐：男仕、未婚女仕、已婚女仕。"]
["参加体检共____人，其中男律师____人、女律师____人。"]
["填表人：                                    联系电话："]
[]
[]
[]
[]
[]
[]
["—9—"]

{"sheet":"附件4福华报名表","index":3,"n_rows":37,"n_cols":10,"rows_kept":37,"cut":false,"hidden":false,"merged":[[0,0,0,3],[1,0,1,9],[3,0,3,3],[25,0,25,9],[26,0,26,9],[27,0,27,9],[36,0,36,9]]}
["附件4"]
["               律师所律师参加福华健康管理中心体检报名表"]
[]
["填报单位（盖章）： _____________________________ "]
["序号","姓 名","性别","出生年月日","婚否","选择的体检套餐","体检地点    （东城卡布斯店请打“√”）","体检地点    （南城丰泰店请打“√”）","体检地点    （东城新世界店请打“√”）","备 注"]
[1," ",null," "]
[2]
[3]
[4,null,null," "]
[5]
[6]
[7]
[8]
[9]
[10]
[11]
[12]
[13]
[14]
[15]
[16]
[17]
[18]
[19]
[20]
["供选择的3种体检套餐：男性、未婚女性、已婚女性。"]
["参加体检共____人，其中男律师____人、女律师____人。"]
["填表人：                                    联系电话："]
{"$rows_empty":8}
["—10—"]

{"sheet":"附件5宏元报名表","index":4,"n_rows":33,"n_cols":8,"rows_kept":33,"cut":false,"hidden":false,"merged":[[0,0,0,3],[1,0,1,7],[3,0,3,3],[25,0,25,7],[26,0,26,7],[27,0,27,7],[32,0,32,7]]}
["附件5"]
["               律师所律师参加宏元中医医院体检报名表"]
[]
["填报单位（盖章）： _____________________________ "]
["序号","姓 名","性别","出生年月日","手机号码","婚否","选择的体检套餐","备 注"]
[1," ",null," "]
[2]
[3]
[4,null,null," "]
[5]
[6]
[7]
[8]
[9]
[10]
[11]
[12]
[13]
[14]
[15]
[16]
[17]
[18]
[19]
[20]
["供选择的3种体检套餐：女性（已婚）、女性（未婚）、男性。"]
["参加体检共____人，其中男律师____人、女律师____人。"]
["填表人：                                    联系电话："]
[]
[]
[]
[]
["—11—"]

{"sheet":"附件6人民医院套餐","index":5,"n_rows":129,"n_cols":5,"rows_kept":129,"cut":false,"hidden":false,"merged":[[0,0,0,4],[2,0,2,4],[29,0,29,4],[30,0,30,4],[60,0,60,4],[62,0,62,4],[91,0,91,4],[92,0,92,4],[93,0,93,4],[94,0,94,4],[95,0,95,4],[98,0,98,4],[99,0,99,4],[101,0,101,4],[102,0,102,4],[103,0,103,4],[104,0,104,4],[128,0,128,4],[96,0,97,4]]}
["附件6"]
[]
["2018年东莞市人民医院男律师体检套餐"]
["项目类型","项目编号","项目名称","临床意义及目的","优惠价"]
["        专科检查","0201","内科","对心、肺、腹部脏器、体重、淋巴结、五官进行初步了解，便于作健康状况总体评估",0]
[null,"ZH8433","血压","对心、肺、腹部脏器、体重、淋巴结、五官进行初步了解，便于作健康状况总体评估",0]
[null,"ZH100409","身高体重(男)","对心、肺、腹部脏器、体重、淋巴结、五官进行初步了解，便于作健康状况总体评估",0]
[null,"ZH7691","男外科","对心、肺、腹部脏器、体重、淋巴结、五官进行初步了解，便于作健康状况总体评估",0]
[null,"ZH7693","耳鼻喉科(合并专科)","对心、肺、腹部脏器、体重、淋巴结、五官进行初步了解，便于作健康状况总体评估",0]
[null,"ZH8605","眼科检查(合并专科)","对心、肺、腹部脏器、体重、淋巴结、五官进行初步了解，便于作健康状况总体评估",0]
["        血液检查","06PA","肝功四项","协助了解肝脏功能及心脏功能等",22]
[null,"06QA","肾功三项","可提示：嘌呤代谢有无异常如高尿酸血症、痛风及肾脏功能损害\t\n",16]
[null,"06AS","血清总胆固醇测定","脂肪肝，胆管炎，胆囊炎，药物中毒性肝炎，酒精性肝炎和黄疸等\t\n",5]
[null,"06AR","血清甘油三酯测定","与近期饮食关系密切，对冠心病、高脂血症、动脉粥样硬化症，甲状腺功能异常、肾病综合征等疾病具有参考意义。",5]
[null,"1377","EB病毒抗体测定","早期筛查鼻咽癌的相关因素",20]
[null,"1931","全血细胞分析(22项)"," 可提示：小细胞性贫血，巨幼细胞贫血，恶性贫血，再生障碍性贫血，溶血性贫血，白血病，粒细胞减少，血小板减少，淋巴细胞减少，感染等\t\n\n",20]
[null,"4916","AFP定量(化学发光法)","通过检测的甲胎蛋白数值，来用于原发性肝细胞癌筛查早期诊断疗效评价和复发判断。",62]
["        尿液检查","1958","尿常规","了解泌尿系疾病、以及一些内分泌、代谢性、出血性、中毒性疾病的信息",10]
["        B超检查","2313","肝、胆、脾、胰彩超（不含图文报告）","检查腹部器官肝、胆、脾、胰、系统协助诊断相应器官疾病",110]
["        心脏及心血管检查","1101","心电图"," 用于心律失常（如早搏、传导障碍等）、心肌缺血、心肌梗塞、心房、心室肥大等诊断\t\n\n\n",26]
["        X光检查","6210","DR胸部正位","辅助诊断肺结核、肺炎、肺癌等方面的疾病",58]
["        工本材料","ZH7728","抽血费",null,4]
[null,"ZH7729","抽血针头",null,0.31]
[null,"ZH7730","试管1",null,3.3]
[null,"ZH7745","健康咨询",null,5]
[null,"ZH7746","建立健康档案",null,5]
[null,"ZH7747","一般健康体检",null,25]
["        合计：",null,null,null,396.61]
[]
["—12—"]
["2018年东莞市人民医院女律师体检套餐（已婚女性）"]
["项目类型","项目编号","项目名称","临床意义及目的","优惠价"]
["        专科检查","0201","内科","对心、肺、腹部脏器、体重、淋巴结、五官进行初步了解，便于作健康状况总体评估",0]
[null,"ZH8433","血压","对心、肺、腹部脏器、体重、淋巴结、五官进行初步了解，便于作健康状况总体评估",0]
[null,"ZH100411","身高体重(女)","对心、肺、腹部脏器、体重、淋巴结、五官进行初步了解，便于作健康状况总体评估",0]
[null,"ZH7692","女外科","对心、肺、腹部脏器、体重、淋巴结、五官进行初步了解，便于作健康状况总体评估",0]
[null,"0911","妇检(合并专科)","对心、肺、腹部脏器、体重、淋巴结、五官进行初步了解，便于作健康状况总体评估",0]
[null,"ZH7693","耳鼻喉科(合并专科)","对心、肺、腹部脏器、体重、淋巴结、五官进行初步了解，便于作健康状况总体评估",0]
[null,"ZH8605","眼科检查(合并专科)","对心、肺、腹部脏器、体重、淋巴结、五官进行初步了解，便于作健康状况总体评估",0]
["        血液检查","0634","血清谷丙氨酸氨基转移酶测定","为评判肝功能的一项指标，对急慢性肝炎、肝硬化、酒精性肝病、脂肪肝等疾病具有参考意义。\n",5]
[null,"06AP","血清天门冬氨酸氨基转移酶测定","为评判肝功能的一项指标，对急慢性肝炎、酒精性肝病、脂肪肝、肝硬化、急性心肌梗死等疾病具有参考意义。",5]
[null,"0679","血清γ-谷氨酰基转移酶测定",null,5]
[null,"06QA","肾功三项","可提示：嘌呤代谢有无异常如高尿酸血症、痛风及肾脏功能损害\t\n",16]
[null,"06AS","血清总胆固醇测定","脂肪肝，胆管炎，胆囊炎，药物中毒性肝炎，酒精性肝炎和黄疸等\t\n",5]
[null,"06AR","血清甘油三酯测定","与近期饮食关系密切，对冠心病、高脂血症、动脉粥样硬化症，甲状腺功能异常、肾病综合征等疾病具有参考意义。",5]
[null,"1377","EB病毒抗体测定","早期筛查鼻咽癌的相关因素",20]
[null,"1931","全血细胞分析(22项)"," 可提示：小细胞性贫血，巨幼细胞贫血，恶性贫血，再生障碍性贫血，溶血性贫血，白血病，粒细胞减少，血小板减少，淋巴细胞减少，感染等\t\n\n",20]
[null,"4917","CEA定量(化学发光法)","增高常见于结肠癌、直肠癌等。",62]
["        尿液检查","1958","尿常规","了解泌尿系疾病、以及一些内分泌、代谢性、出血性、中毒性疾病的信息",10]
["        B超检查","2313","肝、胆、脾、胰彩超（不含图文报告）","检查腹部器官肝、胆、脾、胰、系统协助诊断相应器官疾病",110]
["        心脏及心血管检查","1101","心电图"," 用于心律失常（如早搏、传导障碍等）、心肌缺血、心肌梗塞、心房、心室肥大等诊断\t\n\n\n",26]
["        X光检查","6210","DR胸部正位","辅助诊断肺结核、肺炎、肺癌等方面的疾病",58]
["        妇科检查","1929","阴道分泌物常规","用于检查阴道内有无滴虫、念珠菌，同时还可确定阴道清洁度",9]
["        工本材料","ZH7728","抽血费",null,4]
[null,"ZH7729","抽血针头",null,0.31]
[null,"ZH7730","试管1",null,4.4]
[null,"ZH7745","健康咨询",null,5]
[null,"ZH7746","建立健康档案",null,5]
[null,"ZH7747","一般健康体检",null,25]
["        合计：",null,null,null,399.71]
["—13—"]
[]
["2018年东莞市人民医院女律师体检套餐（未婚女性）"]
["项目类型","项目编号","项目名称","临床意义及目的","优惠价"]
["        专科检查","0201","内科","对心、肺、腹部脏器、体重、淋巴结、五官进行初步了解，便于作健康状况总体评估",0]
[null,"ZH8433","血压","对心、肺、腹部脏器、体重、淋巴结、五官进行初步了解，便于作健康状况总体评估",0]
[null,"ZH100411","身高体重(女)","对心、肺、腹部脏器、体重、淋巴结、五官进行初步了解，便于作健康状况总体评估",0]
[null,"ZH7692","女外科","对心、肺、腹部脏器、体重、淋巴结、五官进行初步了解，便于作健康状况总体评估",0]
[null,"ZH7693","耳鼻喉科(合并专科)","对心、肺、腹部脏器、体重、淋巴结、五官进行初步了解，便于作健康状况总体评估",0]
[null,"ZH8605","眼科检查(合并专科)","对心、肺、腹部脏器、体重、淋巴结、五官进行初步了解，便于作健康状况总体评估",0]
["        血液检查","06PA","肝功四项","协助了解肝脏功能及心脏功能等",22]
[null,"06QA","肾功三项","可提示：嘌呤代谢有无异常如高尿酸血症、痛风及肾脏功能损害\t\n",16]
[null,"06AS","血清总胆固醇测定","脂肪肝，胆管炎，胆囊炎，药物中毒性肝炎，酒精性肝炎和黄疸等\t\n",5]
[null,"06AR","血清甘油三酯测定","与近期饮食关系密切，对冠心病、高脂血症、动脉粥样硬化症，甲状腺功能异常、肾病综合征等疾病具有参考意义。",5]
[null,"1377","EB病毒抗体测定","早期筛查鼻咽癌的相关因素",20]
[null,"1931","全血细胞分析(22项)"," 可提示：小细胞性贫血，巨幼细胞贫血，恶性贫血，再生障碍性贫血，溶血性贫血，白血病，粒细胞减少，血小板减少，淋巴细胞减少，感染等\t\n\n",20]
[null,"4917","CEA定量(化学发光法)","增高常见于结肠癌、直肠癌等。",62]
["        尿液检查","1958","尿常规","了解泌尿系疾病、以及一些内分泌、代谢性、出血性、中毒性疾病的信息",10]
["        B超检查","2313","肝、胆、脾、胰彩超（不含图文报告）","检查腹部器官肝、胆、脾、胰、系统协助诊断相应器官疾病",110]
["        心脏及心血管检查","1101","心电图"," 用于心律失常（如早搏、传导障碍等）、心肌缺血、心肌梗塞、心房、心室肥大等诊断\t\n\n\n",26]
["        X光检查","6210","DR胸部正位","辅助诊断肺结核、肺炎、肺癌等方面的疾病",58]
["        工本材料","ZH7728","抽血费",null,4]
[null,"ZH7729","抽血针头",null,0.31]
[null,"ZH7730","试管1",null,4.4]
[null,"ZH7745","健康咨询",null,5]
[null,"ZH7746","建立健康档案",null,5]
[null,"ZH7747","一般健康体检",null,25]
["        合计：",null,null,null,397.71]
[]
[]
[]
["—14—"]
["注意事项"]
["1.请按预约的体检日期进行体检。"]
["2.体检前三天请您尽量保持正常清淡饮食和充足的睡眠，不要饮酒、避免剧烈运动。"]
["3.抽血、早上空腹进行检查，抽血后，需按压穿刺点3至5分钟。"]
["4.消化道（肝胆脾胰）B超需空腹进行检查，下午消化道（肝胆脾胰）B超请按照我院提供中餐食谱进行饮食 ，泌尿系统、生殖系统B超需膀胱充盈后才能检查。"]
[]
["5.拟在半年内怀孕的夫妇，怀孕或可能已经怀孕者请勿做X线检查，需查环查孕者需带好身份证前来体检。"]
["6.体检完成后请在体检指引单上填写好联系方式交给体检医务人员。"]
[]
["体检中心联系电话：28636262、13509202630（叶小姐）、E-mail：tjzx22119893@163.com"]
["体检预约电话：22119912、28636199、28636253；微信预约：微信关注“东莞市人民医院”或“就医160”"]
["地址：东莞市万江区新谷涌万道路南3号体检中心大楼"]
["东莞市人民医院健康管理中心2018年6月21日"]
{"$rows_empty":23}
["—15—"]

{"sheet":"附件6人民医院自选项目","index":6,"n_rows":197,"n_cols":5,"rows_kept":197,"cut":false,"hidden":false,"merged":[[0,0,0,4],[29,0,29,4],[57,0,57,4],[85,0,85,4],[117,0,117,4],[147,0,147,4],[149,0,149,4],[151,0,151,4],[152,0,152,4],[153,0,153,4],[154,0,154,4],[157,0,157,4],[158,0,158,4],[160,0,160,4],[161,0,161,4],[162,0,162,4],[163,0,163,4],[196,0,196,4],[2,0,10,0],[11,0,28,0],[30,0,56,0],[58,0,73,0],[74,0,75,0],[76,0,84,0],[86,0,89,0],[90,0,92,0],[93,0,97,0],[98,0,100,0],[101,0,116,0],[118,0,122,0],[123,0,141,0],[142,0,146,0],[2,3,10,3],[155,0,156,4]]}
["2018年东莞市人民医院体检自选项目                                          "]
["项目类型","项目编号","项目名称","临床意义及目的","价格"]
["    专科检查","0201","内科","对心、肺、腹部脏器、体重、淋巴结、五官进行初步了解，便于作健康状况总体评估",0]
[null,"ZH8433","血压","对心、肺、腹部脏器、体重、淋巴结、五官进行初步了解，便于作健康状况总体评估",0]
[null,"ZH100411","身高体重(女)","对心、肺、腹部脏器、体重、淋巴结、五官进行初步了解，便于作健康状况总体评估",0]
[null,"ZH7692","女外科","对心、肺、腹部脏器、体重、淋巴结、五官进行初步了解，便于作健康状况总体评估",0]
[null,"0911","妇检(合并专科)","对心、肺、腹部脏器、体重、淋巴结、五官进行初步了解，便于作健康状况总体评估",0]
[null,"ZH7693","耳鼻喉科(合并专科)","对心、肺、腹部脏器、体重、淋巴结、五官进行初步了解，便于作健康状况总体评估",0]
[null,"ZH101873","电耳镜检查","对心、肺、腹部脏器、体重、淋巴结、五官进行初步了解，便于作健康状况总体评估",7]
[null,"ZH8605","眼科检查(合并专科)","对心、肺、腹部脏器、体重、淋巴结、五官进行初步了解，便于作健康状况总体评估",0]
[null,"0405","裂隙灯检查","对心、肺、腹部脏器、体重、淋巴结、五官进行初步了解，便于作健康状况总体评估",12]
["    血液检查","0607","肝功能十三项","协助了解肝脏功能及心脏功能、胆红素等",81.6]
[null,"0606","肝功能八项","协助了解肝脏功能及心脏功能、胆红素等",52]
[null,"06PA","肝功四项","协助了解肝脏功能及心脏功能等",22]
[null,"06AY","肾功能检查","了解肾脏功能、糖尿病及痛风，可及时指导饮食",80]
[null,"06AZ","电解质检查","了解内环境的稳定性，为许多疾病的诊断依据。",30]
[null,"06AA","肾功九项","了解肾脏功能、糖尿病、痛风及体内电解质是否平衡。",55]
[null,"0698","肾功四项","了解肾脏功能、糖尿病及痛风，可及时指导饮食",25]
[null,"06QA","肾功三项","了解肾脏功能、糖尿病及痛风，可及时指导饮食",16]
[null,"06DA","空腹血糖检查","初步筛查糖尿病，低血糖。",6]
[null,"ZH101748","血脂7项","了解血脂水平与载脂蛋白含量，帮助诊断高脂血症，并对动脉粥样硬化、心脑血管疾病风险估计有一定参考意义",70]
[null,"06BA","血脂系列检查","了解血脂水平与载脂蛋白含量，帮助诊断高脂血症，并对动脉粥样硬化、心脑血管疾病风险估计有一定参考意义",125]
[null,"0612","血脂检查(六项)","帮助诊断高脂血症，并对动脉粥样硬化、心脑血管疾病风险估计有一定参考意义",50]
[null,"0697","血脂四项","帮助诊断高脂血症，并对动脉粥样硬化、心脑血管疾病风险估计有一定参考意义",30]
[null,"06EA","糖化血红蛋白检查","了解最近3个月血糖的水平，辅助诊断糖尿病及判断疗效",80]
[null,"06CA","心肌酶类检查","协助诊断心肌梗死的最佳血清酶，也可对心肌梗死患者的预后估计。",29]
[null,"06AD","风湿三项","包括C-反应蛋白、抗“O”、类风湿因子，C-反应蛋白反映体内炎症程度，判断组织损伤情况，类风湿因子是协助诊断类风湿关节炎和红斑狼疮等疾病，抗“O”判断有无A族溶血性链球菌感染亦对检测风湿病是否活动较有意义。",143]
[null,"1379","类风湿因子测定",null,23]
[null,"ZH723","血清胱抑素C测定","胱抑素C是反映肾脏功能的重要指标，年龄、性别、疾病的病情变化对它影响较小",45]
["—16—"]
["血液检查","ZH2245","同型半胱氨酸测定(Hcy)","血Hcy增高与多种疾病相关，如动脉硬化相关疾病（冠心病、中风、糖尿病等）、静脉栓塞、肾脏疾病等。",55]
[null,"ZH100103","胃蛋白酶原测定","用于萎缩性胃炎诊断，胃癌高风险性筛查。",76]
[null,"06AK","乙肝两对半定量","了解是否感染乙肝病毒及病毒存在状态及是乙肝抗体滴度",135]
[null,"1367","乙肝两对半(自选)","了解是否感染乙肝病毒及病毒存在状态",37.5]
[null,"1369","甲型肝炎抗体测定","检测是否感染甲型肝炎病毒",8]
[null,"1370","丙型肝炎抗体检查","检测是否感染丙型",25]
[null,"1377","EB病毒抗体测定","早期筛查鼻咽癌的相关因素",20]
[null,"13FA","幽门螺旋杆菌抗体","幽门螺旋杆菌是慢性胃炎，消化溃疡的主要病因，也是非贲门胃癌的一个明确致病因子，在普通人中的感染率为35％－87％，在胃炎和胃溃疡患者中的感染率超过90％。",100]
[null,"13AA","肝炎病毒系列检查","了解各种肝炎病毒（甲、乙、丙、丁、戊、庚）感染情况",149]
[null,"13AU","感染性疾病检查","检测丙型肝炎病毒、艾滋病病毒、梅毒螺旋体的感染情况",99]
[null,"ZH8407","梅毒二项(TPPA+TRUST)",null,50]
[null,"ZH1000243","梅毒抗体测定(化学发光法)",null,55]
[null,"1373","人免疫缺陷病毒抗体测定(HIV)","初步筛查艾滋病",39]
[null,"13AZ","贫血三项检查","通过检查红细胞生成的三要素，了解贫血原因分类。",144]
[null,"13OA","鳞状细胞癌抗原(SCC)","对肺鳞癌、子宫颈癌、食道癌及肛门、皮肤、口腔癌等鳞状上皮细胞癌提供实验室依据",100]
[null,"ZH100418","神经元烯醇化酶(NSE)（化学发光法）","用于小细胞肺癌,神经母细胞瘤等诊断",70]
[null,"ZH1000192","25羟维生素D测定(色谱法)","辅助检测骨质疏松",92]
[null,"ZH2247","前列腺特异性抗原套餐","协助诊断前列腺疾病，包括前列腺炎症及前列腺癌的诊断",180]
[null,"ZH1000261","糖类抗原测定CA72－4(化学发光法)","用于胃癌及胃肠疾病鉴别。",130]
[null,"ZH1000343","细胞角蛋白18-3A9片段测定(CYFRA21-1)(化学发光法)","用于非小细胞肺癌筛查",90]
[null,"1931","全血细胞分析(22项)","对诊断各种原因引起的血液病、急性感染或炎症、急性中毒等有参考意义",20]
[null,"1948","血型(ABO+RH)",null,13]
[null,"ZH1000825","凝血四项",null,84]
[null,"1930","地贫四项","初期筛查地中海贫血的有效手段，为指导夫妻孕育下一代提供实验室依据",67]
[null,"1932","G-6-PD+MHb","初期筛查蚕豆病的有效手段，为指导夫妻孕育下一代提供实验室依据。",19]
[null,"2701","乙肝DNA","了解病毒复制及传染性，协助临床治疗。",100]
[null,"4922","男肿瘤标志物系列(化学发光法)","为早期筛查肝癌、前列腺癌、胆囊、胆管癌、胰腺癌、前列腺癌、结肠癌、直肠癌等各种癌症提供诊断依据以及对癌症的治疗及预后评估有较高的价值",344]
["—17—"]
["血液检查","4923","女肿瘤标志物系列(化学发光法)","为早期筛查肝癌、前列腺癌、胆囊、胆管癌、胰腺癌各种消化道癌癌症提供诊断依据以及对癌症的治疗及预后评估有较高的价值",514]
[null,"4916","AFP定量(化学发光法)","通过检测的甲胎蛋白数值，来用于原发性肝细胞癌筛查早期诊断疗效评价和复发判断。",62]
[null,"4917","CEA定量(化学发光法)","增高常见于结肠癌、直肠癌等。",62]
[null,"4918","CA199(化学发光法)","为诊断胆囊、胆管癌、胰腺癌等消化道肿瘤提供实验室依据。",130]
[null,"4919","CA125(化学发光法)","用于辅助判断卵巢癌、胰腺癌、乳腺癌、肝癌、肺癌、胃肠道来源肿瘤、子宫癌均可增高。",130]
[null,"4920","CA153(化学发光法)","乳腺癌、肺癌、卵巢癌、胰腺癌、结直肠癌均可升高，与CEA联合判断可提高诊断符合率。",130]
[null,"4921","前列腺抗原测定(PSA)","用于前列腺癌的鉴别诊断，用于监测前列腺癌的进展与疗效。",90]
[null,"ZH100372","甲状腺功能组合A","筛查甲亢、甲低、桥本甲状腺炎等甲状腺疾病。",284]
[null,"ZH7707","甲状腺系列检查",null,220]
[null,"4905","高血压心血管系列检查","检查与血压相关的内分泌因素，来协助诊断心血管方面疾病。",186]
[null,"4913","糖尿病系列检查(化学发光法)","协助诊断糖尿病以及观察糖尿病治疗效果和衡量糖尿病病人长期的血糖控制情况。",100]
[null,"4909","性激素系列检查","通过雌二醇、睾酮等性激素，了解雌激素、雄激素水平，对部分内分泌疾病及部分妇科、男科疾病提供参考。",302]
[null,"4801","微量元素(全套)","了解体内微量元素的水平，指导科学饮食，均衡营养，减少各种相关疾病的发生。",73]
[null,"ZH1000364","皮肤科变应原筛查(全项)IgE",null,430]
[null,"ZH2225","皮肤科食入物变应原筛查(食物A组)IgG","经常吃身体不耐受的食物会引起慢性疾病，但不耐受的食物不易被发现，此检查目的是筛查出我们经常吃但却不耐受的食物",210]
[null,"ZH1000365","皮肤科食入物变应原筛查(食物B组)IgG",null,210]
["    尿液检查","4907","尿液肾功能系列检查","尿蛋白阳性或有肾脏病者",188]
[null,"1958","尿常规","了解泌尿系疾病、以及一些内分泌、代谢性、出血性、中毒性疾病的信息",10]
["B超检查","2321","腹部彩超(女)×3（不含图文报告）","检查腹部器官肝、胆、脾、胰、肾、泌尿系统协助诊断相应器官疾病，如：脂肪肝、肝硬化、肝囊肿等，协助医生诊断相应器官疾病；检查子宫附件（女），协助诊断卵巢、子宫等相关妇科疾病了解脏器血流情况",330]
[null,"ZH8738","肝、胆、脾、胰、泌尿系统彩超(男)（不含图文报告）","检查腹部器官肝、胆、脾、胰、肾、泌尿系统协助诊断相应器官疾病，如：脂肪肝、肝硬化、肝囊肿、前列腺相关病变，协助医生诊断相应器官疾病；了解脏器血流情况",220]
[null,"2313","肝、胆、脾、胰彩超（不含图文报告）","检查腹部器官肝、胆、脾、胰、系统协助诊断相应器官疾病",110]
[null,"2324","泌尿彩超(男)（不含图文报告）","检查腹部器官肾、泌尿、前列腺系统协助诊断相应器官疾病",110]
[null,"ZH7782","泌尿彩超(女)（不含图文报告）","检查腹部器官肾、泌尿、系统协助诊断相应器官疾病",110]
[null,"2315","双肾及肾血管常规彩超",null,175]
[null,"2333","子宫、附件彩超（不含图文报告）","检查妇科系统子宫、附件等协助诊断相关器官疾病",110]
[null,"2322","肝、胆、门静脉彩超套餐（不含图文报告）",null,165]
[null,"2335","甲状腺及周边淋巴结（彩超）（不含图文报告）","了解甲状腺结构有无异常及占位性病变",110]
["—18—"]
["B超检查","ZH1000564","乳腺彩色B超检查(（不含图文报告）","诊断乳腺增生、肿物、结节、囊肿、腺瘤，主要针对血管及液性包块",110]
[null,"ZH1001140","彩色超声心动图（不含图文报告）",null,252]
[null,"ZH1001141","颈部动脉血管彩超（不含图文报告）",null,245]
[null,"ZH1001142","颈部血管彩超（不含图文报告）",null,325]
["心脏及心血管检查","2330","双下肢血管检查","了解双下肢动、静脉的血管的疾病，如双下肢动脉硬化、血栓形成、静脉瓣功能等",575]
[null,"1101","心电图","检测心脏电生理变化，诊断各种心肌疾病",26]
[null,"ZH2282","无创性动脉硬化检测","了解下肢血管阻塞情况及全身血管硬化情况",75]
["X光检查","6210","DR胸部正位","辅助诊断肺结核、肺炎、肺癌等方面的疾病",58]
[null,"6212","DR胸部正侧位","诊断肺部疾病（如肺结核、肺炎、肺癌等），同时也协助诊断食管、心脏方面的疾病",108]
[null,"6243","DR颈椎正侧位","辅助诊断颈椎方面的疾病。",108]
[null,"ZH622","DR腰椎正侧位","辅助诊断腰椎方面的疾病。",108]
[null,"ZH100891","DR乳腺钼靶CC+MLO（两侧）","40岁以上妇女，有乳腺包块性质未明者或发现早期微腺癌。",289.26]
["妇科检查","2613","液基细胞学检查","筛查早期宫颈癌，阳性率高，是目前用于诊断宫颈癌的方法。",185]
[null,"2614","HPV-DNA","已婚女性，HC2方法检测宫颈癌高危型HPV病毒感染(13个亚型),精确度高",310]
[null,"1929","阴道分泌物常规","用于检查阴道内有无滴虫、念珠菌，同时还可确定阴道清洁度",9]
["  CT、MRI检查","ZH9028","1.5T MRI颅脑平扫+MRA","发现脑梗死、颅内占位及脑动脉瘤、动静脉畸形等脑血管病变，以及时发现脑出血与蛛网膜下腔出血危险因素。",1000]
[null,"1846","鼻咽、鼻窦MRI平扫","协助诊断鼻咽癌、鼻窦炎等",700]
[null,"1804","颈椎MRI平扫","查颈椎间盘突出、脊髓病变、颈椎椎体结核、椎管内肿瘤等",875]
[null,"ZH100158","3.0T MRI颈椎平扫",null,875]
[null,"1802","腰椎MRI平扫","查腰椎间盘突出、脊髓病变、腰椎椎体结核、椎管内肿瘤等",875]
[null,"ZH100094","3.0T MRI腰椎平扫",null,875]
[null,"ZH100345","3.0T MRI盆腔平扫",null,875]
[null,"ZH100212","3.0T MRI膝关节平扫（左侧）",null,875]
[null,"ZH100215","3.0T MRI膝关节平扫（右侧）",null,875]
[null,"1502","胸部CT平扫","查肺炎、肺结核、气胸、支气管扩张、胸水、肺癌等胸部疾病",581]
[null,"1542","盆腔CT平扫",null,581]
[null,"ZH100080","CT上腹部平扫+增强+四维重建（肝动脉、门静脉等上腹部血管成像）",null,1031.5]
[null,"ZH100375","CT心脏平扫+增强+冠状动脉CTA",null,1531.5]
[null,"ZH1000121","CT颈椎平扫 + 四维重建",null,861]
[null,"ZH1000169","CT腰椎平扫 + 四维重建",null,861]
[null,"ZH1000329","CT胸部平扫",null,581]
["—19—"]
[" CT、MRI检查","2101","纤维胃十二指肠镜检查(电子镜)","诊断胃及十二指肠疾病，如胃及十二指肠溃疡、胃炎、胃部肿瘤等",250]
[null,"ZH101280","胶囊内镜检查","胶囊胃镜为透明球状，里面是一个微型数码摄像机，主要筛查食道、胃、小肠、大肠疾病情况，排除肿瘤、息肉、炎症等情况。",3850]
[null,"ZH1000823","纤维结肠镜检查(电子镜)",null,340]
[null,"ZH624","甲状腺ECT",null,317.7]
[null,"ZH100319","PET/CT全身或二个部位以上","是一种灵敏度高、准确性好的高科技检查手段，对肿瘤、心、脑系统疾病，具有早期发现、早期诊断的价值，全身扫描可以发现休内微小病灶，早期诊断可以使受检者能真正得到早期治疗，达到有病早治，无病预防目的。",8600]
["        其他检查","4705","鼻咽镜","诊断有无急慢性咽炎及急慢性鼻炎有价值，检查扁桃体有无充血，肿大，溃疡等\n",14.5]
[null,"ZH1000590","口腔专科检查","初步了解有无牙周炎、龋齿，口腔黏膜异常等相关疾病。",15]
[null,"0402","眼底检查(直接眼底法)双眼","了解眼底视网膜血管情况，特别评估高血血压，糖尿病引起的视网膜出血渗出等病变。",10]
[null,"ZH101794","眼压检查(非接触眼压计法或压平眼压计法)","筛查青光眼，适用于经常眼胀、眼痛，用眼过度的人群。",30]
[null,"ZH1000866","肛门指检+肛门镜检查","直肠癌筛查",57]
[null,"ZH1000843","直乙状结肠镜检查(电子镜)","直乙状结肠癌筛查",260]
[null,"5906","衣原体检查(免疫学法)","衣原体是一种比细菌和病毒的体积都要小的病原微生物，它主要在细胞的体内增生、繁殖。感染人体后，可引起泌尿、生殖器的慢性增生性炎性病变",35]
[null,"ZH101143","解脲+人型支原体培养及药敏","检测是否感染支原体及对药物敏感性",210]
[null,"ZH9161","细菌性阴道病唾液酸酶测定（BV）","用于检测细菌性阴道病（阴道内正常菌群失调所致一种混合感染）",55]
[null,"ZH101709","14碳呼气试验",null,92]
[null,"ZH942","心率变异性分析","了解身体压力、精神压力及抗压能力",115]
[null,"ZH101151","红外热象检查（全身15个部位）","能精确给出人体温布分布，对很多疾病都会引起温度改变，针对软组织疼痛，炎症，血管病变，肿瘤，乳腺，健康体检，疗效评定，追踪观察，科研探索等。",300]
[null,"ZH629","简易肺功能测定","早期诊断COPD(慢性阻塞性肺病)，建议长期吸烟、咳嗽及接触有机粉尘、无机粉尘、有害气体的人员检查\n",50]
[null,"ZH101120","骨密度测定","了解骨质变化情况。",60]
[null,"ZH1000851","肝脏纤维化及脂肪肝检查",null,156]
[null,"ZH7744","5ML注射器",null,0.22]
[null,"ZH1000849","塑料注射器60ML",null,1.23]
[null,"ZH1000850","一次性吸痰管(国产)14号",null,1.54]
[null,"ZH1000972","灌肠(一般灌肠)",null,25]
["        工本材料","ZH7728","抽血费",null,4]
[null,"ZH7729","抽血针头",null,0.31]
[null,"ZH7745","健康咨询",null,5]
[null,"ZH7746","建立健康档案",null,5]
[null,"ZH7747","体检费",null,25]
["—20—"]
[]
["上述是检查费用，（CT及MRI增强、胃镜、肠镜检查用到的药物费用及麻醉费用要另外收费，不在检查费内）"]
[]
["注意事项"]
["1.请按预约的体检日期进行体检。"]
["2.体检前三天请您尽量保持正常清淡饮食和充足的睡眠，不要饮酒、避免剧烈运动。"]
["3.抽血、早上空腹进行检查，抽血后，需按压穿刺点3至5分钟。"]
["4.消化道（肝胆脾胰）B超需空腹进行检查，下午消化道（肝胆脾胰）B超请按照我院提供中餐食谱进行饮食 ，泌尿系统、生殖系统B超需膀胱充盈后才能检查。"]
[]
["5.拟在半年内怀孕的夫妇，怀孕或可能已经怀孕者请勿做X线检查，需查环查孕者需带好身份证前来体检。"]
["6.体检完成后请在体检指引单上填写好联系方式交给体检医务人员。"]
[]
["体检中心联系电话：28636262\\13509202630(叶小姐)、28636279(黄先生)、E-mail：tjzx22119893@163.com"]
["体检预约电话：22119912、28636199、28636253；微信预约：微信关注“东莞市人民医院”或“就医160”"]
["地址：东莞市万江区新谷涌万道路南3号体检中心大楼"]
["东莞市人民医院健康管理中心2017年8月30日"]
{"$rows_empty":32}
["—21—"]

{"sheet":"附件7东华套餐","index":7,"n_rows":143,"n_cols":8,"rows_kept":143,"cut":false,"hidden":false,"merged":[[0,0,0,7],[1,0,1,7],[2,2,2,3],[3,2,3,3],[4,2,4,3],[5,2,5,3],[6,2,6,3],[7,2,7,3],[8,2,8,3],[9,2,9,3],[10,2,10,3],[11,2,11,3],[12,2,12,3],[13,2,13,3],[14,2,14,3],[15,2,15,3],[16,2,16,3],[17,2,17,3],[20,0,20,7],[21,2,21,3],[22,2,22,3],[23,2,23,3],[24,0,24,7],[25,2,25,3],[26,2,26,3],[27,2,27,3],[28,2,28,3],[29,2,29,3],[30,2,30,3],[31,2,31,3],[32,2,32,3],[34,2,34,3],[35,2,35,3],[36,2,36,3],[37,2,37,3],[38,2,38,3],[41,0,41,7],[43,2,43,3],[44,2,44,3],[45,2,45,3],[46,2,46,3],[47,2,47,3],[48,0,48,7],[49,2,49,3],[50,2,50,3],[51,2,51,3],[52,2,52,3],[53,2,53,3],[54,2,54,3],[55,2,55,3],[56,2,56,3],[57,2,57,3],[58,2,58,3],[59,2,59,3],[60,2,60,3],[61,2,61,3],[64,0,64,7],[65,2,65,3],[66,2,66,3],[67,2,67,3],[68,2,68,3],[69,2,69,3],[70,2,70,3],[71,2,71,3],[72,0,72,7],[73,2,73,3],[74,2,74,3],[75,2,75,3],[76,2,76,3],[77,2,77,3],[78,2,78,3],[79,2,79,3],[80,2,80,3],[81,2,81,3],[82,2,82,3],[83,2,83,3],[84,2,84,3],[87,0,87,7],[88,2,88,3],[89,2,89,3],[90,2,90,3],[91,2,91,3],[92,2,92,3],[93,2,93,3],[94,2,94,3],[95,2,95,3],[96,0,96,7],[97,2,97,3],[98,2,98,3],[99,2,99,3],[100,2,100,3],[101,2,101,3],[102,2,102,3],[103,2,103,3],[104,2,104,3],[105,2,105,3],[106,2,106,3],[109,0,109,7],[110,2,110,3],[111,2,111,3],[112,2,112,3],[113,2,113,3],[114,2,114,3],[115,2,115,3],[116,2,116,3],[117,2,117,3],[118,2,118,3],[119,2,119,3],[120,0,120,7],[121,2,121,3],[122,2,122,3],[123,2,123,3],[124,2,124,3],[125,2,125,3],[126,2,126,3],[127,2,127,3],[142,0,142,7]]}
["附件7"]
["2018年东莞东华医院男律师体检套餐A（男性）"]
["类别","项目","临床意义",null,"数量","折前价","折扣","折后价"]
["常规检查","常规检查（身高、体重、血压）","了解是否高血压病、体重是否超标。",null,1,0]
["检验科","血液常规（五分类RT）","了解是否贫血、感染等，用于对病人身体状况，疾病初步诊断及对治疗疗效的观察。",null,1,20]
["检验科","肝功四项","临床上主要用于诊断肝脏和胆道疾病。",null,1,20]
["检验科","肾功四项","是肾脏功能的重要指标，指标升高意味着肾功能的损害。",null,1,27]
["检验科","血脂三项","了解血脂成分血脂异常是心脑血管疾病的重要危险因素。",null,1,22]
["检验科","EB病毒","EB病毒持续感染是鼻咽癌的危险因素。",null,1,21]
["检验科","AFP（定性）","早期发现肝癌的重要指标，而且还是评估和判断肝炎患者修复状况的重要标志。",null,1,12]
["检验科","尿常规分析+镜检","了解尿液成分，协助诊断泌尿系统疾病及疗效观察。",null,1,10]
["检验科","幽门螺杆菌抗体测定（HP）","了解消化道是否感染幽门螺旋杆菌。",null,1,53]
["心电图室","心电图检查（十二导联）","了解心律是否正常，是否存在心肌缺血、损伤等。",null,1,27]
["彩超","肝胆脾胰双肾前列腺彩超","了解内脏器官是否存在结石、息肉、肿瘤等病变。",null,1,270]
["放射科","胸部透视","了解肺部情况，排除结核、炎症、肿瘤等。",null,1,10]
["体格检查及耗材费用","静脉采血","静脉抽血人工费用。",null,1,4]
["体格检查及耗材费用","*真空采血管*","各项标本一次性容器。",null,3,5.01]
["体格检查及耗材费用","建立健康档案费","将体检资料收集装订成册，给出总检结论，以便保存。",null,1,5]
[null,null,null,"合计：",null,506.01,null,400]
[]
["2018年东莞东华医院男律师体检套餐B（男性）"]
["类别","项目","临床意义",null,"数量","折前价","折扣","折后价"]
["常规检查","常规检查（身高、体重、血压）","了解是否高血压病、体重是否超标。",null,1,0]
["检验科","血液常规（五分类RT）","了解是否贫血、感染等，用于对病人身体状况，疾病初步诊断及对治疗疗效的观察。",null,1,20]
["—22—"]
["检验科","肝功九项","临床上主要用于诊断肝脏和胆道疾病。",null,1,44]
["检验科","肾功四项","是肾脏功能的重要指标，指标升高意味着肾功能的损害。",null,1,27]
["检验科","血脂四项","了解血脂成分，血脂异常是心脑血管疾病的重要危险因素。",null,1,34]
["检验科","AFP（定性）","早期发现肝癌的重要指标，而且还是评估和判断肝炎患者修复状况的重要标志。",null,null,12]
["检验科","EB病毒","EB病毒持续感染是鼻咽癌的危险因素。",null,1,21]
["检验科","尿常规分析+镜检","了解尿液成分，协助诊断泌尿系统疾病及疗效观察。",null,1,10]
["心电图室","心电图检查（十二导联）","了解心律是否正常，是否存在心肌缺血、损伤等。",null,1,27]
["B超","肝胆脾双肾前列腺B超","了解内脏器官是否存在结石、息肉、肿瘤等病变。",null,1,88]
[null,"甲状腺彩超","了解甲状腺情况。",null,1,135]
["放射科","胸部正位片","了解肺部情况，排除结核、炎症、肿瘤等。",null,1,60]
["体格检查及耗材费用","静脉采血","静脉抽血人工费用。",null,1,4]
["体格检查及耗材费用","*真空采血管*","各项标本一次性容器。",null,3,5.01]
["体格检查及耗材费用","超声计算机图文报告","超声检查图文报告。",null,1,15]
["体格检查及耗材费用","建立健康档案费","将体检资料收集装订成册，给出总检结论，以便保存。",null,1,5]
[null,null,null,"合计：",null,{"$f":"SUM(F23:F39)","v":507.01},null,400]
[]
["2018年东莞东华医院女律师体检套餐A（未婚女性）"]
["类别","项目","临床意义",null,"数量","折前价","折扣","折后价"]
["常规检查","常规检查（身高、体重、血压）","了解是否高血压病、体重是否超标。",null,1,0]
["检验科","血液常规（五分类RT）","了解是否贫血、感染等，用于对病人身体状况，疾病初步诊断及对治疗疗效的观察。",null,1,20]
["检验科","肝功四项","临床上主要用于诊断肝脏和胆道疾病。",null,1,20]
["检验科","血糖测定（GLU）","了解血糖情况，为诊断糖尿病提高依据。",null,1,6]
["检验科","URCA","了解尿酸情况，尿酸增高与痛风、肾结石等密切相关。",null,1,5]
["—23—"]
["检验科","血脂三项","了解血脂成分血脂异常是心脑血管疾病的重要危险因素。",null,1,22]
["检验科","EB病毒","EB病毒持续感染是鼻咽癌的危险因素。",null,1,21]
["检验科","CEA定性","联合检测可提高为消化系统肿瘤的筛查提供线索.",null,1,12]
["检验科","AFP（定性）","早期发现肝癌的重要指标，而且还是评估和判断肝炎患者修复状况的重要标志。",null,1,12]
["检验科","尿常规分析+镜检","了解尿液成分，协助诊断泌尿系统疾病及疗效观察。",null,1,10]
["检验科","幽门螺杆菌抗体测定（HP）","了解消化道是否感染幽门螺旋杆菌。",null,1,53]
["心电图室","心电图检查（十二导联）","了解心律是否正常，是否存在心肌缺血、损伤等。",null,1,27]
["彩超","肝胆脾胰彩超（肝胆脾，双肾，子宫附件任选一各部位）","了解内脏器官是否存在结石、息肉、肿瘤等病变。",null,1,135]
["彩超","乳腺彩超","了解乳腺是否存在增生、肿瘤等病变。",null,1,135]
["放射科","胸部透视","了解肺部情况，排除结核、炎症、肿瘤等。",null,1,10]
["体格检查及耗材费用","静脉采血","静脉抽血人工费用。",null,1,3]
["体格检查及耗材费用","*真空采血管*","各项标本一次性容器。",null,3,5.01]
["体格检查及耗材费用","建立健康档案费","将体检资料收集装订成册，给出总检结论，以便保存。",null,1,5]
[null,null,null,"合计：",null,501.01,null,400]
[]
["2018年东莞东华医院女律师体检套餐B（未婚女性）"]
["类别","项目","临床意义",null,"数量","折前价","折扣","折后价"]
["常规检查","常规检查（身高、体重、血压）","了解是否高血压病、体重是否超标。",null,1,0]
["检验科","血液常规（五分类RT）","了解是否贫血、感染等，用于对病人身体状况，疾病初步诊断及对治疗疗效的观察。",null,1,20]
["检验科","肝功四项","临床上主要用于诊断肝脏和胆道疾病。",null,1,20]
["检验科","肾功四项","是肾脏功能的重要指标，指标升高意味着肾功能的损害。",null,1,27]
["检验科","血脂四项","了解血脂成分，血脂异常是心脑血管疾病的重要危险因素。",null,1,34]
["检验科","AFP（定性）","早期发现肝癌的重要指标，而且还是评估和判断肝炎患者修复状况的重要标志。",null,1,12]
["—24—"]
["检验科","EB病毒","EB病毒持续感染是鼻咽癌的危险因素。",null,1,21]
["检验科","心肌酶5项","了解心肌细胞损伤情况。",null,1,45]
["检验科","幽门螺杆菌抗体测定（HP）","了解消化道是否感染幽门螺旋杆菌。",null,1,53]
["检验科","CEA定性","联合检测可提高为消化系统肿瘤的筛查提供线索.",null,1,12]
["检验科","尿常规分析+镜检","了解尿液成分，协助诊断泌尿系统疾病及疗效观察。",null,1,10]
["心电图室","心电图检查（十二导联）","了解心律是否正常，是否存在心肌缺血、损伤等。",null,1,27]
["B超","肝胆脾胰彩超（肝胆脾，双肾，子宫附件任选一各部位）","了解内脏器官是否存在结石、息肉、肿瘤等病变。",null,1,135]
["影像科","胸部正位片","排除肺部疾病。",null,1,60]
["体格检查及耗材费用","静脉采血","静脉抽血人工费用。",null,1,3]
["体格检查及耗材费用","*真空采血管*","各项标本一次性容器。",null,3,5.01]
["体格检查及耗材费用","超声计算机图文报告","超声检查图文报告。",null,1,15]
["体格检查及耗材费用","建立健康档案费","将体检资料收集装订成册，给出总检结论，以便保存。",null,1,5]
[null,null,null,"合计：",null,{"$f":"SUM(F67:F84)","v":499.01},null,400]
[]
["2018年东莞东华医院女律师体检套餐A（已婚女性）"]
["类别","项目","临床意义",null,"数量","折前价","折扣","折后价"]
["常规检查","常规检查（身高、体重、血压）","了解是否高血压病、体重是否超标。",null,1,0]
["妇科","单次妇检","检查妇科一般情况，有无宫颈糜烂、息肉、囊肿等。",null,1,8]
["检验科","血液常规（五分类RT）","了解是否贫血、感染等，用于对病人身体状况，疾病初步诊断及对治疗疗效的观察。",null,1,20]
["检验科","肝功四项","临床上主要用于诊断肝脏和胆道疾病。",null,1,20]
["检验科","肾功四项","是肾脏功能的重要指标，指标升高意味着肾功能的损害。",null,1,27]
["检验科","血脂二项","了解血脂成分，血脂异常是心脑血管疾病的重要危险因素。",null,1,10]
["检验科","CEA定性","联合检测可提高为消化系统肿瘤的筛查提供线索.",null,1,12]
["—25—"]
["检验科","AFP（定性）","早期发现肝癌的重要指标，而且还是评估和判断肝炎患者修复状况的重要标志。",null,1,12]
["检验科","尿常规分析+镜检","了解尿液成分，协助诊断泌尿系统疾病及疗效观察。",null,1,10]
["检验科","白带常规","了解白带清洁度，协助诊断妇科疾病。",null,1,10]
["检验科","宫颈涂片","通过巴氏分级，筛查宫颈癌。",null,1,53]
["心电图室","心电图检查（十二导联）","了解心律是否正常，是否存在心肌缺血、损伤等。",null,1,27]
["彩超","乳腺彩超","了解乳腺是否存在增生、肿瘤等病变。",null,1,135]
["彩超","子宫附件彩超","了解内脏器官是否存在息肉、肿瘤等病变。",null,1,135]
["体格检查及耗材费用","静脉采血","静脉抽血人工费用。",null,1,3]
["体格检查及耗材费用","*真空采血管*","各项标本一次性容器。",null,3,5.01]
["体格检查及耗材费用","建立健康档案费","将体检资料收集装订成册，给出总检结论，以便保存。",null,1,5]
[null,null,null,"合计：",null,{"$f":"SUM(F90:F107)","v":492.01},null,400]
[]
["2018年东莞东华医院女律师体检套餐B（已婚女性）"]
["类别","项目","临床意义",null,"数量","折前价","折扣","折后价"]
["常规检查","常规检查（身高、体重、血压）","了解是否高血压病、体重是否超标。",null,1,0]
["妇科","单次妇检","检查妇科一般情况，有无宫颈糜烂、息肉、囊肿等。",null,1,8]
["检验科","血液常规（五分类RT）","了解是否贫血、感染等，用于对病人身体状况，疾病初步诊断及对治疗疗效的观察。",null,1,20]
["检验科","肝功四项","临床上主要用于诊断肝脏和胆道疾病。",null,1,20]
["检验科","肾功四项","是肾脏功能的重要指标，指标升高意味着肾功能的损害。",null,1,27]
["检验科","血脂二项","了解血脂成分血脂异常是心脑血管疾病的重要危险因素。",null,1,10]
["检验科","尿常规分析+镜检","了解尿液成分，协助诊断泌尿系统疾病及疗效观察。",null,1,10]
["检验科","幽门螺杆菌抗体测定（HP）","了解消化道是否感染幽门螺旋杆菌。",null,1,53]
["检验科","宫颈涂片","通过巴氏分级，筛查宫颈癌。",null,1,53]
["—26—"]
["检验科","白带常规","了解白带清洁度，协助诊断妇科疾病。",null,1,10]
["心电图室","心电图检查（十二导联）","了解心律是否正常，是否存在心肌缺血、损伤等。",null,1,27]
["B超","肝胆脾胰彩超（肝胆脾，双肾，子宫附件任选一各部位）","了解内脏器官是否存在结石、息肉、肿瘤等病变。",null,1,135]
["彩超","乳腺彩超","了解乳腺是否存在增生、肿瘤等病变。",null,1,135]
["体格检查及耗材费用","静脉采血","静脉抽血人工费用。",null,1,3]
["体格检查及耗材费用","*真空采血管*","各项标本一次性容器。",null,3,5.01]
["体格检查及耗材费用","建立健康档案费","将体检资料收集装订成册，给出总检结论，以便保存。",null,1,5]
[null,null,null,"合计：",null,{"$f":"SUM(F112:F128)","v":521.01},null,400]
{"$rows_empty":13}
["—27—"]

{"sheet":"附件7东华自选项目","index":8,"n_rows":171,"n_cols":5,"rows_kept":171,"cut":false,"hidden":false,"merged":[[0,0,0,4],[2,0,2,4],[35,0,35,4],[68,0,68,4],[69,0,69,3],[86,0,86,3],[98,0,98,3],[102,0,102,4],[117,0,117,3],[136,0,136,4],[137,0,137,3],[170,0,170,4],[99,0,101,0],[103,0,116,0],[118,0,124,0],[125,0,130,0],[131,0,134,0],[153,0,156,0],[151,2,152,2],[5,3,9,3],[56,4,59,4],[125,4,130,4],[131,4,134,4],[146,4,152,4]]}
["2018年东莞东华医院体检中心常检项目价格表"]
[]
["★增加自选项目享受8折优惠，特殊项目不享受任何折扣优惠。"]
["类别","项目","临床意义","价格","备注"]
["常规检查","常规检查（身高、体重、血压）","了解是否高血压病、体重是否超标。",0]
["体格检查及耗材费用","各专科体检","通过体格检查了解内外眼耳鼻喉等基本情况。",25]
["内科","内科","通过体格检查初步了解内科各系统情况。"]
["外科","外科","通过体格检查初步了解外科各系统情况。"]
["耳鼻喉科","耳鼻喉科","通过体格检查初步了解耳鼻喉科情况。"]
["眼科","眼科","通过体格检查初步了解眼科情况。"]
["眼科","眼底","通过眼底镜检查初步了解眼底情况。",5]
["妇科","单次妇检","检查妇科一般情况，有无宫颈糜烂、息肉、囊肿等。",8]
["检验科","ABO血型鉴定","确定血型。",12]
["检验科","血液常规（五分类RT）","了解是否贫血、感染等，用于对病人身体状况，疾病初步诊断及对治疗疗效的观察。",20]
["检验科","血型三项","为优生优育项目。",82]
["检验科","尿常规分析+镜检","了解尿液成分，协助诊断泌尿系统疾病及疗效观察。",10]
["检验科","尿妊娠试验（HCG）","协助诊断是否受孕。",7]
["检验科","大便培养","检查大便是否带有致病菌。",74]
["检验科","大便潜血试验","粪便潜血检查可作为消化道肿瘤筛选的首选指标。",18]
["检验科","大便常规","初步了解消化系统有无炎症、出血、寄生虫感染，以及间接判断胃肠、胰腺、肝胆的功能状况。",2]
["检验科","GPT(肝功一项)","临床上主要用于诊断肝脏。",5]
["检验科","肝功四项","临床上主要用于诊断肝脏和胆道疾病。",20]
["检验科","肝功六项","临床上主要用于诊断肝脏和胆道疾病。",37]
["检验科","肝功九项","临床上主要用于诊断肝脏和胆道疾病。",44]
["检验科","肝功十二项","临床上主要用于诊断肝脏和胆道疾病。",76]
["检验科","血糖测定（GLU）","了解血糖情况，为诊断糖尿病提高依据。",6]
["检验科","肾功四项","是肾脏功能的重要指标，指标升高意味着肾功能的损害。",27]
["检验科","肾功5项","是肾脏功能的重要指标，指标升高意味着肾功能的损害。",76]
["检验科","血脂三项","了解血脂成分血脂异常是心脑血管疾病的重要危险因素。",22]
["检验科","血脂四项","了解血脂成分，血脂异常是心脑血管疾病的重要危险因素。",34]
["检验科","血脂全套","了解血脂成分血脂异常是心脑血管疾病的重要危险因素。",60]
["检验科","同型半胱氨酸（HCY）","是心脑血管病的独立危险因素，测定血浆同型半胱氨酸可以预知动脉粥样硬化的危险性。",60]
["检验科","心肌酶5项","了解心肌细胞损伤情况。",45]
["检验科","糖化血红蛋白","了解近2--3个月血糖水平。",84]
["检验科","C-肽","能更准确地反映自身胰岛细胞功能.",53]
["—28—"]
["检验科","超敏C-反应蛋白","了解炎症在动脉粥样硬化中的作用。",48]
["检验科","胰岛素","协助糖尿病和代谢综合症的诊断。",66]
["检验科","胃蛋白酶原Ⅰ","了解胃蛋白酶原情况。",83]
["检验科","胃功能四项","反映了不同部位胃黏膜的形态和功能。",178]
["检验科","幽门螺杆菌抗体测定（HP）","了解消化道是否感染幽门螺旋杆菌。",53]
["检验科","甲肝抗体","了解是否感染甲肝。",42]
["检验科","TSH","协助诊断甲状腺疾病，检测治疗情况。",40]
["检验科","T4","协助诊断甲状腺疾病，检测治疗情况。",60]
["检验科","T3","协助诊断甲状腺疾病，检测治疗情况。",60]
["检验科","甲状腺功能系列（五项）","协助诊断甲状腺疾病，评估治疗效果。",280]
["检验科","血沉","协助诊断风湿病、贫血、急性感染等多种疾病。",9]
["检验科","抗链球菌溶血O抗体（ASO）[定量]试验","对急性扁桃体炎、急性肾小球肾炎、风湿热的诊断有重要意义。",37]
["检验科","类风湿因子","协助诊断类风湿疾病。",25]
["检验科","微量元素5项（钙镁铁铜锌）","必需微量元素在维持人体健康方面是不可缺少的.",25]
["检验科","微量元素2项（铅、镉）","铅、镉暴露是造成一系列不良健康状况的重要风险因素。",34]
["检验科","离子4项（K、Na、CL、Ca)","了解电解质（钾、钠、氯、钙）等离子的分布情况。",23]
["检验科","梅毒诊断证实试验","如出现阳性反应，结合临床可确诊梅毒。",35]
["检验科","梅毒血清学试验","筛查梅毒患者。",16]
["检验科","爱滋病抗体","说明病人血清中有抗该病毒的相应抗体;结合临床分析有重要意义。",40]
["检验科","性激素全套","了解各种性腺激素水平。",363]
["检验科","优生优育系列检查","较全面的了解优生优育的各项指标。",390,"特殊项目，不享受任何折扣优惠"]
["检验科","变应源体外检测（吸入组）","变应源体外检测在临床上有较高的实用性,安全可靠,结果准确,能够指导特异性免疫治疗.",232]
["检验科","变应源体外检测（食物组）","变应源体外检测在临床上有较高的实用性,安全可靠,结果准确,能够指导特异性免疫治疗",224]
["检验科","外周血染色体核型分析","外周血染色体检查,可以防止染色体异常的患儿出生。",738]
["检验科","C反应蛋白（CRP）[定量]","协助诊断风湿病、急性炎症性疾病等。",18]
["检验科","凝血2项","了解凝血情况。",53]
["检验科","凝血四项","凝血酶原时间(PT)、活化部分凝血活酶时间(APTT)、凝血酶时间(TT).纤维蛋白原时间(FIB)的生理变化。",96]
["检验科","红细胞渗透脆性试验","筛查地中海贫血项目。",28]
["检验科","贫血三项","检查贫血原因。",140]
["病理科","地贫基因三项","检查是否携带有地中海贫血基因。",554,"特殊项目，不享受任何折扣优惠"]
["检验科","红细胞葡萄糖-6-磷酸脱氢酶","筛查红细胞葡萄糖-6-磷酸脱氢酶缺乏症患者。",12]
["检验科","免疫五型","了解免疫功能状况。",90]
["—29—"]
["肿瘤系列（抽血）"]
["检验科","EB病毒","EB病毒持续感染是鼻咽癌的危险因素。",21]
["检验科","EB病毒Rta蛋白抗体IgG","EB病毒持续感染是鼻咽癌的危险因素。",63]
["病理科","EBV(EB病毒）荧光定量",null,160]
["检验科","AFP（定性）","早期发现肝癌的重要指标，而且还是评估和判断肝炎患者修复状况的重要标志。",12]
["检验科","AFP（定量）","早期发现肝癌的重要指标，而且还是评估和判断肝炎患者修复状况的重要标志。",72]
["检验科","CEA定性","联合检测可提高为消化系统肿瘤的筛查提供线索.",12]
["检验科","癌胚抗原测定（CEA）","联合检测可提高为肿瘤的筛查提供线索.",72]
["检验科","卵巢癌相关抗原","为卵巢癌的筛查提供线索.有利于早期诊断.",145]
["检验科","肺癌相关抗原","为肺癌的筛查提供线索.有利于早期诊断.",84]
["病理科","CA242(流式荧光发光法)","筛查胰腺癌、结肠癌、胃癌等。",145]
["检验科","CA19-9","联合检测可提高为消化系统肿瘤的筛查提供线索.",145]
["检验科","CA72-4","联合检测可提高为消化系统肿瘤的筛查提供线索.",145]
["检验科","前列腺特异性抗原","可作为前列腺癌筛检的重要指标。",95]
["检验科","乳腺癌相关抗原","为乳腺癌的筛查提供线索.有利于早期诊断.",145]
["病理科","鳞状细胞癌抗原(流式荧光发光法)","筛查肺癌（非小细胞性肺癌），头颈部癌症，食道癌，宫颈癌等。",121]
["病理科","细胞角蛋白19片段(流式荧光发光法)","是肺鳞癌的首选标志物，可用于膀胱癌，鼻咽癌、胃肠道肿瘤的筛查。",95]
[]
["检验科","精液常规","精液结果分析,对判断男性的生育能力有重要意义.",31]
["检验科","宫颈涂片","通过巴氏分级，筛查宫颈癌。",53]
["检验科","白带常规","了解白带清洁度，协助诊断妇科疾病。",10]
["病理科","液基细胞学检测","筛查宫颈癌较先进方法。",210]
["病理科","高危型HPV检测（杂交捕获法）","高载量高危HPV长期感染可增加罹患宫颈癌风险。",362]
["病理科","高危型HPV检测（PCR法）","高载量高危HPV长期感染可增加罹患宫颈癌风险。",173]
["病理科","高危型HPV分型检测","检测是否感染高危乳头状瘤病毒，该病毒与宫颈癌有相关性。",362]
["病理科","HPV（乳头瘤病毒）荧光定量","检测是否感染高危乳头状瘤病毒，该病毒与宫颈癌有相关性。（处女不检）",160]
["病理科","UU（解脲支原体）荧光定量",null,160]
["病理科","CT（沙眼衣原体）荧光定量",null,160]
["病理科","NG（淋球菌）荧光定量",null,160]
["超声科"]
["彩超","肝胆脾胰双肾子宫附件彩超","了解内脏器官是否存在结石、息肉、肿瘤等病变。",405]
[null,"肝胆脾胰双肾前列腺彩超","了解内脏器官是否存在结石、息肉、肿瘤等病变。",270]
[null,"乳腺彩超","了解乳腺是否存在增生、肿瘤等病变。",135]
["—30—"]
["彩超","甲状腺彩超","了解甲状腺情况。",135]
[null,"经阴道子宫附件彩超","了解子宫、附件情况。",212.72]
[null,"胃彩超",null,221.25,"特殊项目，不享受任何折扣优惠"]
[null,"双侧颈动脉彩超","了解颈动脉是否存在硬化、狭窄等病变。",222]
[null,"双侧椎动脉彩超","了解椎动脉是否存在硬化、狭窄等病变。",96]
[null,"子宫附件彩超","了解子宫、附件情况。",135]
[null,"肝胆脾胰彩超","了解内脏器官是否存在结石、息肉、肿瘤等病变。",135]
[null,"心脏彩超（经胸）","了解心脏结构和机能。",323]
[null,"胎儿NT测量（孕11-14周彩超）","了解胎儿发育情况。",262,"特殊项目，不享受任何折扣优惠"]
[null,"双肾输尿管膀胱、前列腺彩超","了解泌尿系统是否存在结石、息肉、肿瘤等病变。",135]
[null,"四维胎儿及附属物彩超","了解胎儿发育情况。",444,"特殊项目，不享受任何折扣优惠（须到总院检查）"]
[null,"颈部淋巴结彩超","了解颈部淋巴结情况。",135]
[null,"单上肢动脉彩超","主要用于筛查动脉壁的情况及动-静脉瘘等。",138]
[null,"双下肢动脉彩超","了解双下肢动脉情况。",348]
["影像科"]
["影像科","胸部透视","了解肺部情况，排除结核、炎症、肿瘤等。",10]
[null,"颈椎侧位","了解颈椎是否生理曲度、增生等情况。",60]
[null,"腰椎侧位","了解腰椎的生理曲度、是否增生等情况。",60]
[null,"腰椎正侧位","了解腰椎是否生理曲度、增生等情况。",113]
[null,"颈椎正侧位","了解颈椎是否生理曲度、增生等情况。",113]
[null,"胸部正侧位","排除肺部疾病。",113]
[null,"胸部正位片","排除肺部疾病。",60]
["CT","腰椎CT","了解腰椎、椎间盘情况，适用于腰部不适和下肢麻木、疼痛等。",556,"特殊项目，不享受任何折扣优惠"]
[null,"头颅CT","了解脑部情况，适用于头痛、头昏等症状。",556]
[null,"颈椎CT","了解颈椎、椎间盘情况，适用于颈部不适和上肢麻木等症状。",556]
[null,"胸部CT","用于肺癌的筛查和其他肺部疾病的诊断。",556]
[null,"肺部CT","用于肺癌的筛查和其他肺部疾病的诊断。",556]
[null,"鼻咽部CT","用于鼻咽癌的筛查。",556]
["核磁共振","腰椎磁共振","了解有无腰椎退行性改变、脊髓占位（如腰椎间盘突出）及椎管内肿瘤等疾病。",900,"也可作为CT的补充（如体内有金属内固定物、假关节等、装有心脏起搏器的患者、心脏瓣膜置换术后患者、体表有金属导线或其它含金属物质者、妊娠妇女禁作）（须到总院检查）"]
[null,"头部磁共振","了解颅脑情况，排除脑梗塞、脑肿瘤等病变。",900]
[null,"胸部磁共振平扫","适用于肺部疾病、纵膈肿瘤、胸壁胸膜病变等筛查。",1005]
[null,"颈椎MRI平扫","了解有无颈椎病、颈椎退行性改变、脊髓占位及椎管内肿瘤等疾病。是目前显示椎管内病变的最好方法，而且无创伤。",900]
["影像科","PET-CT全身断层显象","用于检查肿瘤的先进设备。",7101,"特殊项目，不享受任何折扣优惠（须到总院检查）"]
["—31—"]
["其他检查"]
["心电图室","心电图检查（十二导联）","了解心律是否正常，是否存在心肌缺血、损伤等。",27]
["碳-13呼气试验","碳-13呼气试验","了解消化道是否感染幽门螺旋杆菌，适合胃病患者。",242]
["碳-14呼气试验","碳14呼气试验","了解消化道是否感染幽门螺旋杆菌，适合胃病患者。",92]
["眼科","双眼眼底照相","无需散瞳，观测眼底，辅助眼底视网膜疾症的诊断。",74]
["骨密度检查","骨密度检查","了解骨量是否减少，适合中老年人。",78]
["无创动脉硬化检查","无创动脉硬化检查","了解动脉血管是否硬化。",79]
["内脏脂肪检测","内脏脂肪检测","用于了解内脏脂肪情况",256]
["压力测定检查","压力测定检查","了解人体抗压能力。",78]
["内窥镜","电子胃十二指肠镜检查","检查胃、十二指肠疾病。",322,"特殊项目，不享受任何折扣优惠（须到总院检查）"]
["内窥镜","电子结肠镜检查","检查结肠疾病。",359]
["脑电图","脑电图","了解脑电流情况。",250]
["动态心电图","24H动态心电图","可连续24小时观察心电图变化。",300]
["动态心电图","心电图踏车负荷试验（平板运动试验）","协助诊断心肌缺血等疾病。",242]
["经颅多普勒","颅内经颅多谱勒脑血流图（TCD）","了解脑血流情况。",141]
["经颅多普勒","颅内外经颅多谱勒脑血流图（TCD）",null,372]
["体格检查及耗材费用","建立健康档案费","将体检资料收集装订成册，给出总检结论，以便保存。",5]
[null,"健康咨询","由医生解读、分析报告，提供保健建议。",5]
[null,"静脉采血","静脉抽血人工费用。",4]
[null,"*真空采血管*","各项标本一次性容器。(按实际)",1.67]
{"$rows_empty":13}
["—32—"]

{"sheet":"附件8美年套餐","index":9,"n_rows":79,"n_cols":9,"rows_kept":79,"cut":false,"hidden":false,"merged":[[0,0,0,8],[1,0,1,8],[2,1,2,2],[2,3,2,5],[3,3,3,5],[4,3,4,5],[5,3,5,5],[6,3,6,5],[7,3,7,5],[8,3,8,5],[9,3,9,5],[10,3,10,5],[11,3,11,5],[12,3,12,5],[13,3,13,5],[14,0,14,8],[15,3,15,5],[16,3,16,5],[17,3,17,5],[18,3,18,5],[19,3,19,5],[20,3,20,5],[21,3,21,5],[22,1,22,2],[22,3,22,5],[23,1,23,2],[23,3,23,5],[24,1,24,2],[24,3,24,5],[25,1,25,2],[25,3,25,5],[26,1,26,2],[26,3,26,4],[27,1,27,2],[27,3,27,4],[28,0,28,8],[29,3,29,5],[29,6,29,8],[30,3,30,5],[30,6,30,8],[31,0,31,8],[32,3,32,5],[33,3,33,5],[33,6,33,8],[34,3,34,5],[34,6,34,8],[35,0,35,8],[36,0,36,8],[37,3,37,5],[37,6,37,8],[38,3,38,5],[38,6,38,8],[39,3,39,5],[39,6,39,8],[40,3,40,5],[40,6,40,8],[78,0,78,8]]}
["附件8"]
["2018年东莞美年大健康体检中心律师体检套餐"]
["项目代码","体检项目",null,"临床意义",null,null,"男士","女士未婚","女士已婚"]
["45851","血压","血压（BP）","可以清楚自己的血压情况，对起居，饮食，用药，保健等等都有重要的指导作用。",null,null,5,5,5]
["011","解析心电图","十二导心电图","用于心肌梗死、心律失常、心肌缺血等心脏疾病的检查。",null,null,22,22,22]
["45758","彩色超声检查","肝、胆、脾、胰彩超","更清晰的诊断炎症、囊肿、肿瘤、结石、梗阻、血管瘤、肝硬化、脂肪肝等，提供高清晰度的动态彩色超声诊断图像",null,null,90,90,90]
["45769","彩色超声检查","双肾、输尿管、膀胱彩超","检查诊断炎症、囊肿、肿瘤、结石、肾癌、游走肾、膀胱癌、膀胱畸形、输尿管膀胱积水等，提供高清晰度的动态彩色超声诊断图像",null,null,90,90,90]
["45789","彩色超声检查","前列腺彩超","检查能较好的显示前列腺的形态、大小，对于前列腺增生、肥大、钙化等疾病具有诊断意义。提供高清晰度的动态彩色超声断层图像诊断。",null,null,90,"——","——"]
["45778","彩色超声检查","子宫、附件彩超","更清晰的观察子宫、卵巢、盆腔等生殖器是否有病变发生，如子宫肌瘤、囊肿等。",null,null,"——",90,90]
["451075","彩色超声检查","乳腺彩超①","可发现和鉴别乳腺炎、乳腺纤维瘤、囊性增生、小叶增生、乳腺癌等疾病",null,null,"——",90,90]
["45890","尿常规（15项）","比重、酸碱度、尿糖、酮体、尿白细胞、隐血、尿胆原、尿胆红素、尿蛋白、亚硝酸盐、维生素C、尿镜检4项","可提示有无泌尿系统疾患：如急、慢性肾炎，肾盂肾炎，膀胱炎，尿道炎，肾病综合征，狼疮性肾炎，血红蛋白尿，肾梗塞、肾小管重金属盐及药物导致急性肾小管坏死，肾或膀胱肿瘤以及有无尿糖等",null,null,10,10,10]
["025","血常规（三分类18项）","白细胞计数(WBC)、红细胞计数(RBC)、血红蛋白浓度(HGB)、血小板计数(PLT)、红细胞压积(HCT)、平均红细胞体积(MCV)、平均红细胞血红蛋白含量(MCH)、平均红细胞血红蛋白浓度(MCHC)、红细胞体积分布宽度(RDW)、血小板压积(PCT)、平均血小板体积(MPV)、血小板分布宽度(PDW)、中性粒细胞数目(Gran＃)、淋巴细胞数目(Lymph＃)、中间细胞数目(Mid＃)、中间细胞百分比(Mid%)、、中性粒细胞百分比(Gran%)、淋巴细胞百分比(LYM%)","通过检测血液细胞的计数及不同种类细胞、成分的分类来反映身体状况，如：贫血、感染、血液系统疾病、物理化学因素损伤等。",null,null,20,20,20]
["451125","血脂二项","甘油三酯(TG)、总胆固醇(CHOL)","血脂浓度与心脑血管疾病关系密切，对诊断动脉硬化症，冠心病及肾病综合症有参考意义。",null,null,20,20,20]
["45946","肝功能五项","丙氨酸氨基转移酶(ALT)、天门冬氨酸氨基转移酶(AST)、白蛋白(ALB)、直接胆红素(DBIL)、总胆红素(TBIL)","了解肝脏功能情况，是否有肝细胞损害、肝脏疾病及胆道疾病等病症",null,null,30,30,30]
["—33—"]
["451124","肾功能三项","尿素（Urea）、肌酐（CR）、尿酸（UA）","主要用于了解肾功能异常，痛风，尿酸偏高等。",null,null,30,30,30]
["046","血糖","血糖②(GLU)","从血糖水平了解是否有低血糖、糖尿病.了解血糖控制情况等",null,null,10,10,10]
["451182","肿瘤标志检测","神经元特异性烯醇化酶(NSE)","对小细胞肺癌，神经母细胞瘤等诊断有帮助",null,null,70,"——","——"]
["451122","胃幽门螺旋杆菌筛","幽门螺旋杆菌抗体(HP-IgG)","主要用于了解胃内有无幽门螺旋杆菌感染，此感染与胃炎、消化性溃疡、胃癌等发病有密切关系。",null,null,60,60,60]
["018","女性专项检查（已婚项目）","妇科常规检查","检查女性生殖器有无异常改变、有无宫颈及阴道异常病变。",null,null,"——","——",10]
["047","女性专项检查（已婚项目）","白带常规","了解阴道分泌物的清洁度，阴道有无炎症、白细胞、霉菌、滴虫等。",null,null,"——","——",10]
["451185","女性专项检查（已婚项目）","宫颈涂片","又称宫颈细胞巴氏分级，主要是宫颈癌细胞学检查，能检查出部分癌前病变以及微生物的感染。",null,null,"——","——",33]
[null,"深度分析报告/纸质版",{"$nulls":4},50,50,50]
["022","总检（必选）",{"$nulls":4},"赠送","赠送","赠送"]
["283","抽血（必选）",{"$nulls":4},"赠送","赠送","赠送"]
["007","营养早餐（必选）",{"$nulls":4},"赠送","赠送","赠送"]
[{"$nulls":5},"合计",{"$f":"SUM(G4:G26)","v":597},{"$f":"SUM(H4:H26)","v":617},{"$f":"SUM(I4:I26)","v":670}]
[{"$nulls":5},"优惠价",400,400,400]
["赠送项目（男女）"]
["451096","肿瘤标志检测","总前列腺特异性抗原(T-PSA)","前列腺癌患者PSA升高。前列腺肥大，前列腺炎时也可见血清PSA水平轻度升高",null,null,"价值90元                         （男士均有赠送）"]
["451100","肿瘤标志检测","糖类抗原153(CA153)","是一种乳腺癌相关的肿瘤标志物",null,null,"价值138元                    （女士均有赠送）"]
["赠送项目（年龄）"]
["66445","心脑血管危险因子一项","同型半胱氨酸（HCY）","用于冠心病、动脉硬化、心梗、脑梗等的早期预警。",null,null,100,100,100]
["441257","宫颈涂片升级为宫颈液基细胞检测","宫颈液基细胞检测(LCT或TCT)","对宫颈癌前病变的筛查率在97%以上，还能了解宫颈炎性的改变及其他各类病毒感染引起的病变，如HPV感染等",null,null,"价值200元                        （40岁以上享受该升级服务）"]
["377","CT","胸部CT","根据临床需要可检出X线胸片未发现的隐性病源：(1)查明有无微小转移瘤，可显示肿瘤的存在及其部位、大小、数目，以便制订治疗方案。(2)CT引导经皮穿刺活检，使某些肿块能得到组织学诊断。(3)对X线胸片及纤维支气管镜检查阴性，而痰瘤细胞阳性，应作CT以查明肺内瘤源。",null,null,"价值380元                   （45岁以上均有赠送）"]
["—34—"]
["大型项目钜惠"]
[451223,"核磁共振","脑垂体","适用于脑垂体肿瘤，如腺瘤、微腺瘤的筛查等。",null,null,"价值680元                    （加价166元可获得）"]
[45970,"核磁共振","头面部核磁","早期筛查甲状腺、腮腺、淋巴结等器官及颈部软组织各种良恶性肿瘤等病变。",null,null,"价值680元                    （加价166元可获得）"]
["45950","核磁共振","甲状腺","适用于甲状腺良恶性肿瘤、肿大筛查。",null,null,"价值680元                    （加价166元可获得）"]
["45971","核磁共振","鼻咽部","适用于鼻咽部恶性肿瘤的筛查，为鼻咽癌检查首选。",null,null,"价值680元                    （加价166元可获得）"]
{"$rows_empty":37}
["—35—"]

{"sheet":"附件8美年自选项目","index":10,"n_rows":501,"n_cols":13,"rows_kept":501,"cut":false,"hidden":false,"merged":[[0,0,0,12],[1,0,1,12],[2,2,2,9],[2,10,2,12],[3,2,3,3],[3,7,3,9],[5,7,5,9],[6,7,6,9],[7,7,7,9],[8,7,8,9],[9,7,9,9],[10,7,10,9],[11,7,11,9],[12,7,12,9],[13,7,13,9],[14,7,14,9],[15,7,15,9],[16,7,16,9],[17,7,17,9],[18,7,18,9],[19,7,19,9],[20,7,20,9],[21,7,21,9],[22,7,22,9],[23,7,23,9],[24,7,24,9],[25,7,25,9],[26,7,26,9],[27,7,27,9],[28,7,28,9],[29,7,29,9],[30,7,30,9],[31,7,31,9],[32,7,32,9],[33,7,33,9],[34,7,34,9],[35,0,35,12],[36,7,36,9],[37,1,37,9],[38,7,38,9],[39,7,39,9],[40,7,40,9],[41,7,41,9],[42,7,42,9],[43,7,43,9],[44,7,44,9],[45,7,45,9],[48,7,48,9],[49,1,49,3],[50,7,50,9],[51,7,51,9],[52,7,52,9],[53,7,53,9],[54,7,54,9],[55,7,55,9],[56,1,56,9],[57,7,57,9],[58,7,58,9],[59,7,59,9],[60,7,60,9],[61,7,61,9],[62,7,62,9],[63,7,63,9],[64,7,64,9],[65,7,65,9],[66,7,66,9],[67,7,67,9],[68,7,68,9],[69,7,69,9],[70,7,70,9],[71,0,71,12],[72,7,72,9],[73,7,73,9],[74,1,74,9],[77,7,77,9],[78,7,78,9],[79,7,79,9],[81,7,81,9],[82,7,82,9],[83,7,83,9],[84,7,84,9],[85,7,85,9],[86,7,86,9],[87,7,87,9],[88,7,88,9],[89,7,89,9],[90,7,90,9],[91,7,91,9],[92,7,92,9],[93,7,93,9],[94,7,94,9],[95,0,95,12],[96,7,96,9],[97,7,97,9],[98,7,98,9],[99,7,99,9],[100,7,100,9],[102,7,102,9],[103,7,103,9],[104,7,104,9],[105,7,105,9],[106,7,106,9],[107,7,107,9],[108,7,108,9],[109,7,109,9],[110,7,110,9],[111,7,111,9],[113,7,113,9],[114,7,114,9],[115,7,115,9],[116,7,116,9],[117,7,117,9],[118,7,118,9],[122,7,122,9],[123,7,123,9],[124,1,124,9],[125,7,125,9],[126,7,126,9],[127,7,127,9],[128,7,128,9],[129,0,129,12],[130,7,130,9],[131,7,131,9],[132,7,132,9],[133,7,133,9],[134,7,134,9],[135,1,135,9],[136,7,136,9],[137,7,137,9],[138,7,138,9],[139,7,139,9],[140,7,140,9],[141,7,141,9],[142,7,142,9],[143,7,143,9],[144,7,144,9],[145,7,145,9],[146,7,146,9],[147,7,147,9],[148,7,148,9],[149,7,149,9],[150,7,150,9],[151,7,151,9],[152,7,152,9],[153,7,153,9],[154,7,154,9],[155,7,155,9],[156,7,156,9],[157,1,157,9],[158,7,158,9],[159,7,159,9],[160,7,160,9],[161,7,161,9],[162,0,162,12],[163,7,163,9],[164,7,164,9],[165,7,165,9],[166,7,166,9],[167,7,167,9],[168,7,168,9],[169,7,169,9],[170,7,170,9],[171,7,171,9],[172,7,172,9],[173,7,173,9],[174,1,174,10],[175,7,175,9],[176,7,176,9],[177,7,177,9],[178,7,178,9],[179,7,179,9],[180,7,180,9],[182,7,182,9],[183,7,183,9],[184,7,184,9],[185,7,185,9],[186,7,186,9],[187,7,187,9],[188,7,188,9],[189,7,189,9],[190,7,190,9],[191,1,191,9],[192,7,192,9],[193,7,193,9],[194,7,194,9],[195,7,195,9],[196,0,196,12],[197,7,197,9],[198,7,198,9],[200,7,200,9],[201,7,201,9],[202,7,202,9],[203,7,203,9],[204,7,204,9],[205,7,205,9],[206,1,206,2],[207,7,207,9],[208,7,208,9],[209,7,209,9],[210,7,210,9],[211,7,211,9],[212,1,212,2],[213,7,213,9],[214,7,214,9],[215,7,215,9],[216,7,216,9],[217,7,217,9],[218,7,218,9],[219,7,219,9],[220,7,220,9],[221,7,221,9],[222,7,222,9],[223,7,223,9],[224,7,224,9],[225,1,225,2],[226,0,226,12],[227,7,227,9],[228,7,228,9],[229,7,229,9],[230,7,230,9],[231,7,231,9],[232,7,232,9],[233,7,233,9],[234,7,234,9],[235,7,235,9],[236,1,236,10],[237,7,237,9],[238,7,238,9],[239,7,239,9],[240,7,240,9],[241,1,241,2],[242,7,242,9],[243,7,243,9],[244,7,244,9],[245,7,245,9],[246,7,246,9],[247,7,247,9],[248,7,248,9],[249,7,249,9],[250,7,250,9],[251,7,251,9],[252,7,252,9],[253,7,253,9],[254,7,254,9],[255,1,255,2],[256,7,256,9],[257,7,257,9],[258,0,258,12],[259,7,259,9],[260,7,260,9],[261,7,261,9],[262,7,262,9],[263,7,263,9],[264,7,264,9],[265,1,265,2],[266,7,266,9],[267,7,267,9],[268,7,268,9],[269,7,269,9],[270,7,270,9],[271,7,271,9],[272,7,272,9],[273,7,273,9],[274,7,274,9],[275,7,275,9],[276,7,276,9],[277,7,277,9],[278,7,278,9],[279,7,279,9],[280,1,280,2],[281,7,281,9],[282,7,282,9],[283,7,283,9],[284,7,284,9],[285,7,285,9],[286,7,286,9],[287,7,287,9],[288,7,288,9],[289,7,289,9],[290,0,290,12],[291,7,291,9],[292,7,292,9],[293,7,293,9],[294,7,294,9],[295,7,295,9],[296,7,296,9],[297,1,297,2],[298,7,298,9],[299,7,299,9],[300,7,300,9],[301,7,301,9],[302,7,302,9],[303,7,303,9],[304,7,304,9],[305,7,305,9],[306,7,306,9],[307,7,307,9],[308,7,308,9],[309,7,309,9],[310,7,310,9],[311,7,311,9],[312,7,312,9],[313,7,313,9],[314,7,314,9],[315,7,315,9],[316,7,316,9],[317,7,317,9],[318,7,318,9],[319,7,319,9],[320,7,320,9],[321,7,321,9],[322,7,322,9],[323,7,323,9],[324,7,324,9],[325,7,325,9],[326,0,326,12],[327,7,327,9],[328,7,328,9],[329,7,329,9],[330,7,330,9],[331,7,331,9],[332,7,332,9],[333,7,333,9],[334,7,334,9],[336,7,336,9],[337,7,337,9],[338,1,338,2],[339,7,339,9],[340,7,340,9],[341,1,341,2],[342,7,342,9],[343,0,343,12],[344,7,344,9],[345,7,345,9],[346,7,346,9],[347,7,347,9],[348,1,348,2],[349,7,349,9],[350,7,350,9],[351,7,351,9],[352,7,352,9],[353,7,353,9],[354,1,354,2],[355,7,355,9],[356,7,356,9],[357,7,357,9],[358,7,358,9],[359,7,359,9],[360,7,360,9],[361,7,361,9],[362,7,362,9],[363,7,363,9],[364,7,364,9],[365,7,365,9],[366,7,366,9],[367,7,367,9],[368,7,368,9],[369,0,369,12],[370,7,370,9],[371,7,371,9],[372,7,372,9],[373,1,373,2],[373,7,373,9],[374,7,374,9],[375,7,375,9],[376,7,376,9],[377,7,377,9],[378,7,378,9],[379,7,379,9],[380,7,380,9],[381,7,381,9],[382,7,382,9],[383,7,383,9],[384,7,384,9],[385,7,385,9],[386,7,386,9],[387,7,387,9],[388,7,388,9],[389,7,389,9],[390,7,390,9],[391,7,391,9],[392,7,392,9],[393,7,393,9],[394,7,394,9],[395,7,395,9],[396,7,396,9],[397,7,397,9],[398,7,398,9],[399,7,399,9],[400,7,400,9],[401,0,401,12],[402,7,402,9],[403,7,403,9],[404,7,404,9],[405,7,405,9],[406,7,406,9],[407,7,407,9],[408,7,408,9],[409,7,409,9],[410,1,410,2],[410,7,410,9],[411,7,411,9],[412,7,412,9],[413,7,413,9],[414,7,414,9],[415,7,415,9],[416,7,416,9],[417,7,417,9],[418,7,418,9],[419,7,419,9],[420,7,420,9],[421,7,421,9],[424,7,424,9],[425,7,425,9],[426,7,426,9],[427,7,427,9],[428,7,428,9],[430,7,430,9],[431,7,431,9],[432,7,432,9],[433,7,433,9],[434,7,434,9],[435,0,435,12],[436,7,436,9],[437,7,437,9],[438,7,438,9],[439,7,439,9],[440,7,440,9],[441,7,441,9],[442,7,442,9],[443,7,443,9],[446,7,446,9],[447,7,447,9],[448,7,448,9],[449,7,449,9],[450,7,450,9],[451,7,451,9],[452,7,452,9],[453,7,453,9],[454,1,454,2],[454,7,454,9],[455,7,455,9],[456,1,456,2],[456,7,456,9],[457,7,457,9],[458,1,458,2],[458,7,458,9],[459,2,459,3],[459,7,459,9],[460,2,460,3],[460,7,460,9],[461,2,461,3],[461,7,461,9],[462,2,462,3],[462,7,462,9],[463,2,463,3],[463,7,463,9],[464,2,464,3],[464,7,464,9],[465,0,465,12],[466,2,466,3],[466,7,466,9],[467,2,467,3],[467,7,467,9],[468,2,468,3],[468,7,468,9],[469,2,469,3],[469,7,469,9],[470,2,470,3],[470,7,470,9],[471,8,471,9],[472,8,472,9],[473,8,473,9],[500,0,500,12],[119,0,121,0],[119,1,121,1],[230,1,231,1],[268,1,269,1],[276,1,277,1],[119,2,121,2],[246,2,247,2],[446,2,449,2],[119,10,121,10],[446,10,448,10],[119,11,121,11],[446,11,448,11],[119,12,121,12],[446,12,448,12],[46,7,47,9],[75,7,76,9],[119,7,121,9],[422,7,423,9],[444,7,445,9],[471,2,473,3]]}
["2018年东莞美年大健康体检中心自选体检项目及报价"]
["★提前预约时增加自选项目享受7折优惠，现场增加自选项目享受8折优惠。"]
["√",null,"注：此单价表作为对内结算用，请注意保密！！",{"$nulls":7},"报价"]
["选择区","项目代码","体检项目",null,"男性","女性未婚","女性已婚","临床意义",null,null,"男性","女性未婚","女性已婚"]
["√","基础检查"]
["√","45848","身高体重","身高、体重BMI18.5-24","★","★","★","身高 、体重、血压基本健康状态参数，了解体重是否正常，有无体重不足、超重或肥胖，为相关科室的诊断提供依据。",null,null,5,5,5]
["√","45851","血压","血压（BP）","★","★","★","可以清楚自己的血压情况，对起居，饮食，用药，保健等等都有重要的指导作用。",null,null,5,5,5]
["√","441282","人体成分分析","人体成分分析",null,null,null,"测量人体成分：体重、肥胖度判断、身体年龄，基础代谢量、肌肉量、推定骨骼量、身体脂肪率、内脏脂肪水平、锻炼模式等各项健康指数，有效指示客人的身体健康状况。",null,null,80,80,80]
["√","441284","血氧饱和度","血氧饱和度",null,null,null,"血液中血氧的浓度，它是呼吸循环的重要生理参数",null,null,10,10,10]
["√","451055","内科","心、肺听诊，腹部触诊","★","★","★","初步排查心、肺、肝、脾、胰、肾以及腹部等器官的疾病",null,null,10,10,10]
["√","451059","外科","浅表淋巴结，甲状腺、乳房、脊柱、四肢、外生殖器、前列腺、肛肠指检、皮肤等","★","★","★","淋巴结有无肿大，甲状腺、乳房、肛肠有无异常、四肢脊柱有无畸形等",null,null,10,10,10]
[null,"45852/45853","胸围/腹围/头围/臀围","胸围/腹围/头围/臀围",null,null,null,"通过测量，评估其营养及发育状况",null,null,1,1,1]
[null,"451198","握力体重指数","握力体重指数=握力÷体重×100",null,null,null,"握力是反映前臂及手部肌肉的力量，测试其肌肉静力的耐力状况。一个人的握力与其全身力量成高度相关，握力能够间接反映一个人的健康状况，握力增长或维持在较高水平时，健康状况就好;握力下降时健康状况就不好。握力与体重的大小有关，故采用握力体重指数进行评分。",null,null,10,10,10]
["√","359","眼科一般检查","外眼","★","★","★","主要检查有无结膜炎、角膜炎等。",null,null,10,10,10]
[null,"441299","测视力","测视力",null,null,null,"了解视力情况，有无屈光不正、",null,null,1,1,1]
[null,"395","辨色力","辨色力",null,null,null,"了解有无色弱与色盲",null,null,1,1,1]
[null,"441533","视力检查仪","视力筛查仪（婴幼儿、儿童及成人）",null,null,null,"视力筛查仪自动检测屈光度问题，包括近视、远视、散光和不等视等，其特点是：、自动、无损伤性、快速而有效、配合度低，准确率高。",null,null,20,20,20]
["√","441283","眼压检查（非接触眼压计）","眼压检查（非接触眼压计）",null,null,null,"了解眼压是否正常，眼压高可能患有青光眼病。",null,null,30,30,30]
["√","27618","眼底检查（直接眼底镜）","眼底检查（直接眼底镜）",null,null,null,"通过眼底镜检查了解眼底检查有无黄斑变性和动脉硬化等。",null,null,10,10,10]
["√","441300","眼底照相检查","眼底照相检查",null,null,null,"通过眼底镜检查了解眼底检查有无黄斑变性和动脉硬化等。并采集清晰的图片。",null,null,160,160,160]
["√","45728","裂隙灯检查","裂隙灯检查","★","★","★","主要检查眼角膜和晶状体有无病变（如白内障）等。",null,null,12,12,12]
["√","009","耳鼻喉科","外耳道、鼓膜、鼻腔、鼻中隔、扁桃体、咽部","★","★","★","检查有无中耳炎、鼻炎、慢性扁桃体炎、鼻中隔偏曲、咽炎等疾病。",null,null,10,10,10]
["√","66541","耳鼻喉科","音叉检测听力","★","★","★","了解听力损失的程度,性质及病变的部位。",null,null,10,10,10]
[null,"441534","听力检查仪","听力筛查仪（新生儿、婴幼儿、儿童及成人）",null,null,null,"在安静的状态下通过耳声发射，快速检测新生儿、儿童、成年的听力，筛查出早期的听力损伤，进行早期干预治疗，提升其生活质量。",null,null,20,20,20]
["√","441301","电测听（外检）","电测听（外检）",null,null,null,"通过对受检者气导、骨导的检测，客观评价听觉系统的功能状态。",null,null,45,45,45]
["√","45730","纯音电测听","纯音电测听",null,null,null,"在封闭的隔音室内，通过对受检者气导、骨导的检测，客观评价听觉系统的功能状态。",null,null,112,112,112]
["√","002","口腔科","口腔检查","★","★","★","通过检查可对龋齿、牙龈炎、牙周炎进行早期检查，同时提供口腔保健指导。",null,null,10,10,10]
["√","011","解析心电图","十二导心电图","★","★","★","用于心肌梗死、心律失常、心肌缺血等心脏疾病的检查。",null,null,22,22,22]
["√","441315","动态心电图","动态心电图",null,null,null,"动态心电图是一种可以长时间连续记录并编集分析人体心脏在活动和安静状态下心电图变化的方法。",null,null,300,300,300]
["√","018","女性专项检查（已婚项目）","妇科常规检查",null,null,"★","检查女性生殖器有无异常改变、有无宫颈及阴道异常病变。",{"$nulls":4},10]
["√","047","女性专项检查（已婚项目）","白带常规",null,null,"★","了解阴道分泌物的清洁度，阴道有无炎症、白细胞、霉菌、滴虫等。",{"$nulls":4},10]
["√","451185","女性专项检查（已婚项目）","宫颈涂片",null,null,"★","又称宫颈细胞巴氏分级，主要是宫颈癌细胞学检查，能检查出部分癌前病变以及微生物的感染。",{"$nulls":4},33]
["√","451113","女性专项检查（已婚项目）","细菌性阴道病检测(BV)",null,null,"★","用于细菌性阴道疾病致病菌的筛查。",{"$nulls":4},80]
["√","441257","女性专项检查（已婚项目）","宫颈液基细胞检测(TCT)",null,null,"★","对宫颈癌前病变的筛查率在97%以上，还能了解宫颈炎性的改变及其他各类病毒感染引起的病变，如HPV感染等",{"$nulls":4},200]
["√","80694","女性专项检查（已婚项目）","HPV基因检测",null,null,"★","检测是否HPV病毒感染，为早期宫颈癌和癌前病变提供诊断参考。",{"$nulls":4},350]
["—36—"]
["√","296","女性专项检查（已婚项目）","电子阴道镜",null,null,"★","直观、有效地发现宫颈糜烂、用于诊断癌症及其它妇科疾病和性疾病，建议中度以上宫颈糜烂患者常规进行阴道镜检查，该检查无任何创伤及副作用，对相关检查信息可以留存。",{"$nulls":4},100]
["√","全数字X光（DR）"]
["√","005","ＤＲ摄影检查","胸透（外检）","★","★","★","检查心、肺、支气管、胸膜有无异常，最主要是发现肺结核。",null,null,10,10,10]
["√","45744","ＤＲ摄影检查","透环（外检）",null,null,"★","了解避孕环在子宫腔内的位置是否正常、是否脱落等",null,null," "," ",13]
["√","80644","ＤＲ摄影检查","胸部正位片","★","★","★","有无肺部疾病及心脏、主动脉、纵膈、横膈疾病等。",null,null,55,55,55]
["√","80685","ＤＲ摄影检查","胸部正侧位片","★","★","★","可提示心、肺、大血管和横隔位置，心脏肥大、肺炎、肺结核、支气管扩张、肺占位病变等。",null,null,110,110,110]
["√","76723","ＤＲ摄影检查","颈椎侧位片","★","★","★","可提示颈椎曲度是否改变，椎间隙是否变窄，有无骨质增生或韧带钙化。",null,null,40,40,40]
["√","80646","ＤＲ摄影检查","颈椎正侧位片","★","★","★","颈椎正侧位片检查可以显示颈椎关节有无明显改变，颈椎曲度是否改变，椎间隙是否变窄，有无骨质增生或韧带钙化，斜位摄片有无椎间孔变小。",null,null,80,80,80]
["√","80653","ＤＲ摄影检查","腰椎侧位片","★","★","★","了解椎体曲度、椎体异常改变、腰骶角大小等。",null,null,40,40,40]
["√","80649","ＤＲ摄影检查","腰椎正侧位片","★","★","★","正位片可提示腰椎、横突、椎间隙等是否有异常改变；侧位片了解椎体曲度、椎体异常改变、腰骶角大小等。",null,null,80,80,80]
["√","80671","ＤＲ摄影检查","副鼻窦柯氏位片","★","★","★","了解副鼻窦的各类炎症及病理性改变；",null,null,40,40,40]
["√","80670","ＤＲ摄影检查","副鼻窦瓦特氏位片","★","★","★",null,null,null,40,40,40]
["√",null,"ＤＲ摄影检查","各关节及骨骼的正侧位片","★","★","★","各关节及骨骼的增生、骨折、炎性、肿瘤等异常病变与损伤。",null,null,80,80,80]
["√","黑白B超检查（仅限于外检套餐使用）"]
["√","45757","B超检查","肝胆脾胰B超","★","★","★","检查肝脏、胆囊、胆管、脾脏等是否具有异常病变发生。",null,null,60,60,60]
["√","45758","B超检查","肝胆脾B超","★","★","★","检查肝脏、胆囊、胆管、脾脏、肾等是否具有异常病变发生。",null,null,60,60,60]
["√","45767","B超检查","双肾B超","★","★","★","检查诊断炎症、囊肿、肿瘤、结石、肾癌、游走肾等",null,null,60,60,60]
["√","45768","B超检查","双肾输尿管膀胱B超","★","★","★","检查诊断炎症、囊肿、肿瘤、结石、肾癌、游走肾、膀胱癌、膀胱畸形、输尿管膀胱积水等",null,null,60,60,60]
["√","45777","B超检查","子宫附件B超",null,"★","★","检查子宫、输卵管、卵巢等部位有无炎症及病变等",null,null," ",60,60]
["√","45787","B超检查","前列腺B超","★",null,null,"了解是否有前列腺疾病和肿瘤。",null,null,60," "," "]
["√","高清彩色超声检查"]
["√","45754","彩色超声检查","肝、胆、脾彩超","★","★","★","更清晰的诊断炎症、囊肿、肿瘤、结石、梗阻、血管瘤、肝硬化、脂肪肝等，提供高清晰度的动态彩色超声诊断图像",null,null,90,90,90]
[null,"441498","彩色超声检查","胰腺彩超","★","★","★","清晰的诊断胰腺形态的改变，提供的动态彩色超声诊断图像",null,null,90,90,90]
["√","45758","彩色超声检查","肝、胆、脾、胰彩超","★","★","★","更清晰的诊断炎症、囊肿、肿瘤、结石、梗阻、血管瘤、肝硬化、脂肪肝等，提供高清晰度的动态彩色超声诊断图像",null,null,90,90,90]
["√","76711","彩色超声检查","肝、胆、脾、胰、双肾彩超","★","★","★","更清晰的诊断炎症、囊肿、肿瘤、结石、梗阻及血管瘤、肝硬化、脂肪肝等，提供高清晰度的动态彩色超声诊断图像",null,null,180,180,180]
["√","45765","彩色超声检查","双肾彩超","★","★","★","更清晰的检查肾癌、游走肾等是否异常病变发生",null,null,90,90,90]
["√","45769","彩色超声检查","双肾、输尿管、膀胱彩超（女性阴道彩超不选此项目）","★","★","★","检查诊断炎症、囊肿、肿瘤、结石、肾癌、游走肾、膀胱癌、膀胱畸形、输尿管膀胱积水等，提供高清晰度的动态彩色超声诊断图像",null,null,90,90,90]
["√","45789","彩色超声检查","前列腺彩超","★",null,null,"检查能较好的显示前列腺的形态、大小，对于前列腺增生、肥大、钙化等疾病具有诊断意义。提供高清晰度的动态彩色超声断层图像诊断。",null,null,90," "," "]
["√","45778","彩色超声检查","子宫、附件彩超",null,"★","★","更清晰的观察子宫、卵巢、盆腔等生殖器是否有病变发生，如子宫肌瘤、囊肿等。",null,null," ",90,90]
[null,"451077","彩色超声检查","阴道彩超（子宫、附件彩超）",null,null,null,"更清晰的观察子宫、卵巢、盆腔等生殖器是否有病变发生，如子宫肌瘤、囊肿等。",null,null,null,120,120]
["√","451079","彩色超声检查","皮下包块（肿物）彩超","★","★","★","可提示皮下包块（肿物）的性质、大小及病变状况等",null,null,90,90,90]
["√","451075","彩色超声检查","乳腺彩超①",null,"★","★","可发现和鉴别乳腺炎、乳腺纤维瘤、囊性增生、小叶增生、乳腺癌等疾病",null,null," ",90,90]
["√","310","彩色超声检查","颈动脉彩超","★","★","★","了解颈部大动脉有无异常(如斑块、粥样硬化、狭窄)。",null,null,90,90,90]
["√","314","彩色超声检查","甲状腺彩超","★","★","★","主要了解甲状腺瘤、甲亢、甲状腺结节等疾病形态学的改变",null,null,90,90,90]
["√","451220","彩色超声检查","其他各部位及脏器的彩超","★","★","★","了解其部位及脏器形态、大小、结构回声、血流等异常病理性改变",null,null,90,90,90]
["—37—"]
["√","45794","彩色超声检查","心脏彩超","★","★","★","心血管疾病的重要诊断方法。动态显示心腔内结构、心脏的搏动和血液流动，对先天性心脏病、心肌病、冠心病、心肌梗塞并发症及肺心病有较大的诊断价值。",null,null,315,315,315]
["√","451074","彩色超声检查","心脏彩超+图文片","★","★","★","了解心脏各组成部分的形态以及功能状态，对心脏瓣膜疾病有较大的临床诊断意义。",null,null,345,345,345]
["√","实验室检查"]
["√","025","血常规（三分类18项）(6月份将逐渐停止）","白细胞计数(WBC)、红细胞计数(RBC)、血红蛋白浓度(HGB)、血小板计数(PLT)、红细胞压积(HCT)、平均红细胞体积(MCV)、平均红细胞血红蛋白含量(MCH)、平均红细胞血红蛋白浓度(MCHC)、红细胞体积分布宽度(RDW)、血小板压积(PCT)、平均血小板体积(MPV)、血小板分布宽度(PDW)、中性粒细胞数目(Gran＃)、淋巴细胞数目(Lymph＃)、中间细胞数目(Mid＃)、中间细胞百分比(Mid%)、、中性粒细胞百分比(Gran%)、淋巴细胞百分比(LYM%)","★","★","★","通过检测血液细胞的计数及不同种类细胞、成分的分类来反映身体状况，如：贫血、感染、血液系统疾病、物理化学因素损伤等。",null,null,20,20,20]
["√","451109","血常规（五分类22项）","白细胞计数(WBC)、红细胞计数(RBC)、血红蛋白浓度(HGB)、血小板计数(PLT)、红细胞压积(HCT)、平均红细胞体积(MCV)、平均红细胞血红蛋白含量(MCH)、平均红细胞血红蛋白浓度(MCHC)、红细胞体积分布宽度(RDW)、血小板压积(PCT)、平均血小板体积(MPV)、血小板分布宽度(PDW)、中性粒细胞数目(Gran＃)、淋巴细胞数目(Lymph＃)、中性粒细胞百分比(Gran%)、淋巴细胞百分比(LYM%)、嗜酸性粒细胞数目、嗜酸性粒细胞百分比、嗜碱性粒细胞数目、嗜碱性粒细胞百分比、单核细胞数目、单核细胞百分比","★","★","★",null,null,null,30,30,30]
["√","451036","血流变（血粘度检测）","全血粘度低切150、全血粘度低切60、全血粘度低切10、毛细管血浆粘度、全血还原粘度（低切）、全血还原粘度（中切）、全血还原粘度（高切）、血沉、血沉方程K值、红细胞聚集指数、红细胞刚性指数、红细胞变形指数、红细胞电泳指数、红细胞压积、","★","★","★","监测是否存在高血压、高血脂、糖尿病、冠心病、心肌梗塞、血栓形成等危险因素。",null,null,100,100,100]
["√","45886","血型","ABO血型","★","★","★","红细胞血型分为O型、A型、B型、AB型等四型",null,null,10,10,10]
["√","45903","RH血型","Rh血型(Rh)","★","★","★","鉴定检查者血型",null,null,30,30,30]
["√","肝功能"]
["√","89581","肝功能十二项","丙氨酸氨基转移酶(ALT)、天门冬氨酸氨基转移酶(AST)、天冬/丙氨(AST/ALT)、谷氨酰转肽酶(GGT)、碱性磷酸酶(ALP)、总胆红素(TBIL)、直接胆红素(DBIL)、间接胆红素(IBIL)、总蛋白(TP)、白蛋白(ALB)、球蛋白(GLO)、白/球比值(A/G)","★","★","★","通过对肝脏酶、蛋白、胆红素的检测，可反映肝细胞的合成功能情况，肝细胞实质受损情况，肝内、外胆道阻塞情况等。",null,null,80,80,80]
["√","45932","肝功能十项","丙氨酸氨基转移酶(ALT)、天门冬氨酸氨基转移酶(AST)、天冬/丙氨(AST/ALT)、总胆红素(TBIL)、直接胆红素(DBIL)、间接胆红素(IBIL)、总蛋白(TP)、白蛋白(ALB)、球蛋白(GLO)、白/球比值(A/G)","★","★","★","通过对肝脏酶、蛋白、胆红素的检测，可反映肝细胞的合成功能情况，肝细胞实质受损情况，肝内、外胆道阻塞情况等。",null,null,70,70,70]
["√","323","肝功能八项","丙氨酸氨基转移酶(ALT)、天门冬氨酸氨基转移酶(AST)、谷氨酰转肽酶(GGT)、碱性磷酸酶(ALP)、总胆红素(TBIl)、直接胆红素(DBIL)、总蛋白(TP)、白蛋白（ALB） ","★","★","★","了解肝脏功能情况，是否有肝细胞损害，胆道梗阻、急慢性肝炎、脂肪肝、肝硬化等病症",null,null,60,60,60]
["√","45946","肝功能五项","丙氨酸氨基转移酶(ALT)、天门冬氨酸氨基转移酶(AST)、白蛋白(ALB)、直接胆红素(DBIL)、总胆红素(TBIL)","★","★","★","了解肝脏功能情况，是否有肝细胞损害、肝脏疾病及胆道疾病等病症",null,null,35,35,35]
["√","286","肝功能四项","丙氨酸氨基转移酶(ALT)、天门冬氨酸氨基转移酶(AST)、谷氨酰转肽酶(GGT)、碱性磷酸酶(ALP)","★","★","★","了解肝脏功能情况，是否有肝细胞损害、肝脏疾病及胆道疾病等病症",null,null,30,30,30]
["√","76706","肝功能三项","丙氨酸氨基转移酶(ALT)、天门冬氨酸氨基转移酶(AST)、谷氨酰转肽酶(GGT)","★","★","★","用于诊断肝细胞损伤、急慢性肝炎、酒精性肝炎、阻塞性黄疸等胆道系统疾病。GGT有助于判断肝硬化向肝癌方面的转变 ",null,null,25,25,25]
["√","274","肝功能二项","丙氨酸氨基转移酶(ALT)、天门冬氨酸氨基转移酶(AST)","★","★","★","ALT与AST在肝细胞内的浓度较高，相结合可用于诊断各类肝脏性疾病。",null,null,20,20,20]
["√","45979","肝功能一项","丙氨酸氨基转移酶(ALT)","★","★","★","可检测急、慢性病毒性肝炎、酒精性肝病、肝癌、肝硬化、脂肪肝等。",null,null,10,10,10]
["√","451137","肝功能","天门冬氨酸氨基转移酶(AST)","★","★","★","可检测急、慢性病毒性肝炎、酒精性肝病、肝癌、肝硬化、脂肪肝、心肌梗死等。",null,null,10,10,10]
["√","451138","肝功能","谷氨酰转肽酶(GGT)","★","★","★","可检测胆道阻塞性疾病、急慢性肝炎、肝硬化、酒精性肝炎、脂肪肝、胰腺炎、胰腺肿瘤等。",null,null,10,10,10]
["√","441408","总胆汁酸","总胆汁酸(TBA)","★","★","★","增高见于急性肝炎、慢性活动性肝炎和胆汁淤积综合征",null,null,30,30,30]
["√",441262,"胆碱脂酶","胆碱脂酶（CHE）",null,null,null,"用于有机磷中度，严重消耗性疾病，肝实质损伤等的检测",null,null,20,20,20]
["√","451139","肝功能","碱性磷酸酶(ALP)","★","★","★","用于检测肝胆系统疾病、黄疸的鉴别诊断、骨骼疾病等。",null,null,10,10,10]
["√","325","肝功能","总胆红素(TBIL)","★","★","★","用于黄疸性肝炎及各类溶血性黄疸的诊断与鉴别诊断。",null,null,10,10,10]
["—38—"]
["√","330","肝功能","直接胆红素(DBIL)","★","★","★","用于黄疸性肝炎及各类溶血性黄疸的诊断与鉴别诊断。",null,null,5,5,5]
["√","451112","肝功能","白蛋白(ALB)","★","★","★","检测肠道吸收障碍、营养不良、慢性消耗性疾病、肾病综合征、肝硬化等。",null,null,5,5,5]
["√","45945","肝功能","谷草与谷丙比值","★","★","★","可检测急、慢性病毒性肝炎、酒精性肝病、肝癌、肝硬化、脂肪肝等。",null,null,0,0,0]
["√","45998","胆红素三项","总胆红素(TBIL)、直接胆红素(DBIL)、间接胆红素(IBIL)","★","★","★","用于黄疸性肝炎及各类溶血性黄疸的诊断与鉴别诊断。",null,null,15,15,15]
["√","45999","蛋白四项","总蛋白(TP)、白蛋白(ALB)、球蛋白(GLO)、白/球比值(A/G)","★","★","★","可检测肝脏疾病、营养不良、肾病综合征及慢性消耗性疾病、肠道吸收障碍、营养不良、慢性消耗性疾病、肾病综合征、肝硬化、慢性肝脏疾病、M球蛋白血症、自身免疫性疾病等。",null,null,22,22,22]
["√","血脂"]
["√","369","血脂七项","甘油三酯(TG)、总胆固醇(CHOL)、高密度脂蛋白（HDL）、低密度脂蛋白（LDL）、载脂蛋A1(ApoAI)、载脂蛋白B(APO-B)、脂蛋白a(LP-a)","★","★","★","用于动脉粥样硬化、高血压、脑血管病、冠心病、糖尿病、肥胖与高脂血症、肾病综合症等预警及诊断。",null,null,100,100,100]
["√","89582","血脂五项","载脂蛋A1(ApoAI)、载脂蛋白B(APO-B)、高密度脂蛋白（HDL）、低密度脂蛋白（LDL）、脂蛋白aLP（Lp-a）","★","★","★","用于动脉粥样硬化、高血压、脑血管病、冠心病、糖尿病、肥胖与高脂血症、肾病综合症等预警及诊断。",null,null,80,80,80]
["√","211","血脂四项","甘油三酯(TG)、总胆固醇(CHOL)、高密度脂蛋白（HDL）、低密度脂蛋白（LDL）","★","★","★","用于评估受检者的脂肪代谢水平及血脂代谢紊乱评价、动脉粥样硬化性疾病危险性预测和营养学评价。",null,null,40,40,40]
["√","76707","血脂三项","甘油三酯(TG)、总胆固醇(CHOL)、高密度脂蛋白（HDL）","★","★","★","血脂浓度与心脑血管疾病关系密切，对诊断动脉硬化症，冠心病及肾病综合症有参考意义。",null,null,30,30,30]
["√","451125","血脂二项","甘油三酯(TG)、总胆固醇(CHOL)","★","★","★","血脂浓度与心脑血管疾病关系密切，对诊断动脉硬化症，冠心病及肾病综合症有参考意义。",null,null,20,20,20]
["√","45980","血脂一项","甘油三脂（TG）","★","★","★","血脂浓度与心脑血管疾病关系密切，对诊断动脉硬化症，冠心病及肾病综合症有参考意义。",null,null,10,10,10]
["√","335","血脂一项","总胆固醇(CHOL)","★","★","★","血脂浓度与心脑血管疾病关系密切，对诊断动脉硬化症，冠心病及肾病综合症有参考意义。",null,null,10,10,10]
["√","441233","血脂一项","低密度脂蛋白（LDL）","★","★","★","血脂浓度与心脑血管疾病关系密切，对诊断动脉硬化症，冠心病及肾病综合症有参考意义。",null,null,10,10,10]
["√","451135","载脂蛋白A(APO-A)","载脂蛋白A1(ApoAI)","★","★","★","是诊断冠心病的灵敏指标。",null,null,20,20,20]
["√","376","载脂蛋白B(APO-B)","载脂蛋白B(APO-B)","★","★","★","是检测动脉粥样硬化及诊断冠心病的灵敏指标。",null,null,20,20,20]
["√","肾功能"]
["√","451124","肾功能三项","尿素（Urea）、肌酐（CR）、尿酸（UA）","★","★","★","主要用于了解肾功能异常，痛风，尿酸偏高等。",null,null,30,30,30]
["√","451123","肾功能二项","尿素（Urea）、肌酐（CR）","★","★","★","尿素氮(Urea)是肾脏滤过代谢的最终产物，当肾细胞损害时，体内代谢产物堆积，此时血清中之尿素氮数值升高；肌酐(CR)检测肾脏的滤过功能。用于筛查急慢性肾炎、尿毒症、肾衰竭等疾病 ",null,null,20,20,20]
["√","451130","肌酐","肌酐（CR）","★","★","★","  肌酐（CR）检测肾脏的排泄功能",null,null,10,10,10]
["√","451133","尿素(Urea)","尿素(Urea)","★","★","★","尿素氮(Urea)是肾脏滤过代谢的最终产物，当肾细胞损害时，体内代谢产物堆积，此时血清中之尿素氮数值升高；",null,null,10,10,10]
["√","350","尿酸","尿酸（UA）","★","★","★","尿酸增高提示痛风、肾功下降、代谢综合征及尿酸类肾结石等疾病存在的可能。",null,null,10,10,10]
["√","451111","尿微量白蛋白","尿微量白蛋白（U-ALb）","★","★","★","是预测糖尿病、高血压、心血管疾病肾血管损伤的敏感指标,，也是早期肾损伤的金标准。",null,null,80,80,80]
[null,"441316","ACR(早期肾功能筛查)","尿微量白蛋白（U-ALb）","★","★","★","是预测糖尿病、高血压、心血管疾病肾血管损伤的敏感指标,，也是早期肾损伤的金标准。某一点段的尿液微量白蛋白检测易受其他因素的干扰，导致假阴性或假阳性，如果用尿肌酐做校正可消除尿量对尿微量白蛋白排量的影响，因此ACR能更准确地反映肾功能状态。",null,null,80,80,80]
[null,null,null,"尿肌酐（Cr）","★","★","★"]
[null,null,null,"ACR=U-ALb/Cr","★","★","★"]
["√",441263,"视黄醇结合蛋白","视黄醇结合蛋白（RBP）",null,null,null,"评价肾脏疾病，特别是肾小管损伤的良好指标，还可作为肝功能早期损害和监护治疗的指标。",null,null,80,80,80]
["√","344","胱抑素","胱抑素C","★","★","★","血浆胱抑素C是检测肾功能较稳定的指标，不易受其它因素的影响,且诊断准确性明显优于血清肌酐。对评估老年人肾功能异常时较肌酐更有意义。",null,null,80,80,80]
["√","甲状腺功能"]
["√","45824","甲状腺功能七项","促甲状腺激素（TSH）、三碘甲腺原氨酸（T3）、甲状腺素（T4）、游离三碘甲状原氨酸(FT3)、游离甲状腺素检测(FT4)、甲状腺球蛋白(TG)、甲状腺球蛋白抗体TGA","★","★","★","是甲状腺机能亢进或减退，及其他各类急慢性甲状腺疾病的诊断指标",null,null,420,420,420]
["√","451086","甲状腺功能五项","促甲状腺激素（TSH）、三碘甲腺原氨酸（T3）、甲状腺素（T4）、游离三碘甲状原氨酸(FT3)、游离甲状腺素检测(FT4)","★","★","★","是甲状腺机能亢进或减退，及其他甲状腺疾病的诊断指标",null,null,315,315,315]
["√","441499","甲状腺功能四项","促甲状腺激素（TSH）、游离三碘甲状原氨酸(FT3)、游离甲状腺素检测(FT4、甲状腺球蛋白(TG)","★","★","★","检查甲状腺功能，甲亢、甲低的辅助诊断以及桥本氏病，甲状腺癌术后转移，突眼甲状腺炎、亚急性甲状腺炎活动期等",null,null,240,240,240]
["√","451108","游离甲状腺功能三项","促甲状腺激素（TSH）、游离三碘甲状原氨酸(FT3)、游离甲状腺素检测(FT4)","★","★","★","是甲状腺机能亢进或减退，及其他甲状腺疾病的诊断指标",null,null,190,190,190]
["—39—"]
["√","45766","甲状腺功能二项","三碘甲腺原氨酸（T3）、甲状腺素（T4）","★","★","★","用于评价甲状腺功能及甲状腺疾病",null,null,130,130,130]
["√","451085","甲状腺功能","促甲状腺素(TSH)","★","★","★","检查甲状腺功能，甲亢、甲低的辅助诊断",null,null,65,65,65]
["√","451098","甲状腺功能","游离三碘甲状原氨酸(FT3)","★","★","★","检查甲状腺功能，甲亢、甲低的辅助诊断",null,null,65,65,65]
["√","451097","甲状腺功能","游离甲状腺素检测(FT4)","★","★","★","检查甲状腺功能，甲亢、甲低的辅助诊断",null,null,65,65,65]
["√","66471","甲状腺球蛋白（TG)","甲状腺球蛋白(TG)","★","★","★","见于桥本氏病，甲状腺癌术后转移，甲状腺功能亢进、，甲状腺功能减退、突眼甲状腺炎、亚急性甲状腺炎活动期等，TG升高",null,null,46,46,46]
["√","肝炎标志物"]
["√","451142","乙肝表面抗原(HBsAg)定性（自选项目）","乙肝表面抗原(HBsAg)","★","★","★","HBsAg阳性是感染乙肝病毒的指标",null,null,7,7,7]
["√","451144","乙肝表面抗体(HBsAb)定性（自选项目）","乙肝表面抗体(HBsAb)","★","★","★","检测体内是否有乙肝病毒保护性抗体",null,null,7,7,7]
["√","451103","乙肝e抗原(HBeAg)定性（自选项目）","乙肝e抗原(HBeAg)","★","★","★","是乙型肝炎病毒感染和传染性大小的指标；也是乙型肝炎治疗后观察疗效的指标。",null,null,7,7,7]
["√","45978","乙肝六项定性（自选项目）","乙肝表面抗原(HBsAg)、乙肝表面抗体(HBsAb)、乙肝e抗原(HBeAg)、乙肝e抗体(HBeAb)、乙肝核心抗体(HBcAb)、乙肝核心IgM抗体定性","★","★","★","检测急性乙型肝炎，慢性迁延性肝炎，慢性活动性肝炎，HBsAg携带者，乙肝疫苗接种后是否出现抗体。",null,null,65,65,65]
["√","278","乙肝五项定性（自选项目）","乙肝表面抗原(HBsAg、乙肝表面抗体(HBsAb)、乙肝e抗原(HBeAg)、乙肝e抗体(HBeAb)、乙肝核心抗体(HBcAb)","★","★","★","检测急性乙型肝炎，慢性迁延性肝炎，慢性活动性肝炎，HBsAg携带者，乙肝疫苗接种后是否出现抗体。",null,null,40,40,40]
["√","45977","乙肝二项定性（自选项目）","乙肝表面抗原(HBsAg)、乙肝表面抗体(HBsAb)","★","★","★","检测体内是否感染乙肝病毒或体内是否产生乙肝病毒保护性抗体",null,null,14,14,14]
["√","441235","乙肝表面抗原(HBsAg)定量（自选项目）","乙肝表面抗原(HBsAg)","★","★","★","是检测乙肝病毒在体内的含量",null,null,80,80,80]
["√","441236","乙肝表面抗体(HBsAb)定量（自选项目）","乙肝表面抗体(HBsAb)","★","★","★","检测乙肝病毒保护性抗体在体内的含量",null,null,80,80,80]
["√","451102","乙肝e抗原(HBeAg)定量（自选项目）","乙肝e抗原(HBeAg)","★","★","★","是乙型肝炎病毒感染和传染性大小的指标；也是乙型肝炎治疗后观察疗效的指标定量检测。",null,null,80,80,80]
["√","45801","乙肝标志物定量（五项）（自选项目）","乙肝表面抗原定量(HBsAg)、乙肝表面抗体定量(HBsAb)、乙肝e抗原(HBeAg)定量、乙肝e抗体(HBeAb)定量、乙肝核心抗体(HBcAb)定量","★","★","★","是急性乙型肝炎，慢性迁延性肝炎，慢性活动性肝炎，HBsAg携带者，乙肝疫苗接种后是否出现抗体的定量检测，也是乙型肝炎病毒传染性大小及治疗后观察疗效的指标。",null,null,300,300,300]
["√","45811","乙肝标志物定量检测（1.3.5）","乙肝表面抗原定量(HBsAg)、乙肝e抗原(HBeAg)定量、乙肝核心抗体(HBcAb)定量","★","★","★","是急性乙型肝炎，慢性活动性肝炎的定量检测，也是乙型肝炎病毒传染性大小及治疗后观察疗效的指标。",null,null,180,180,180]
["√","451105","乙肝标志物定量检测（1.4.5）","乙肝表面抗原定量(HBsAg)、乙肝e抗体(HBeAb)定量、乙肝核心抗体(HBcAb)定量","★","★","★","是慢性迁延性肝炎，慢性活动性肝炎的定量检测，也是乙型肝炎病毒传染性大小及治疗后观察疗效的指标。",null,null,180,180,180]
["√","45812","乙肝标志物定量检测（1.2.5）","乙肝表面抗原定量(HBsAg)、乙肝表面抗体定量(HBsAb)、乙肝核心抗体(HBcAb)定量","★","★","★","是检测体内乙肝病毒或乙肝病毒保护性抗体及核心抗体的含量",null,null,180,180,180]
["√","451005","乙肝DNA定量（自选项目）","乙肝DNA定量","★","★","★","通过基因检测了解乙肝病毒在体内的复制情况和传染程度",null,null,180,180,180]
["√","229","甲肝抗体定性","甲肝抗体检测IgM(HAV-Ab-IgM)","★","★","★","是急性甲型病毒感染的重要标志物",null,null,20,20,20]
["√","230","丙肝抗体定性","丙肝抗体检测(HCV-Ab)","★","★","★","是诊断丙型肝炎病毒感染的重要标志物",null,null,36,36,36]
["√","451120","戊肝抗体定性(HEV-Ab：IgM)","戊肝抗体检测(HEV-Ab)","★","★","★","是诊断戊型肝炎病毒感染的重要标志物",null,null,60,60,60]
[null,"451120","戊肝抗体定性(HEV-Ab：IgG)","戊肝抗体检测(HEV-Ab)","★","★","★","是诊断戊型肝炎病毒感染的重要标志物",null,null,60,60,60]
["√","451121","丁肝抗体定性检测(HDV-Ab：IgM)","丁肝抗体检测(HDV-Ab)","★","★","★","是诊断丁型肝炎病毒感染的重要标志物",null,null,45,45,45]
["√","451154","丙肝病毒定量RNA","丙肝病毒定量(HCV-RNA)","★","★","★","用于确定感染、指导治疗和判断应答",null,null,160,160,160]
["√","45967","肝病毒抗体定性四项","甲肝抗体检测IgM(HAV-Ab-IgM)、丙肝抗体检测(HCV-Ab)、戊肝抗体定性检测(HEV-Ab：IgM)、丁肝抗体定性检测(HDV-Ab：IgM)","★","★","★","甲、丙、丁、戊型肝炎的筛查及诊断",null,null,160,160,160]
["√","糖尿病检测及胰功能检测"]
["√","45924","糖尿病三项","血糖(Glu)、糖化血红蛋白（GHB）、尿微量白蛋白（U-ALb）","★","★","★","用于签别糖尿病及糖尿病患者病症状况。尿微量白蛋白是预测糖尿病、高血压、心血管疾病、肾脏损伤的敏感指标",null,null,180,180,180]
["√","45988","糖耐量试验","血糖、血糖(餐后30分钟)、血糖(餐后1小时)、血糖(餐后2小时)、血糖(餐后3小时)","★","★","★","用以了解胰岛β细胞功能和机体对血糖的调节能力，是诊断糖尿病的确诊试验",null,null,50,50,50]
["√","441277","血淀粉酶（有单请提前通知医务部）","血清淀粉酶（AMY）",null,null,null,"主要用于急性胰腺炎的诊断。口服避孕药、可待因、吗啡、麻醉药、磺胺以及唾液污染标本会使标本测定结果偏低",null,null,30,30,30]
["√","046","血糖","血糖②(GLU)","★","★","★","从血糖水平了解是否有低血糖、糖尿病.了解血糖控制情况等",null,null,10,10,10]
["—40—"]
["√","451126","血糖(餐后30分)","血糖(餐后30分钟)","★","★","★","是诊断和发现糖尿病的另一种重要辅助诊断方法。",null,null,10,10,10]
["√","451127","血糖(餐后1小时)","血糖(餐后1小时)","★","★","★","是诊断和发现糖尿病的另一种重要辅助诊断方法。",null,null,10,10,10]
["√","451128","血糖(餐后2小时)","血糖(餐后2小时)","★","★","★","是诊断和发现糖尿病的另一种重要辅助诊断方法。",null,null,10,10,10]
["√","451129","血糖(餐后3小时)","血糖(餐后3小时)","★","★","★","是诊断和发现糖尿病的另一种重要辅助诊断方法。",null,null,10,10,10]
["√","451115","糖化血红蛋白(GHB)","糖化血红蛋白②(GHb)","★","★","★","是糖尿病诊断和监控的评价指标，通常可以反映糖尿病患者近8～12周的血糖控制情况。",null,null,90,90,90]
["√","451095","胰岛素(Ins)","胰岛素测定(INS)","★","★","★","空腹胰岛素测定，是用于糖尿病类型鉴别诊断的指标",null,null,70,70,70]
["√","451134","胰岛素抗体(INS-Ab)","胰岛素抗体(INS-Ab)","★","★","★","指导选用胰岛素的剂型和用量",null,null,40,40,40]
["√","45927","C肽","C-肽测定(C-P)","★","★","★","用于糖尿病分型，评估胰岛β细胞功能等",null,null,50,50,50]
["√","451161","C肽(餐后两小时)","C肽(餐后两小时)","★","★","★","用于糖尿病分型，评估胰岛β细胞功能等",null,null,50,50,50]
["√","451162","果糖胺(FMN)","果糖胺(FMN)","★","★","★","果糖胺是测定可反映患者过去1-2周内平均血糖水平",null,null,60,60,60]
["√","45828","胰功能三项","胰岛素测定(INS)、胰岛素抗体(INS-Ab)、C-肽测定(C-P)","★","★","★","了解胰脏的功能状态",null,null,153,153,153]
["√","心功能检测"]
["√","45911","心功能二项","乳酸脱氢酶(LDH)、肌酸激酶(CK)","★","★","★","用于心肌梗塞、心肌炎、皮肌炎等的辅助诊断",null,null,25,25,25]
["√","45899","心功能六项 ","天门冬氨酸氨基转移酶②(AST)、乳酸脱氢酶(LDH)、肌酸激酶(CK)、肌酸激酶同工酶(CK-MB)、乳酸脱氢酶同工酶(LDH-1)、α-羟丁酸脱氢酶(α-HBDH)","★","★","★","用于心肌梗塞、心肌炎、皮肌炎等的辅助诊断",null,null,100,100,100]
["√","66422","肌酸激酶","肌酸激酶(CK)","★","★","★","常用于骨骼肌、心肌、脑组织这些疾病的诊断。",null,null,15,15,15]
["√","451000","肌酸激酶同工酶","肌酸激酶同工酶(CK-MB)","★","★","★","诊断及监测AMI病人病情敏感而特异的指标。",null,null,30,30,30]
["√","451131","心肌酶谱","乳酸脱氢酶(LDH)","★","★","★","用于心肌梗塞、心肌炎、肌肉损伤等辅助诊断。",null,null,10,10,10]
["√","451132","心肌酶谱","α-羟丁酸脱氢酶(α-HBDH)","★","★","★","用于心肌梗塞、心肌炎、肌肉损伤等辅助诊断。",null,null,11,11,11]
["√","心脑功能检测"]
["√","66447","肌红蛋白","肌红蛋白(Mb)","★","★","★","判断有无再灌的较敏感而准确的指标,是AMI的早期诊断标志物,能用于判断再梗死。",null,null,140,140,140]
[null,"441384","肌钙蛋白","肌钙蛋白（TPI)","★","★","★","是AMI最理想的标志物,当心肌损伤，TPI在4-6小时后在血液中升高，在体内可持续6-10天，有较高的特异性与敏感性。",null,null,69,69,69]
["√","66445","心脑血管危险因子一项","同型半胱氨酸（HCY）","★","★","★","用于冠心病、动脉硬化、心梗、脑梗等的早期预警。",null,null,100,100,100]
["√","66446","心脑血管危险因子一项","脂蛋白a(LP-a)","★","★","★","可评定动脉粥样硬化。",null,null,50,50,50]
["√","254","心脑血管危险因子二项","同型半胱氨酸（HCY）、脂蛋白a(LP-a)","★","★","★","对预防中风、冠心病、栓塞、动脉粥样硬化等老年易发病等具有重要作用。",null,null,150,150,150]
["√",441280,"髓过氧化物酶（MPO)","髓过氧化物酶（MPO)",null,null,null,"MPO水平的升高不仅与患冠状动脉疾病易感性相关，还可以预测早期患心肌梗死的危险性及将来发生心血管事件危险性较高的患者。",null,null,180,180,180]
["√","无单项","脂蛋白相关磷脂酶 A 2 （Lp-PLA 2 ）","脂蛋白相关磷脂酶 A 2 （Lp-PLA 2 ）","★","★","★","检测心脑血管疾病的中、短期指标，能够直接反映动脉粥样硬化斑块的不稳定性；预警/预测斑块的形成与破裂，是心血管不良事件的独立危险因子；不受其它炎症性疾病的影响。另外，这项检测对患者的治疗与复发有预后评估的功能。",null,null,270,270,270]
["√","441462","超敏 C  反应蛋白 （hs-CRP）","超敏 C  反应蛋白 （hs-CRP）","★","★","★","作为炎症标志物，能反映心血管疾病的严重性和致命性；用以评价冠状血管炎症病变造成的心肌缺血程度；预示动脉粥样斑块是否稳定。",null,null,40,40,40]
["√","441442","心脑血管危险因子三项","Lp-PLA2、MPO、hs-CRP","★","★","★","在心脑血管炎症的发生、斑块的形成、稳定斑块演变成易损斑块、易损斑块破裂形成血栓的过程中，脂蛋白相关磷脂酶 A 2 及髓过氧化物酶直接反映斑块的不稳定性；超敏 C 反应蛋白出现在一个相对较早期的阶段，反映炎症的严重度，对易损斑块的形成有着预示作用；对于心梗、脑梗的预警、预防和预后评估可增加准确性和实用意义，显著地大于仅做了三项检测中的任何单项检测的结果。",null,null,450,450,450]
["√","风湿、类风湿疾病"]
["√","451020","风湿、类风湿疾病","血沉①(ESR)","★","★","★","又称红细胞沉降率，严重贫血、结核和风湿活动期、炎性疾病或急性感染、恶性肿瘤等可使血沉值增高。",null,null,10,10,10]
["√","451143","风湿、类风湿疾病","抗'O'定量","★","★","★","抗链“O”增高提示链球菌感染",null,null,40,40,40]
["√","414","风湿、类风湿疾病","C反应蛋白(CRP)定量","★","★","★","用于各种急慢性感染、组织坏死、恶性肿瘤等筛查。",null,null,40,40,40]
["√","400","风湿、类风湿疾病","类风湿因子(RF)定量","★","★","★","类风湿性关节炎的筛查。",null,null,30,30,30]
["—41—"]
["√","241","风湿三项定量","抗链“O”定量（ASO）、C反应蛋白定量（CRP）、类风湿因子定量（RF）","★","★","★","检查是否有风湿活动和类风湿性病变",null,null,110,110,110]
["√","451176","风湿四项","血沉（ESR）、抗链“O”定量（ASO）、C反应蛋白定量（CRP）、类风湿因子定量（RF）","★","★","★","检查是否有风湿活动和类风湿性病变",null,null,120,120,120]
["√","骨检测"]
["√","45929","骨代谢四项","骨钙素(OST)、甲状旁腺素(PTH)、降钙素(CT)、骨碱性磷酸酶(BAP)","★","★","★","　骨代谢检测是一类源于骨基质或骨细胞的代谢指标，是测定骨代谢比较灵敏、特异和无创的指标，能在完整骨细胞分子水平上精确地评价骨转换，能动态反映全身骨代谢变化。可对儿童骨质的生长发育异常，中老年人雄、雌激素降低导致的高骨转换、骨量减少、骨质疏松症、骨折、骨肿瘤转移等进行风险评估和疗效监侧。",null,null,274,274,274]
["√","89586","骨特异性碱性磷酸酶","骨碱性磷酸酶(BAP)","★","★","★","是成骨细胞的特异性指标,用于变形性骨炎诊断和病情的检测。",null,null,50,50,50]
["√","451168","降钙素(CT)","降钙素(CT)","★","★","★","用于降低血钙，降钙素可作为甲状腺肿瘤的诊断、观察临床疗效、提示有无肿瘤残余或复发的重要标志物。",null,null,88,88,88]
["√","451173","骨钙素(OST)","骨钙素(OST)","★","★","★","升高：见于骨质合成时，尤其是骨损伤后骨质合成早期，绝经后骨质疏松，甲旁亢性骨质疏松症。",null,null,65,65,65]
["√","45981","电解质测定","钾元素(K)、钠元素(NA)、氯元素(CL)、钙(CA)","★","★","★","可以维持人体内渗透压的平衡，衡量人体健康状况的因素之一。",null,null,32,32,32]
["√","220","血钙","钙(CA)","★","★","★","判断人体钙元素平衡状态，评价营养状况，预防微量元素失衡所致疾病的发生。增高见于甲状旁腺机能亢进，骨肿瘤，急性骨萎缩、骨折和肢体麻痹，减低见于甲状旁腺机能减低，维生素Ｄ缺乏症，儿童低血钙症，甲状腺切除后等",null,null,20,20,20]
["√","微量元素检测"]
["√","451157","微量元素六项(年龄＞=7岁)","钙元素(Ca)、镁元素(Mg)、铜元素(Cu)、锌元素①(Zn)、铁元素①(Fe)、铅元素(Pb)","★","★","★","判断人体六种微量元素平衡状态，评价营养状况，预防微量元素失衡所致疾病的发生。",null,null,80,80,80]
["√","451170","微量元素六项(年龄＜7岁)","钙元素(Ca)、镁元素(Mg)、铜元素(Cu)、铅元素(Pb)、锌元素②(Zn)、铁元素②(Fe)","★","★","★","判断人体六种微量元素平衡状态，评价营养状况，预防微量元素失衡所致疾病的发生。",null,null,80,80,80]
["√","451158","微量元素五项(年龄＞=7岁)","钙元素(Ca)、镁元素(Mg)、铜元素(Cu)、锌元素①(Zn)、铁元素①(Fe)","★","★","★","判断人体五种微量元素平衡状态，评价营养状况，预防微量元素失衡所致疾病的发生。",null,null,50,50,50]
["√","451171","微量元素五项(年龄＜7岁)","钙元素(Ca)、镁元素(Mg)、铜元素(Cu)、锌元素②(Zn)、铁元素②(Fe)","★","★","★","判断人体五种微量元素平衡状态，评价营养状况，预防微量元素失衡所致疾病的发生。",null,null,50,50,50]
["√","45997","铅元素（外送）","铅元素(Pb)","★","★","★","为有毒金属元素，增高可损伤生殖细胞及性功能，贫血、胃肠功能紊乱，儿童智力下降和行为异常等",null,null,30,30,30]
["√","激素检测"]
["√","45752","男性激素六项","促卵泡激素(FSH)、促黄体生成素(LH)、雌二醇(E2)、睾酮(T)、孕酮(PRO)、垂体泌乳素(PRL)","★",null,null,"检测体内性激素水平、对男性不育、性发育缺陷、性腺发育不全、染色体异常具有诊断价值",null,null,380]
["√","45750","男性激素四项","促卵泡激素(FSH)、促黄体生成素(LH)、睾酮(T)、垂体泌乳素(PRL)","★",null,null,"检测体内性激素水平、对男性不育、性发育缺陷、性腺发育不全、染色体异常具有诊断价值",null,null,260]
["√","45749","男性激素三项","促卵泡激素(FSH)、促黄体生成素(LH)、睾酮(T)","★",null,null,"检测体内性激素水平、对男性不育、性发育缺陷、性腺发育不全、染色体异常具有诊断价值",null,null,190]
["√","253","女性激素六项","促卵泡激素(FSH)、促黄体生成素(LH)、雌二醇(E2)、睾酮(T)、孕酮(PRO)、垂体泌乳素(PRL)",null,"★","★","检测女性体内雌激素水平，对闭经、性早熟、妊娠、不孕不育、泌乳素瘤等有诊断价值",null,null,380,380,380]
["√","45746","女性激素四项","促卵泡激素(FSH)、促黄体生成素(LH)、雌二醇(E2)、孕酮(PRO)",null,"★","★","检测女性体内雌激素水平，对闭经、性早熟、妊娠、不孕不育、泌乳素瘤等有诊断价值",null,null,260,260,260]
["√","45745","女性激素三项","促卵泡激素(FSH)、促黄体生成素(LH)、孕酮(PRO)",null,"★","★","检测女性体内雌激素水平，对闭经、性早熟、妊娠、不孕不育、泌乳素瘤等有诊断价值",null,null,190,190,190]
["√","451087","性激素检测","促卵泡激素(FSH)",null,"★","★","性激素水平检测，帮助恢复荷尔蒙平衡，改善慢性病，预防老化。",null,null," ",50,50]
["√","451088","性激素检测","泌乳素(PRL)","★","★","★","性激素水平检测，了解体内荷尔蒙平衡情况。",null,null,65,65,65]
["√","451090","性激素检测","雌二醇(E2)",null,"★","★","性激素水平检测，了解体内荷尔蒙平衡情况。",null,null,null,60,60]
["√","250","性激素检测","孕酮(P)",null,"★","★","性激素水平检测，了解体内荷尔蒙平衡情况。",null,null,null,60,60]
["√","451089","性激素检测","睾酮(T)","★"," "," ","性激素水平检测，了解体内荷尔蒙平衡情况。",null,null,60," "," "]
["√","451082","性激素检测","β-绒毛促性腺激素(β-HCG)",null,"★","★","增高：①早孕诊断，在受孕一周后即见升高：②多胎妊娠，葡萄胎，绒毛膜癌以及生殖系统的恶性肿瘤等",null,null,null,60,60]
["√","免疫功能检测"]
["—42—"]
["√","441358","细胞免疫（CD3、CD4、CD8）","T淋巴细胞亚群（CD3、CD4、CD8）",null,null,null,"水平了解Th、CTL细胞及体液免疫在自身免疫性疾病发病中的作用，对于恶性肿瘤、自身免疫性疾病、病毒性感染、变态反应等疾病的筛查。",null,null,180,180,180]
[null,null,"NK细胞（CD3/CD16+56）","NK细胞（CD3/CD16+56）",null,null,null,"NK细胞是天然杀伤细胞，其靶细胞主要有某些肿瘤细胞、病毒感染细胞、某些自身组织细胞（如血细胞）病毒感染细胞、某些自身组织细胞（如血细胞）、寄生虫等，因此NK细胞是机体抗肿瘤、抗感染的重要免疫因素，也参与第Ⅱ型超敏反应和移植物抗宿主反应。",null,null,120,120,120]
[null,null,"B细胞（CD3/CD19）","B细胞（CD3/CD19）",null,null,null,"1、B细胞升高多见于慢性细菌感染，自身免疫性疾病，慢性肝病或慢性B淋巴细胞增生性疾病。2、B细胞下降主要见于原发性B细胞缺陷，严重联合性免疫缺陷。",null,null,120,120,120]
["√","45843","人类白细胞抗原","人类白细胞抗原(HLA-B27-DNA)_PCR","★","★","★","辅助诊断强直性脊柱炎",null,null,115,115,115]
[null,null,"人类白细胞抗原","人类白细胞抗原(HLA-B27)筛查——流式细胞术","★","★","★","负责细胞之间的相互识别和诱导免疫反应，调节免疫应答的功能。强直性脊柱炎的特异性诊断指标",null,null,230,230,230]
["√","45742","免疫功能三项","免疫球蛋白G(IgG)、免疫球蛋白A(IgA)、免疫球蛋白M(IgM)","★","★","★","免疫球蛋白IgG IgA IgM均升高，常见于各种慢性感染，慢性肝病，淋巴瘤和系统性红斑狼疮（SLE），类风湿关节炎等。单一免疫球蛋白增高，主要见于免疫增殖性疾病，如多发性骨髓瘤，原发性巨球蛋白血症。降低见于各类免疫缺陷病或长期使用免疫抑制剂的病人",null,null,73,73,73]
["√","76719","免疫功能五项","免疫球蛋白G(IgG)、免疫球蛋白A(IgA)、免疫球蛋白M(IgM)、补体C3(C3)、补体C4(C4)","★","★","★","检测免疫力、辅助诊断免疫系统疾病。",null,null,125,125,125]
["√","45732","补体单体C3","补体C3(C3)","★","★","★","可诊断组织损伤、炎症、感染、传染病早期等。",null,null,25,25,25]
["√","45733","补体单体C4","补体C4(C4)","★","★","★","可诊断皮肌炎、感染、各种恶性肿瘤、自身免疫性溶血性贫血等。",null,null,25,25,25]
["√","性病筛查"]
["√","451116","梅毒血清反应素试验(TRUST)","梅毒血清反应素试验(TRUST)","★","★","★","是梅毒螺旋体感染的过筛试与疗效观察。常用于梅毒感染的大规模普查筛选及流行病学检查。其它一些疾病，如麻风，SLE，硬皮病，结核，雅司病等也有一定的阳性率；如呈阳性须进一步做TPPA检测，以明确诊断。",null,null,20,20,20]
["√","451117","梅毒螺旋体血凝试验(TPPA)","梅毒螺旋体抗体试验(TPPA)","★","★","★","检测患者血清中有无梅毒螺旋体的特异性抗体，对梅毒进行确诊。",null,null,70,70,70]
["√","45933","梅毒二项","梅毒血清反应素试验(TRUST)、梅毒螺旋体抗体试验(TPPA)","★","★","★","是诊断梅毒螺旋体感染的过筛试验，常用于梅毒感染的大规模普查筛选及流行病学检查。其它一些疾病，如麻风，SLE，硬皮病，结核，雅司病等也有一定的阳性率；检测患者血清中有无梅毒螺旋体的特异性抗体，对梅毒进行确诊",null,null,90,90,90]
["√","120","艾滋病抗体(HIV)","艾滋病抗体1+2型(HIV)","★","★","★","艾滋病毒普查，如呈阳性须进一步做诊断性检测",null,null,65,65,65]
["√","感染免疫检测"]
["√","45917","解脲支原体培养+药敏","解脲支原体培养+药敏(UU)","★","★","★","用于支原体感染的检测",null,null,130,null,130]
["√","79705","人型支原体培养+药敏","人型支原体培养+药敏(MH+UU)","★","★","★","用于支原体感染的检测",null,null,130,null,130]
["√","358","支原体两项","解脲支原体培养+药敏(UU)、人型支原体培养+药敏(MH)","★","★","★","用于支原体感染的检测",null,null,260,null,260]
["√","451114","衣原体抗原","衣原体抗原(CT)","★","★","★","阳性结果结合临床可确定沙眼衣原体感染，阴性时不能完全排除，可用细胞培养法确定",null,null,80,null,80]
["√",441266,"肺炎支原体抗体检测两项","肺炎支原体抗体IgM","★","★","★","用于肺炎支原体感染的早期诊断",null,null,50,50,50]
["√",441267,null,"肺炎支原体抗体IgG（还未开展）","★","★","★","用于肺炎支原体感染的既往诊断",null,null,50,50,50]
["√","451003","优生五项","疱疹病毒抗体(I型IgM)、疱疹病毒抗体(II型IgM)、弓形虫抗体(Tox-IGM)、风疹病毒抗体(RV-IgM)、巨细胞病毒抗体(CMV-IgM)","★","★","★","妊娠早期感染可引起流产、死胎、胎儿畸形等",null,null,300,300,300]
["√","451164","疱疹病毒抗体(I型IgG)","疱疹病毒抗体I型IgG (HSV I-IgG)","★","★","★","用于急性感染诊断和器官移植患者的检测",null,null,60,60,60]
["√","451165","疱疹病毒抗体(I型IgM)","疱疹病毒抗体I型IgM (HSV I-IgM)","★","★","★","用于急性感染诊断和器官移植患者的检测",null,null,60,60,60]
["√","451166","疱疹病毒抗体(II型IgG)","疱疹病毒抗体II型IgG (HSV II-IgG)","★","★","★","用于急性感染诊断和器官移植患者的检测",null,null,60,60,60]
["√","451167","疱疹病毒抗体(II型IgM）","疱疹病毒抗体II型IgM (HSV II-IgM)","★","★","★","用于急性感染诊断和器官移植患者的检测",null,null,60,60,60]
["√","451174","弓形虫抗体","弓形虫抗体(Tox-IGM)","★","★","★","检测是否感染易使胎儿致畸的病原体（弓形虫）",null,null,60,60,60]
["√","451217","结核感染","结核杆菌抗体测定（T-Ab）","★","★","★","用于有结核杆菌感染检测的辅助手段。",null,null,46,46,46]
["√","贫血检测指标"]
["√","451091","贫血检测","铁蛋白(Fer)①","★","★","★","检查体内铁缺乏或者铁负荷过量的最灵敏的指标，在临床上常用于缺铁性贫血的诊断。",null,null,70,70,70]
["√","66438","贫血检测（外送单位不做单项）","叶酸(FA)","★","★","★","缺乏：巨幼细胞性贫血",null,null,70,70,70]
["—43—"]
["√","451094","贫血检测（外送单位不做单项）","维生素B12(VitB12)","★","★","★","缺乏：巨幼细胞性贫血",null,null,70,70,70]
["√","45743","贫血三项","维生素B12(VitB12)、铁蛋白(Fer)①、叶酸(FA)","★","★","★","提示贫血类型",null,null,210,210,210]
["√","451095","血红蛋白电泳","血红蛋白电泳（HbA2、HbF、HbA）","★","★","★","辅助诊断地中海贫血和异常血红蛋白病",null,null,46,46,46]
["√","45982","葡萄糖-6-磷酸脱氢酶","葡萄糖-6-磷酸脱氢酶","★","★","★","通过葡萄糖-6-磷酸脱氢酶(G-6-PD)检测,了解新生儿黄疸患儿G-6-PD缺乏情况,为新生儿溶血性黄疸的临床诊断及治疗提供科学依据。",null,null,20,20,20]
["√","45900","地贫初筛","脆性试验","★","★","★","是一组遗传性溶血性贫血。其特点是由于珠蛋白基因的缺陷使血红蛋白中的珠蛋白肽链有一种或几种合成减少或不能合成。导致临床症状轻重不一的、慢性进行性溶血性贫血，因具有遗传性，对优生优育有指导意义",null,null,27,27,27]
["√","451163","地贫基因检测(α,β)"," 地中海贫血基因检测","★","★","★","对α型和β型地中海贫血分型，尤其对孕妇和育龄妇女，对优生优育有指导意义",null,null,368,368,368]
["√","特殊检查"]
["√","451057","肺功能检查","肺活量","★","★","★","了解肺功能状况",null,null,8,8,8]
["√","441276","肺功能检查","肺功能",null,null,null,"肺功能检查包括通气功能、换气功能、呼吸调节功能及肺循环功能等",null,null,30,30,30]
["√","441273","胶囊胃镜","可控胶囊胃镜",null,null,null,"只需吞食一粒胶囊就能检查检查和发现食道，胃和十二指肠的炎症、溃疡、糜烂及其他良恶性病变，尤其对微小的病变能精准的发现。且无痛无创无麻醉、无交叉感染、全方位无死角、检查快捷时间短。适应于传统胃镜不耐受者、儿童、老人机体弱的人群、消化道出血及做过心脏支架手术者。",null,null,5000,5000,5000]
[null,null,"胶囊内镜（胃镜加小肠镜）","食道、胃、十二指肠、小肠",null,null,null,"只需吞食一粒胶囊就能检查和发现食道，胃、十二指肠及小肠的炎症、溃疡、糜烂及其他良恶性病变，尤其对微小的病变能精准的发现。且无痛无创无麻醉、无交叉感染、全方位无死角、检查快捷时间短。适应于传统胃镜不耐受者、儿童、老人机体弱的人群、消化道出血及做过心脏支架手术者。",null,null,7000,7000,7000]
["√","451061","经颅多普勒","脑血管血流检测（TCD）","★","★","★","了解脑血管弹性与血流供应情况",null,null,180,180,180]
["√","003","骨密度检测","超声骨密度","★","★","★","是测量骨强度的检测方法，主要用于骨质疏松症的初筛。",null,null,80,80,80]
["√","451122","胃幽门螺旋杆菌筛","幽门螺旋杆菌抗体(HP-IgG)","★","★","★","主要用于了解胃内有无幽门螺旋杆菌感染，此感染与胃炎、消化性溃疡、胃癌等发病有密切关系。",null,null,60,60,60]
["√","441255","胃幽门螺旋杆菌筛","碳13呼气试验",null,null,null,"通过吹气了解胃内有无幽门螺旋杆菌感染，此感染与胃炎、消化性溃疡、胃癌等发病有密切关系。是最新、快速、无痛苦而且无辐射的幽门螺杆菌检测技术。",null,null,260,260,260]
["√","451080","胃幽门螺旋杆菌筛","碳14呼气试验","★","★","★","通过吹气了解胃内有无幽门螺旋杆菌感染，此感染与胃炎、消化性溃疡、胃癌等发病有密切关系。",null,null,150,150,150]
["√","451213","胃功能三项"," 【胃蛋白酶原Ⅰ（PGⅠ）、胃蛋白酶原Ⅱ（PGⅡ）、PGⅠ/PGⅡ比值】","★","★","★"," 可用于胃癌、胃溃疡、萎缩性胃炎的初筛。",null,null,152,152,152]
[null,"451214","胃泌素G17","胃泌素G17","★","★","★"," 主要用于胃窦部的肿瘤、溃疡及糜烂、萎缩性胃炎的初筛,",null,null,150,150,150]
["√",null,"胃功能四项"," 【胃蛋白酶原Ⅰ（PGⅠ）、胃蛋白酶原Ⅱ（PGⅡ）、PGⅠ/PGⅡ比值】、胃泌素(高於正常值 - 胃竇炎症、糜爛、潰瘍;低於正常值 - 提示胃體粘膜萎縮)","★","★","★"," 可用于整个胃部的肿瘤、溃疡及糜烂、萎缩性胃炎的初筛,。",null,null,302,302,302]
["√",441521,"肠道菌群检测","肠道菌群无创检测（甲烷氢呼气试验）","★","★","★","定性检测小肠内的细菌是否过度生长。因为正常人体代谢不产生甲烷一氢气，呼出的甲烷与氢气全部来自肠道细菌酵解碳水化合物过程中产生的代谢产物。小肠细菌过度生长会引起肠道菌群失调，从而引发腹泻、便秘、口臭、肠易激综合征、肥胖、消瘦等症状，严重的还可以造成肝脏损伤、糖尿病等",null,null,360,360,360]
["√",441522,"肠道菌群检测","肠道菌群基因检测","★","★","★","定量检测：1、菌群构成——幽门螺旋杆菌、艰难梭菌、沙门氏菌、志或贺氏菌、弯曲杆菌，2、慢病的筛查——结直肠癌、心脑血管疾病、II型糖尿病、胃病、胆病、慢性肾炎、风湿免疫疾病、炎性肠炎，3、合理用药——抗生素的耐药性，4、营养饮食，5、舒适睡眠",null,null,2800,2800,2800]
["√","亚健康检测"]
["√","68483","远红外热断层扫描","全身","★","★","★","通过细胞代谢热发现疾病的趋势或早期发现疾病，及时提醒体检人减轻对机体某一组织器官的压力，从而做到防患于未然。是目前世界上唯一一种能够对人体无损伤、无辐射、绿色、原位观察体内细胞群活性，以及细胞群与细胞群之间的关系为基础的全新医学学科。",null,null,1100,1100,1100]
["√","01667","远红外热断层扫描","头部","★","★","★","通过细胞代谢热发现疾病的趋势或早期发现疾病，及时提醒体检人减轻对机体某一组织器官的压力，从而做到防患于未然。是目前世界上唯一一种能够对人体无损伤、无辐射、绿色、原位观察体内细胞群活性，以及细胞群与细胞群之间的关系为基础的全新医学学科。",null,null,80,80,80]
["√","404","远红外热断层扫描","肝脏","★","★","★","通过细胞代谢热发现疾病的趋势或早期发现疾病，及时提醒体检人减轻对机体某一组织器官的压力，从而做到防患于未然。是目前世界上唯一一种能够对人体无损伤、无辐射、绿色、原位观察体内细胞群活性，以及细胞群与细胞群之间的关系为基础的全新医学学科。",null,null,80,80,80]
["√","397","远红外热断层扫描","胆囊","★","★","★","通过细胞代谢热发现疾病的趋势或早期发现疾病，及时提醒体检人减轻对机体某一组织器官的压力，从而做到防患于未然。是目前世界上唯一一种能够对人体无损伤、无辐射、绿色、原位观察体内细胞群活性，以及细胞群与细胞群之间的关系为基础的全新医学学科。",null,null,80,80,80]
["√","380","远红外热断层扫描","胃部","★","★","★","通过细胞代谢热发现疾病的趋势或早期发现疾病，及时提醒体检人减轻对机体某一组织器官的压力，从而做到防患于未然。是目前世界上唯一一种能够对人体无损伤、无辐射、绿色、原位观察体内细胞群活性，以及细胞群与细胞群之间的关系为基础的全新医学学科。",null,null,80,80,80]
["√","312","远红外热断层扫描","肾脏","★","★","★","通过细胞代谢热发现疾病的趋势或早期发现疾病，及时提醒体检人减轻对机体某一组织器官的压力，从而做到防患于未然。是目前世界上唯一一种能够对人体无损伤、无辐射、绿色、原位观察体内细胞群活性，以及细胞群与细胞群之间的关系为基础的全新医学学科。",null,null,80,80,80]
["√","355","远红外热断层扫描","头面部","★","★","★","通过细胞代谢热发现疾病的趋势或早期发现疾病，及时提醒体检人减轻对机体某一组织器官的压力，从而做到防患于未然。是目前世界上唯一一种能够对人体无损伤、无辐射、绿色、原位观察体内细胞群活性，以及细胞群与细胞群之间的关系为基础的全新医学学科。",null,null,120,120,120]
["√","66450","远红外热断层扫描","心血管系统","★","★","★","通过细胞代谢热发现疾病的趋势或早期发现疾病，及时提醒体检人减轻对机体某一组织器官的压力，从而做到防患于未然。是目前世界上唯一一种能够对人体无损伤、无辐射、绿色、原位观察体内细胞群活性，以及细胞群与细胞群之间的关系为基础的全新医学学科。",null,null,160,160,160]
["√","363","远红外热断层扫描","呼吸系统","★","★","★","通过细胞代谢热发现疾病的趋势或早期发现疾病，及时提醒体检人减轻对机体某一组织器官的压力，从而做到防患于未然。是目前世界上唯一一种能够对人体无损伤、无辐射、绿色、原位观察体内细胞群活性，以及细胞群与细胞群之间的关系为基础的全新医学学科。",null,null,120,120,120]
["—44—"]
["√","409","远红外热断层扫描","泌尿系统","★","★","★","通过细胞代谢热发现疾病的趋势或早期发现疾病，及时提醒体检人减轻对机体某一组织器官的压力，从而做到防患于未然。是目前世界上唯一一种能够对人体无损伤、无辐射、绿色、原位观察体内细胞群活性，以及细胞群与细胞群之间的关系为基础的全新医学学科。",null,null,120,120,120]
["√","66428","远红外热断层扫描","免疫系统","★","★","★","通过细胞代谢热发现疾病的趋势或早期发现疾病，及时提醒体检人减轻对机体某一组织器官的压力，从而做到防患于未然。是目前世界上唯一一种能够对人体无损伤、无辐射、绿色、原位观察体内细胞群活性，以及细胞群与细胞群之间的关系为基础的全新医学学科。",null,null,80,80,80]
["√","66451","远红外热断层扫描","男女生殖系统","★","★","★","通过细胞代谢热发现疾病的趋势或早期发现疾病，及时提醒体检人减轻对机体某一组织器官的压力，从而做到防患于未然。是目前世界上唯一一种能够对人体无损伤、无辐射、绿色、原位观察体内细胞群活性，以及细胞群与细胞群之间的关系为基础的全新医学学科。",null,null,80,80,80]
["√","66419","远红外热断层扫描","内分泌系统","★","★","★","通过细胞代谢热发现疾病的趋势或早期发现疾病，及时提醒体检人减轻对机体某一组织器官的压力，从而做到防患于未然。是目前世界上唯一一种能够对人体无损伤、无辐射、绿色、原位观察体内细胞群活性，以及细胞群与细胞群之间的关系为基础的全新医学学科。",null,null,80,80,80]
["√","365","远红外热断层扫描","消化系统","★","★","★","通过细胞代谢热发现疾病的趋势或早期发现疾病，及时提醒体检人减轻对机体某一组织器官的压力，从而做到防患于未然。是目前世界上唯一一种能够对人体无损伤、无辐射、绿色、原位观察体内细胞群活性，以及细胞群与细胞群之间的关系为基础的全新医学学科。",null,null,120,120,120]
["√","45940","远红外热断层扫描","运动系统","★","★","★","通过细胞代谢热发现疾病的趋势或早期发现疾病，及时提醒体检人减轻对机体某一组织器官的压力，从而做到防患于未然。是目前世界上唯一一种能够对人体无损伤、无辐射、绿色、原位观察体内细胞群活性，以及细胞群与细胞群之间的关系为基础的全新医学学科。",null,null,120,120,120]
[null,"肿瘤标志物检测"]
["√","31609","肿瘤标志检测","EB病毒抗体定性(EB)","★","★","★","主要用于鼻咽癌的早期筛查或EB病毒感染的鼻咽炎。",null,null,40,40,40]
["√","27630","肿瘤标志检测","EB病毒DNA定量","★","★","★","目前常用与EB病毒相关的VCA/I gA、EA/I gA进行早期诊",null,null,160,160,160]
["√","451118","肿瘤标志检测","甲胎蛋白定性(AFP)（5月18号停做）","★","★","★","主要用于原发性肝癌的筛查。",null,null,30,30,30]
["√","451119","肿瘤标志检测","癌胚抗原定性(CEA)（5月18号停做）","★","★","★","对消化道肿瘤、肺部肿瘤等有诊断意义",null,null,30,30,30]
["√","451084","肿瘤标志检测","甲胎蛋白定量(AFP)","★","★","★","可提示有无原发性肝癌，生殖腺胚胎性肿瘤，肝硬化等。",null,null,65,65,65]
["√","451193","肿瘤标志检测","癌胚抗原定量(CEA)","★","★","★","为广谱肿瘤标志物，可提示直肠癌、结肠癌、肺癌、乳腺癌、胰腺癌等",null,null,65,65,65]
["√","451096","肿瘤标志检测","总前列腺特异性抗原(T-PSA)","★",null,null,"前列腺癌患者PSA升高。前列腺肥大，前列腺炎时也可见血清PSA水平轻度升高",null,null,90," "," "]
["√","451188","肿瘤标志检测","游离前列腺特异抗原(F-PSA)","★",null,null,"前列腺癌患者PSA升高。前列腺肥大，前列腺炎时也可见血清PSA水平轻度升高",null,null,90," "," "]
["√","451083","肿瘤标志检测","糖类抗原125(CA125)",null,"★","★","是一种卵巢癌相关的肿瘤标志物",null,null," ",138,138]
["√","441254","肿瘤标志检测","附睾蛋白4（HE4)",null,null,null,"是卵巢癌早期诊断的特异性指标，对于早期（I期）的卵巢癌中的敏感性及检测卵巢癌总的敏感性均高于CA125，是卵巢癌敏感及特异的标志物。与CA125联合进行卵巢筛查，可以提高诊断的敏感性和特异性。并可应用于盆腔肿瘤女性恶性卵巢癌的风险评估。",null,null,null,100,100]
["√","451100","肿瘤标志检测","糖类抗原153(CA153)",null,"★","★","是一种乳腺癌相关的肿瘤标志物",null,null," ",138,138]
["√","451082","肿瘤标志检测","β-绒毛促性腺激素(β-HCG)",null,"★","★","增高：①早孕诊断，在受孕一周后即见升高：②多胎妊娠，葡萄胎，绒毛膜癌以及生殖系统的恶性肿瘤等",null,null,null,60,60]
["√","451091","肿瘤标志检测","铁蛋白(SF)","★","★","★","检查体内铁缺乏或者铁负荷过量的最灵敏的指标，在临床上常用于缺铁性贫血、铅中毒及维生素B6缺乏引起贫血（铁利用降低）、恶性肿瘤、肝脏病变、急性感染等。",null,null,70,70,70]
["√","451099","肿瘤标志检测","糖类抗原199(CA199)","★","★","★","是一种与胰腺癌、胆囊癌、结肠癌相关的肿瘤标志物",null,null,150,150,150]
["√","451159","肿瘤标志检测","糖类抗原50(CA50)","★","★","★","胰腺癌、结肠癌等胃肠道恶性肿瘤时可见升高",null,null,50,50,50]
["√","441234","肿瘤标志检测","糖类抗原242(CA242)","★","★",null,"CA242是近年来应用于临床较新的一种肿瘤标志物，主要用于胰腺癌、胆囊癌、结肠癌等消化道癌的检测，灵敏度好、特异性高，特别是胰腺癌的特异性更高",null,null,138,138,138]
["√","451182","肿瘤标志检测","神经元特异性烯醇化酶(NSE)","★","★","★","对小细胞肺癌，神经母细胞瘤等诊断有帮助",null,null,70,70,70]
["√","441520","肿瘤标志检测","胃泌素释放肽前体（ProGRP）","★","★","★","ProGRP可促胚胎肺组织生长作用，胎儿和婴儿体内含量高，过了婴儿期会降低。其主要功能为发现原发和复发的小细胞肺癌，及监测治疗效果。参考值：0-46pg/ml之间。当受检者检测结果大于46pg/ml而小于100pg/ml时，应先排除乳腺疾病、良性肺病、肾功能、甲状腺和前列腺疾病的可能性。无上述疾病情况下建议受检者2-4周后复查一次。如果复查仍在升高，且超过100pg/ml，应怀疑小细胞肺癌。建议去医院做进一步检。",null,null,150,150,150]
["√","451184","肿瘤标志检测","细胞角蛋白19片段(CF21-1)","★","★","★","非小细胞肺癌肿瘤标志物，尤其适用于肺鳞癌。",null,null,90,90,90]
["√","451186","肿瘤标志检测","鳞状上皮细胞抗原(SCC)","★","★","★","阳性见於肺鳞癌，子宫颈癌，食道癌，皮肤、口腔癌等鳞状上皮细胞癌",null,null,115,115,115]
["√","45901","肿瘤标志检测","糖类抗原CA724","★","★","★","时胃肠道恶性肿瘤标志物，检测胃癌的指标之一，但胃肠道良性疾病也可见升高",null,null,138,138,138]
["√","451155","肿瘤标志检测","恶性肿瘤生长因子(TSGF)","★","★","★","是一种广谱肿瘤标志物等",null,null,90,90,90]
["√","451140","岩藻糖苷酶(AFU)","a_L--岩藻糖苷酶(AFU)","★","★","★","可检测原发性肝癌、卵巢癌等.",null,null,30,30,30]
["√","451187","β2微球蛋白(β2MG)","β2微球蛋白(β2MG)","★","★","★","肾功能评价和肿瘤的辅助诊断。",null,null,80,80,80]
["√","451169","生长激素(GH)","生长激素(GH)","★","★","★","调节生长激素的平衡，HGH为一蛋白质类荷尔蒙(多肽)，由脑垂体分泌，通过血液传输到全身。主要用于垂体腺瘤、肾、肺等器官肿瘤的检测。",null,null,58,58,58]
[null,"441362","S9无创大肠癌早期筛查","Septin9基因检测","★","★","★","在大肠癌发病早期，已高度甲基化的Septin9基因能被大肠内的癌细胞释放到外周全血中，参与血液循环。通过检测外周血中Septin9基因甲基化程度，可以初步判断出受检者是否患大肠癌。",null,null,1800,1800,1800]
["√","45797","前列腺癌二项","总前列腺特异性抗原（PSA-T）、游离前列腺特异性抗原（PSA-F）","★ "," ",null,"前列腺癌患者PSA升高。前列腺肥大，前列腺炎时也可见血清PSA水平轻度升高",null,null,180," "," "]
["√","45788","前列腺癌三项","总前列腺特异性抗原（PSA-T）、游离前列腺特异性抗原（PSA-F）、前列腺特异性抗原比值(PSA-R)","★",null,null,"前列腺癌患者PSA升高。前列腺肥大，前列腺炎时也可见血清PSA水平轻度升高（PSA可用于乳腺癌和乳腺良性增生病的鉴别，灵敏度高达96%。还可作为乳腺癌患者预后良好的标志, PSA阳性患者具有更高的生存率和治愈率。另外乳头溢液中PSA 的水平增高可提示患乳腺癌的危险性。）",null,null,220," "," "]
["—45—"]
["√","45912","肺癌抗原二项","神经元特异性烯醇化酶(NSE)、细胞角蛋白19片段(CF21-1)","★ ","★ ","★ ","对小细胞肺癌，神经母细胞瘤等诊断有帮助，",null,null,160,160,160]
["√","45936","肿瘤三项","EB病毒抗体定性(EB)、甲胎蛋白定性(AFP)、癌胚抗原定性(CEA)","★","★","★","主要用于鼻咽癌或EB病毒感染的鼻咽炎、原发性肝癌、消化道、生殖道肿瘤的早期筛查。",null,null,100,100,100]
["√","441389","肿瘤标志物6项检测(TM6)（男性）","甲胎球蛋白(TM6-AFP)、癌胚抗原(TM6-CEA)、糖类抗原50(CA50)、糖类抗原(TM6-CA153)、糖类抗原(TM6-CA199)、前列腺特异性抗原(TM6-PSA)","★","★","★","通过对肿瘤标识物的筛查，主要对体内肝胆胰、乳腺、消化道、肺部、前列腺等器官与系统的肿瘤进行筛查，提示癌肿发生的可能性",null,null,558,558,558]
[null,"441390","肿瘤标志物6项检测(TM6)（女性）","甲胎球蛋白(TM6-AFP)、癌胚抗原(TM6-CEA)、糖类抗原(TM6-CA125)、糖类抗原(TM6-CA153)、糖类抗原(TM6-CA199)、糖类抗原50(CA50)","★","★","★","通过对肿瘤标识物的筛查，主要对体内肝胆胰、乳腺、卵巢、消化道、肺部等器官与系统的肿瘤进行筛查，提示癌肿发生的可能性",null,null,606,606,606]
[null,"441239","男性肿瘤检测(12项)","甲胎蛋白定量(AFP)、癌胚抗原定量(CEA)、糖类抗原153(CA-153)、糖类抗原199(CA-199)、EB病毒抗体定性(EB)、a_L--岩藻糖苷酶(AFU)、糖类抗原50(CA50)、总前列腺特异性抗原(T-PSA)、游离前列腺特异抗原(F-PSA)、前列腺特异性抗原比值(PSA-R)、糖类抗原CA724、神经元特异性烯醇化酶(NSE)、细胞角蛋白19片段(CF21-1)","★","★","★","通过对肿瘤标识物的筛查，提示全身部位癌肿发生的可能性",null,null,1016,null," "]
["√","441240","女性肿瘤检测（12项)","甲胎蛋白定量(AFP)、癌胚抗原定量(CEA)、糖类抗原125(CA-125)、糖类抗原153(CA-153)、糖类抗原199(CA-199)、EB病毒抗体定性(EB)、a_L--岩藻糖苷酶(AFU)、糖类抗原50(CA50)、糖类抗原CA724、细胞角蛋白19片段(CF21-1)、神经元特异性烯醇化酶(NSE)、糖类抗原242(CA242)",1059,"★","★","通过对肿瘤标识物的筛查，提示全身部位癌肿发生的可能性",null,null,null,1112]
[null,"441239","男性肿瘤检测全项(19项)","甲胎蛋白定量(AFP)、癌胚抗原定量(CEA)、糖类抗原153(CA-153)、糖类抗原199(CA-199)、鳞状上皮细胞抗原(SCC)、EB病毒抗体定性(EB)、a_L--岩藻糖苷酶(AFU)、糖类抗原50(CA50)、β2微球蛋白(β2MG)、总前列腺特异性抗原(T-PSA)、游离前列腺特异抗原(F-PSA)、前列腺特异性抗原比值(PSA-R)、糖类抗原CA724、糖类抗原242(CA242)、神经元特异性烯醇化酶(NSE)、细胞角蛋白19片段(CF21-2)、恶性肿瘤生长因子(TSGF)、铁蛋白(Fer)、生长激素(GH)","★","★","★","通过对肿瘤标识物的筛查，提示全身部位癌肿发生的可能性",null,null,1607,null," "]
["√","441240","女性肿瘤检测全项（19项)","甲胎蛋白定量(AFP)、癌胚抗原定量(CEA)、糖类抗原125(CA-125)、糖类抗原153(CA-153)、糖类抗原199(CA-199)、鳞状上皮细胞抗原(SCC)、β2微球蛋白(β2MG)、EB病毒抗体定性(EB)、a_L--岩藻糖苷酶(AFU)、糖类抗原50(CA50)、糖类抗原CA724、糖类抗原242(CA242)、神经元特异性烯醇化酶(NSE)、细胞角蛋白19片段(CF21-2)、恶性肿瘤生长因子(TSGF)、铁蛋白(Fer)、β-绒毛膜促性腺激素(β-HCG)、生长激素(GH)、附睾蛋白4（HE4)",null,"★","★","通过对肿瘤标识物的筛查，提示全身部位癌肿发生的可能性",null,null,null,1685,1685]
["√","高血压检测"]
["√",null,"高血压四项（EDTA抗特殊凝管）","血浆肾素活性测定(PRA)、血管紧张素I(37°C)、血管紧张素I(4°C)、醛固酮(Ald)","★","★","★","临床主要用于高血压诊断、分型等应用。",null,null,130,130,130]
["√","451215","高血压六项（EDTA特殊抗凝管）","血浆肾素活性测定(PRA)、血管紧张素I(37°C)、血管紧张素I(4°C)、血管紧张素Ⅱ测定、醛固酮(Ald)、醛固酮肾素活性比值（ARR)","★","★","★","临床主要用于高血压诊断、分型等应用。",null,null,195,195,195]
["√","过敏原检测"]
["√","45992","过敏原吸入-食物组19项","h1(屋尘)、i6(蟑螂)、d1(户尘螨)、t70(桑树)、e1(猫毛皮屑)、e5(狗毛皮屑)，w14(苋)、f1(鸡蛋白)、f27(贝)、f24（虾）、F23(蟹)、f27(牛肉)、f2(牛奶)、F210(菠萝)、F91(芒果)、、F202(腰果)、mxi（霉菌组合（点青霉/分枝孢霉/烟曲霉/交链孢霉）)、tx4（树花粉组合（栎树/榆树/梧桐/杨树/柳树））、gx1（混合草（肯塔基蓝草/草地羊茅/果园草/小糠草/黑麦草/梯牧草/黄花茅））","★","★","★","辅助诊断吸入引起的过敏性疾病",null,null,570,570,570]
["√","45993","过敏原吸入-食物组28项","w6（艾蒿）、w1（矮豚草）、h1(屋尘)、i6(蟑螂)、d1/d2(屋尘螨/户尘螨)、t70(桑树)、e1(猫毛皮屑)、e5(狗毛皮屑)，w22(葎草）、w14(苋)、f1(鸡蛋白)、f27(贝)、f24（虾）、F23(蟹)、f27(牛肉)、f2(牛奶)、F210(菠萝)、F91(芒果)、f88（羊肉）、F202(腰果)、mxi（霉菌组合（点青霉/分枝孢霉/烟曲霉/交链孢霉）)、tx4（树花粉组合（栎树/榆树/梧桐/杨树/柳树））、gx1（混合草（肯塔基蓝草/草地羊茅/果园草/小糠草/黑麦草/梯牧草/黄花茅））、f13（花生）、f14（黄豆）、f80/f338（龙虾/扇贝）、f41（桂鱼）、f3（鳕鱼）","★","★","★","辅助诊断食入引起的过敏性疾病",null,null,840,840,840]
["√","肝纤维化检测"]
["√","45820","肝纤四项","透明质酸(HA)、层粘连蛋白(LN)、IV型胶原(IV-c)、Ⅲ型前胶原(PC-Ⅲ)","★","★","★","主要用来检查诊断慢性肝病患者病情发展状况和治疗效果，衡量炎症活动度、纤维化程度的重要依据",null,null,140,140,140]
["—46—"]
["√","451153","透明质酸(HA)","透明质酸(HA)","★","★","★","作为反映肝病变程度和肝纤维化程度最敏感、最可靠的指标之一，绝大多数肝病患者血清HA增高，并随肝病加重递增，肝硬的诊断。",null,null,35,35,35]
["√","451152","层粘连蛋白(LN)","层粘连蛋白(LN)","★","★","★","联合检测血清透明质酸、Ⅳ型胶原对判断肝纤维化程度具有重要的意义。",null,null,35,35,35]
["√","451151","Ⅲ型前胶原(PC-Ⅲ)","Ⅲ型前胶原(PC-Ⅲ)","★","★","★","可作为诊断肝纤维化的一个重要指标",null,null,35,35,35]
["√","451150","IV型胶原(IV-c)","IV型胶原(IV-c)","★","★","★","有助于肝纤维化进程观察和疗效评估",null,null,35,35,35]
["√","体液常规检测检测"]
["√","45890","尿常规（15项）","比重、酸碱度、尿糖、酮体、尿白细胞、隐血、尿胆原、尿胆红素、尿蛋白、亚硝酸盐、维生素C、尿镜检4项","★","★","★","可提示有无泌尿系统疾患：如急、慢性肾炎，肾盂肾炎，膀胱炎，尿道炎，肾病综合征，狼疮性肾炎，血红蛋白尿，肾梗塞、肾小管重金属盐及药物导致急性肾小管坏死，肾或膀胱肿瘤以及有无尿糖等",null,null,10,10,10]
["√","45888","大便常规","颜色、外观性状、红细胞、白细胞、粘液、虫卵、真菌","★","★","★","主要检查项目是大便的性状、是否存在白细胞、以及是否存在潜血等情况",null,null,10,10,10]
["√","45921","大便潜血","大便潜血(OB)","★","★","★","检查粪便中隐藏的红细胞或血红蛋白的一项实验。这对检出引起消化道出血的疾病：如急慢性胃炎、胃十二指肠溃疡、胃癌、肠癌等是非常有用的。",null,null,17,17,17]
["√","45928","前列腺液常规（暂停做）","前列腺炎的检测","★","★","★","看有无细胞、磷脂小体数量和滴虫、精子、肿瘤细胞（需染色检查）、淀粉样体以及有无细菌。",null,null,15,15,15]
["√","45875","早孕试验","尿HCG",null,"★","★","早孕诊断：受孕10天尿中即可检出，葡萄胎、绒癌时，尿中HCG显著增高。",null,null,10,10,10]
["√","其他特殊检测"]
["√","451093","醛固酮(Ald)","醛固酮(Ald)","★","★","★","测定血清或血浆中醛固酮，对某些疾病的诊断和鉴别诊断",null,null,60,60,60]
["√","45918","尿锰","尿锰","★","★","★","升高锰中毒(尿锰、粪锰升高可作为诊断参考，但不能作为职业性中毒的主要指标)。",null,null,100,100,100]
["√","45964","超氧化物岐化酶","超氧化物岐化酶","★","★","★","可消除生物体在新陈代谢过程中产生的有害物质，具有抗衰老效果",null,null,30,30,30]
["√","66525","血清蛋白电泳","血清蛋白电泳","★","★","★","对于肝、肾疾病和多发性骨髓瘤的诊断有意义。",null,null,30,30,30]
["√","441247","宫颈癌的风险评估","E6/E7mRNA检测（E6/E7蛋白检测）",null,"★","★","E6/E7蛋白这两个基因编码的原癌蛋白是导致子宫颈上皮癌变的重要因子。当HPV或TCT有阳性提示，加作E6/E7mRNA检测，可进一步提高检出宫颈癌发病的几率，若HPV或TCT为阴性，可以避免漏诊的风险，适用于高危型HPV感染时的早期筛查；还可判断手术切除病灶是否安全，以及评估复发风险。",null,null,null,230,230]
["√","441249","维生素营养物质检测","维生素A检测","★","★","★","1、维护皮肤的完整性，防干燥、角化、脱落；2、构成视觉细胞内的感光物质，缺乏可引起眼暗适应能力降低、干涩；3、促进生长发育和维护生殖功能：参与DNA、RNA的合成，促进细胞分化；4、维护和促进免疫功能，维护淋巴细胞库。缺乏易感冒；5、影响铁的运转与贮存，预防贫血",null,null,92,92,92]
["√","45867","维生素D族","维生素D族","★","★","★","用来防治儿童的佝偻病和成人的软骨症，关节痛等等。患有骨质疏松症的人通过添加合适的维生素D和镁可以有效的提高钙离子的吸收度。还被用于降低结肠癌、乳腺癌和前列腺癌的机率，对免疫系统也有增强作用。",null,null,184,184,184]
["√","441250","维生素营养物质检测","维生素E检测","★","★","★","维持细胞的正常代谢，增加机体免预力；调节人体生长发育，维持神经细胞的正常功能；抗氧化作用，清除自由基，保护细胞膜的不饱和脂肪酸；促进性激素分泌，提高生育能力，促进生殖；稳定细胞膜和细胞内酯类部分，减低红细胞脆性，防止溶血。",null,null,92,92,92]
["√","441248","卵巢功能检测","抗缪勒氏管激素（AMH)",null,"★","★","AMH抑制原始卵泡的募集，参与优质卵泡的选择。从而调节卵泡的生长发育。血清AMH水平不受月经周期与外源性激素的影响，与窦卵泡数量和生殖年龄密切相关。能够早期、客观、稳定、准确的评估女性的卵巢功能。用于评估最佳的生育时期，卵巢早衰，预测绝经年龄。（为二聚体糖蛋白，是β-转化生长因子（TGF-β）家族成员之一（2-7ng/ml为正常，小于2ng/ml提示卵巢储备功能降低，小于0.7ng/ml提示卵巢储备功能较低）",null,null,null,300,300]
["√","441252","男性生精功能标记物","抑制素B（IHN-B）","★",null,null,"能反应整个睾丸组织的功能，是睾丸的直接产物，精子发生中成熟的生精细胞刺激它分泌，是目前已知的评价不育男性精子发生最好的内分泌标志物，也可能是反映输精管功能的重要标志物，在区别正常与损伤的精子发生时，抑制素B的测定可以取代睾丸活检。（低于100pg/ml表示生精功能不足）。",null,null,200]
["√","441253","基因检测","乙醛脱氢酶二基因多态性（ALDH2)（酒精代谢酶活性基因检测）","★","★","★","喝酒带来的危害主要来自乙醛，同时它也是使你脸红的元凶。为了消除这个危害，专职代谢乙醛的乙醛脱氢酶2（ALDH2）负责分解他。检测的意义：1. 指导临床正确使用硝酸甘油，减少用药无效导致的意外死亡。 揭示不同个体的酒精代谢，避免乙醛伤害。 ",null,null,460,460,460]
["√","45898","纤维蛋白原测定","纤维蛋白原测定(FG)","★","★","★","用于筛查糖尿病、急性心肌梗死、急性传染病、结缔组织病、急性肾炎、多发性骨髓瘤、休克、大手术后、妊高征、急性感染、恶性肿瘤、先天性低或无FIB血症、遗传性FIB异常、DIC、原发性纤溶症、重症肝炎和肝硬化等。",null,null,23,23,23]
["√","45994","无机磷","无机磷","★","★","★","研究慢性肝病患者血清中无机磷的变化情况与肝功能异常的关系。",null,null,5,5,5]
["√","451172","皮质醇(Cor)","皮质醇(Cor)","★","★","★","用于诊断手术创伤、寒冷、心肌梗或原发性或继发性肾上腺皮质的重要标志。",null,null,55,55,55]
["—47—"]
["√","451021","涂片找淋球菌","涂片找淋球菌","★","★","★","直接涂片镜检阳性者可初步诊断，但阴性不能排除诊断；培养阳性可确诊.",null,null,30,30,30]
["√","451022","涂片找真菌","涂片找真菌","★","★","★","为临床感染的初步诊断和用药提供依据",null,null,30,30,30]
["√","66511","肝吸虫","肝吸虫","★","★","★","可作为肝吸虫病的初诊及普查筛选方法。",null,null,130,130,130]
["√","核磁检查"]
[null,"45948","核磁共振","头颅平扫(MRI)",null,null,null,"核磁共振具有成像参数多、扫描速度快、组织分辨率高和图像更清晰等优点，可帮助医生“看见”不易察觉的早期病变，目前已经成为肿瘤、心脑血管疾病早期筛查的利器。可清晰的显示头颅的良、恶性肿瘤，早期脑梗塞、脑萎缩、脑缺血、脑出血、脑脓肿、脑囊虫、脑血管畸形、脑血管疾病、炎症、先天发育畸形、脑变性病、脑白质病、颅脑损伤等疾病。",null,null,680,680,680]
[null,"441304","核磁共振","脑血管成像（MRA)（不能单独选这项，要加头颅平扫）","★","★","★","MRA是脑血管磁共振成像，是用磁共振扫描脑部血管。MRA可以判断脑血管是否存在栓塞、出血、狭窄，并能确定血管狭窄与闭塞的准确部位。",null,null,680,680,680]
["√","441303","核磁共振","弥散成像（DWI）（不能单独选这项，要加头颅平扫）","★","★","★","DWI对急性、超急性脑梗塞高度的特异性与敏感性 (可达 9 0 %以上 ) ,是急性脑梗塞的金标准。同时还能区别急性期和慢性期的梗塞。",null,null,680,680,680]
["√",451223,"核磁共振","脑垂体MRI",null,null,null,"适用于脑垂体肿瘤，如腺瘤、微腺瘤的筛查等。",null,null,680,680,680]
[null,"441338","核磁共振","眼眶MRI",null,null,null,"适用于眼眶及眼球的占位和炎症，视野缺损或视力急剧下降等",null,null,680,680,680]
[null,"441339","核磁共振","鼻窦MRI",null,null,null,"MRI对鼻咽、鼻腔、鼻窦炎症、先天性异常、损伤与良恶性占位性病变均非常有效。对腔壁骨质破坏的估价不如CT",null,null,680,680,680]
["√","45971","核磁共振","鼻咽MRI",null,null,null,"适用于鼻咽部恶性肿瘤的筛查，为鼻咽癌检查首选。",null,null,680,680,680]
[null,"441340","核磁共振","中耳乳突内耳MRI",null,null,null,"常用于内耳先天性异常；耳、内听道、侧颅底肿瘤的软组织病变等检查",null,null,680,680,680]
["√","45950","核磁共振","甲状腺MRI",null,null,null,"适用于甲状腺良恶性肿瘤、肿大的筛查。",null,null,680,680,680]
[null,"441341","核磁共振","喉咽部MRI",null,null,null,"MRI对喉咽部炎症、先天性异常、损伤与良恶性占位性病变均非常有效。",null,null,680,680,680]
[null,"441541 ","核磁共振","磁共振易损斑块诊断",null,null,null,"诊断原理：利用多个序列的磁共振图像信号，通过比较不同序列下的不同信号特征，识别动脉硬化斑块内的不同成分(钙化，疏松基质，出血，脂质核，纤维帽)等，对血管斑块的构成结构及组成成分进行定量分析。了解其斑块的稳定性(易损性)，评估其治疗方案，从而预防心梗及脑卒的发生",null,null,2800,2800,2800]
[null,null,"核磁共振","单侧肩关节MRI",null,null,null,"可显示软骨、肌腱、韧带。对关节外伤，退行性疾病、炎症等特别是软骨损伤优势明显。",null,null,680,680,680]
[null,"45955","核磁共振","胸部MRI",null,null,null,"MRI能显示胸部的胸膜、胸壁、纵隔、 肺门的肿瘤与病变，能区分其性质与侵蚀的部位；能发现心肌梗死、心肌病、瓣膜病、心包胸腺瘤，原发性心脏横纹肌肉瘤，上气道梗阻，肿瘤性心包炎，先天性心包缺如或缺损等",null,null,680,680,680]
[null,"441330","核磁共振","上腹部MRI",null,null,null,"用于 肝、胆、胰、脾等的炎症、肿大、良恶性肿瘤。肝寄生虫及弥漫性肝病（肝硬化、脂肪肝、色素沉着症）、肝、胆、胰、脾先天性发育异常等。肝、胆管结石等。先天性腹壁肌肉发育不良，非酒精性脂肪肝病，肝棘球蚴病。",null,null,680,680,680]
["√","45958","核磁共振","肝胆脾胰MRI",null,null,null,"适用于肝胆脾胰脏器占位性病变、炎症、先天变异等筛查",null,null,680,680,680]
[null,"441334","核磁共振","肾上腺MRI",null,null,null,"适用于肾上腺占位性病变、炎症、先天变异等筛查",null,null,680,680,680]
["√","45952","核磁共振","颈椎MRI",null,null,null,"适用于颈椎间盘突出，椎管狭窄、脊髓腔肿瘤等排查",null,null,680,680,680]
[null,"45953","核磁共振","胸椎MRI",null,null,null,"适用于胸椎间盘突出，椎管狭窄、脊髓腔肿瘤等排查",null,null,680,680,680]
["√","45963","核磁共振","腰椎MRI",null,null,null,"适用于腰椎间盘突出，椎管狭窄、脊髓腔肿瘤等排查",null,null,680,680,680]
[null,"451071","核磁共振","骶尾椎MRI",null,null,null,"适用于骶尾椎间盘突出，椎管狭窄、脊髓腔肿瘤等排查",null,null,680,680,680]
[null,"441345","核磁共振","整体脊椎检查MRI",null,null,null,"适用于整体脊椎间盘突出，椎管狭窄、脊髓腔肿瘤等排查",null,null,2040,2040,2040]
["√","45955","核磁共振","胸部","★","★","★","早期筛查胸腔脏器良恶性肿瘤及其他病变。",null,null,680,680,680]
[null,"441346","核磁共振","下腹部MRI",null,null,null,"用于肾、输尿管、膀胱的慢性炎症、肿大、良恶性肿瘤、先天性发育异常；肾缺失与移位。先天性腹壁肌肉发育不良，复发性腹膜后肿瘤，腹膜后脂肪瘤，肠系膜脂肪炎等疾病。",null,null,680,680,680]
["√","45960","核磁共振","双肾MRI",null,null,null,"适用于双肾良恶性肿瘤、肾积水、先天变异等的检查",null,null,680,680,680]
["√","45969","核磁共振","盆腔MRI",null,null,null,"主要用于男女生殖系统疾病及膀胱疾病筛查，如子宫肌瘤、卵巢囊肿、膀胱及前列腺肿瘤的筛查。",null,null,680,680,680]
[null,null,"核磁共振","双侧髋关节MRI",null,null,null,"可显示软骨、肌腱、韧带。对关节外伤，退行性疾病、炎症等特别是软骨损伤优势明显。",null,null,680,680,680]
["√","45951","核磁共振","双侧股骨头MRI",null,null,null,"适用于双侧股骨头早期无菌坏死筛查",null,null,1360,1360,1360]
["—48—"]
[null,null,"核磁共振","单侧股骨头MRI",null,null,null,"适用于单侧股骨头早期无菌坏死筛查",null,null,680,680,680]
[null,null,"核磁共振","单侧腕关节MRI",null,null,null,"可显示软骨、肌腱。对关节外伤，退行性疾病、炎症等特别是软骨损伤优势明显。",null,null,680,680,680]
["√",451225,"核磁共振","单侧肘关节",null,null,null,"可显示软骨、肌腱。对关节外伤，退行性疾病、炎症等特别是软骨损伤优势明显。",null,null,1360,1360,1360]
["√",451226,"核磁共振","单侧踝关节MRI",null,null,null,"可显示软骨、肌腱。对关节外伤，退行性疾病、炎症等特别是软骨损伤优势明显。",null,null,680,680,680]
["√",451224,"核磁共振","单侧膝关节MRI",null,null,null,"适用于双膝关节腔疾病排查，如关节腔积液、半月板损伤排查。",null,null,680,680,680]
[null,null,"核磁共振","单侧肢体MRI（手或前臂或上臂）",null,null,null,"用于肢体的韧带、肌肉、肌腱的炎症、损伤、病变及萎缩等的排查",null,null,680,680,680]
[null,null,"核磁共振","单侧肢体MRI（足或小腿或大腿）",null,null,null,"用于肢体的韧带、肌肉、肌腱的炎症、损伤、病变及萎缩等的排查",null,null,680,680,680]
[null,null,"核磁共振","MRI图文胶片",{"$nulls":6},80,80,80]
["√","CT检查"]
["√","321","CT","颅脑CT","★","★","★","脑部CT主要是通过颅内组织形态成像的变化，脑组织密度的变化来确定疾病的。一般主要是用于诊断脑出血，脑梗塞，肿瘤，脑外伤脑出血，脑挫裂伤.....等等。",null,null,380,380,380]
[null,"441350","CT","眼眶CT",null,null,null,"了解眶内肿瘤、眶内炎症（炎性假瘤）、眼型Grave病、眶内静脉曲张、颈内动脉海绵窦瘘、眼眶外伤与眶内异物，如眶骨骨折、眶内气肿、眶内血肿和视神经挫伤等",null,null,380,380,380]
[null,"441348","CT","颌面部CT",null,null,null,"颌面部诸骨骨折、腮腺混合瘤、颌骨错位，下颌后缩，颌骨膨隆等",null,null,380,380,380]
[null,"441351","CT","鼻咽CT ",null,null,null,"用于先天性疾病、鼻咽部炎性、病变、肿瘤及损伤的诊断",null,null,380,380,380]
[null,"441349","CT","口咽CT ",null,null,null,"用于先天性疾病、口咽部炎性、病变、肿瘤及损伤的诊断",null,null,380,380,380]
[null,"31616","CT","鼻窦CT",null,null,null,"用于先天性疾病、鼻及鼻窦部的炎性、病变、肿瘤及损伤的诊断",null,null,380,380,380]
[null,"441352","CT","中耳乳突内耳",null,null,null,"用于耳部先天性疾病、炎性、病变、肿瘤及损伤的诊断",null,null,380,380,380]
[null,"441353","CT","喉咽部CT",null,null,null,"用于先天性疾病、咽喉部炎性、病变、肿瘤及损伤的诊断",null,null,380,380,380]
[null,"368","CT","甲状腺CT（甲状腺疾病不建议做CT检查）",null,null,null,"能了解甲状腺大小、形态、及其病变，可用于鉴别甲状腺腺瘤、甲状腺癌和结节性甲状腺肿等疾病",null,null,380,380,380]
[null,null,"CT","单侧肩关节CT",null,null,null,"用于了解骨关节、肌肉和软组织病变或损伤。如：骨折、脱位、关节内游离体及软组织血肿、骨关节感染与病变，以及邻近软组织的肿瘤等，",null,null,380,380,380]
[null,"441319","CT","双侧肩关节CT",null,null,null,"用于了解骨关节、肌肉和软组织病变或损伤。如：骨折、脱位、关节内游离体及软组织血肿、骨关节感染与病变，以及邻近软组织的肿瘤等，",null,null,760,760,760]
[null,null,"CT","肺部CT",null,null,null,"  CT是用X线束对人体某部位一定厚度的层面进行扫描，如切面包样，每个层面约0.5mm，可清晰分辨出肺部5mm及以上的早期病灶，能显示“肺门、肺纹理、肺实质的炎症、良性肿瘤、癌症、结核、以及肺大泡、气管与支气管阻塞、炎症、扩张与癌变”以及“纵隔、胸膜﹑肋骨及胸壁软组织” 的淋巴肿大、积液及各类性质的包块等病灶。",null,null,380,380,380]
[null,"377","CT","胸部CT",{"$nulls":6},380,380,380]
[null,"441298","CT","颈椎CT",null,null,null,"高分辨的CT能清楚显示脊椎的形态、结构、椎间盘病变、韧带钙化及黄韧带肥厚，也能清楚显示颈神经根及脊髓的形态、结构。如椎体的退行性疾病与损伤等。",null,null,380,380,380]
[null,"441383","CT","胸椎CT",null,null,null,"高分辨的CT能清楚显示脊椎的形态、结构、椎间盘病变、韧带钙化及黄韧带肥厚，也能清楚显示颈神经根及脊髓的形态、结构。如椎体的退行性疾病与损伤等。",null,null,380,380,380]
[null,"31611","CT","腰椎CT",null,null,null,"高分辨的CT能清楚显示脊椎的形态、结构、椎间盘病变、韧带钙化及黄韧带肥厚，也能清楚显示颈神经根及脊髓的形态、结构。如椎体的退行性疾病与损伤等。",null,null,380,380,380]
[null,"396","CT","上腹部CT",null,null,null,"对于实质性器官肝脏、胆囊、脾脏、胰腺、肾脏、肾上腺等器官显示清晰，对于肿瘤、感染及创伤能清晰的显示解剖的准确部位病变程度，对病变分期等有较高价值，对腹内肿块的诊断与鉴别诊断价值较大。",null,null,380,380,380]
[null,"406","CT","下腹部CT",null,null,null,"对于实质性器官肝脏、胆囊、脾脏、胰腺、肾脏、肾上腺等器官显示清晰，对于肿瘤、感染及创伤能清晰的显示解剖的准确部位病变程度，对病变分期等有较高价值，对腹内肿块的诊断与鉴别诊断价值较大。",null,null,380,380,380]
[null,null,"CT","肾上腺CT",{"$nulls":6},380,380,380]
[null,"441434","CT","盆腔CT",null,null,null,"能了解盆腔器官之间有丰富的脂肪间隔，能准确地显示肿瘤对邻近组织的侵犯，因此CT已成为卵巢、宫颈和子宫、膀胱、精囊、前列腺和直肠肿瘤的诊断，临床分期和放射治疗设计的重要手段。\n\n",null,null,380,380,380]
[null,"441441","CT","骨盆CT",null,null,null,"骨盆是骨质结构，由骶骨、尾骨和左右两块髋骨及其韧带连结而成。主要检查骨盘的骨质有无骨折、骨坏死及软组织 的损伤与病变。",null,null,380,380,380]
[null,null,"CT","双侧髋关节CT",null,null,null,"用于了解骨关节、肌肉和软组织病变或损伤。如：骨折、脱位、关节内游离体及软组织血肿、骨关节感染与病变，以及邻近软组织的肿瘤等，",null,null,380,380,380]
[null,null,"CT","单侧腕关节CT",null,null,null,"用于了解骨关节、肌肉和软组织病变或损伤。如：骨折、脱位、关节内游离体及软组织血肿、骨关节感染与病变，以及邻近软组织的肿瘤等，",null,null,380,380,380]
[null,null,"CT","单侧肘关节CT",null,null,null,"用于了解骨关节、肌肉和软组织病变或损伤。如：骨折、脱位、关节内游离体及软组织血肿、骨关节感染与病变，以及邻近软组织的肿瘤等，",null,null,380,380,380]
["—49—"]
[null,null,"CT","单侧踝关节CT",null,null,null,"用于了解骨关节、肌肉和软组织病变或损伤。如：骨折、脱位、关节内游离体及软组织血肿、骨关节感染与病变，以及邻近软组织的肿瘤等，",null,null,380,380,380]
[null,null,"CT","单侧膝关节CT",null,null,null,"用于了解骨关节、肌肉和软组织病变或损伤。如：骨折、脱位、关节内游离体及软组织血肿、骨关节感染与病变，以及邻近软组织的肿瘤等，",null,null,380,380,380]
[null,null,"CT","单侧肢体CT（手或尺桡骨或肱骨）",null,null,null,"检查四肢骨、肌肉和软组织病变或损伤等。如骨折、骨破坏、骨髓腔密度增高和小死骨、骨髓炎、骨肿瘤几临近软组织的肿瘤等，",null,null,380,380,380]
[null,null,"CT","单侧肢体CT（足或胫腓骨或股骨）",null,null,null,"检查四肢骨、肌肉和软组织病变或损伤等。如骨折、骨破坏、骨髓腔密度增高和小死骨、骨髓炎、骨肿瘤几临近软组织的肿瘤等，",null,null,380,380,380]
[null,null,"CT","CT图文胶片",{"$nulls":6},50,50,50]
["√","新医学"]
["√","451214","新医学","心率变异分析（HRV）","★","★","★","评估和分析身体和精神压力负荷及心理情绪状况，评估血管的相关状况。（HRV是评估和分析身体和精神压力负荷及心理情绪状况，评估心血管相关状况一个非常有价值的指标。主要从“疲劳度、精神压力、抗压能力”这三个方面进行检测。）",null,null,115,115,115]
[null,"441241","睡眠检测","睡眠监测","★","★","★","填补夜间体检空白，实现全自动、海量、快速、精准监测“睡眠质量”和诊断“睡眠呼吸暂停疾病”。降低夜间猝死风险概率，防止心脑血管突发事件，解决万病之源。",null,null,140,140,140]
[null,"441488","脊椎功能检测","脊椎功能检测","★","★","★","是一种针对颈椎、胸椎、腰椎、骶椎的功能进行早期诊断的一种安全、快速、无辐射的诊断方法，早期发现脊椎关节的活动度异常情况及两侧肌肉的张力情况，便于对脊椎疾病早期进行干预，从而延缓或逆转疾病进程，避免脊椎早衰。",null,null,80,80,80]
[null,"441489","脊椎功能治疗","脊椎功能治疗","★","★","★",null,null,null,300,300,300]
[null,"21766","优健康风险干预服务","代谢综合症检出风险保障（7天血脂管理）","★","★","★","服务内容：   1份专业血脂评测报告，7天个人定制治疗方案，4次血脂管理方面的电话咨询热线（30天内使用）",null,null,1697,1697,1697]
[null,"21766",null,"代谢综合症检出风险保障（15天糖尿病管理）","★","★","★","服务内容：   1份专业评测报告，个性化生活干预治疗方案 ，并进行跟踪，2次教练指导电话，指导血糖控制及并发症预防，15天血糖相关医生咨询指导（电话＋微信）"]
[null,"21766",null,"代谢综合症检出风险保障（28天减重服务）","★","★","★","服务内容：   1份专业减重评测报告，28天个性化饮食和运动方案，4次/月的轻体教练与用户的1v1交流指导（微信）"]
[null,"21767",null,"体检异常便捷就医通道","★","★","★","三甲及名医就医通道",null,null,99,99,99]
[null,"441460","新医学","生理年龄分析","★","★","★","主要通过各脏器的体检结果，分析人体的“关节、身体、免疫、血管、代谢、心肺与肾脏”的生理功能，与实际年龄同脏器的生理功能相比较，得出其身体的健康状况与衰老程度。从而通过健康干预抑制人体的衰老速度。",null,null,50,50,50]
[null,null,"新医学","深度报告检测","★","★","★","依据基础检查项目的异常结果，深度分析在这些结果持续异常的情况下有可能会引发的疾病",null,null,"50（100/200）","50（100/200）","50（100/200）"]
["√","451208","新医学","无创肝弹性定量检测","★","★","★","主要检测肝脏弹性、肝细胞间隙的脂肪含量。用数据定量显示肝纤维化、肝硬化、脂肪肝的程度，且无创、快速并有较好的重复性.",null,null,240,240,240]
["√","010","动脉硬化","动脉硬化检测","★","★","★","了解动脉硬化情况，对动脉硬化进行定性、筛查",null,null,120,120,120]
["√","中医检查"]
["√","451189","中医检查","中医体质辩识","★","★","★","中医体质辨识是将中医体质与已发健康风险进行客观对应，把握其健康与疾病的整体要素与个体差异，从而制定相应的治疗、预防、养生方法，进行因人而宜的干预。操作方法：需要如实填写符合《中医体质分类与判定》标准的中医体质辨识调查表，使用者根据自身情况进行填写完毕后即可获知自身体质类型，并通过专业中医医生根据患者实际情况，四诊合参，综合判断。",null,null,50,50,50]
["√","健康管理"]
["√","313","健康管理","健康管理方案","★","★","★","根据个人健康体检和生活习惯调查信息数据，对目前的身体健康状况进行健康评估和风险分析，制定个性化的健康管理计划，以达到对个人健康状况提早干预的一种手段。",null,null,1500,1500,1500]
["√","附加项目"]
[null,null,"彩超图文报告",null,"★","★","★",null,null,null,0,0,0]
["√","451191","放射科图文报告",null,"★","★","★",null,null,null,0,0,0]
["√","451191","放射X光片(14x17)",null,"★","★","★",null,null,null,50,50,50]
[null,null,"心电图纸质报告",null,"★","★","★",null,null,null,0,0,0]
["√","66489","骨密度图文片",null,"★","★","★",null,null,null,0,0,0]
["√","451192","汇总光盘费",null,"★","★","★",null,null,null,50,50,50]
["—50—"]
["√","451222","体检报告重打费",null,"★","★","★",null,null,null,10,10,10]
["√","451221","服务费",null,"★","★","★",null,null,null,0,0,0]
["√","022","总检（必选）",null,"★","★","★",null,null,null,0,0,0]
["√","283","抽血（必选）",null,"★","★","★",null,null,null,0,0,0]
["√","007","营养早餐（必选）",null,"★","★","★",null,null,null,0,0,0]
["√",null,"核算区（必选）",{"$nulls":5},"小计"]
["√",{"$nulls":7},"折扣"]
["√",{"$nulls":7},"实际结算金额"]
{"$rows_empty":26}
["—51—"]

{"sheet":"附件9福华套餐","index":11,"n_rows":90,"n_cols":9,"rows_kept":90,"cut":false,"hidden":false,"merged":[[0,0,0,8],[1,0,1,8],[17,0,17,8],[32,0,32,8],[33,4,33,5],[34,4,34,5],[35,4,35,5],[36,4,36,5],[38,0,38,5],[39,0,39,5],[89,0,89,8],[4,1,9,1],[10,1,13,1],[14,1,16,1],[18,1,22,1],[24,1,27,1],[28,1,30,1],[33,1,37,1]]}
["附件9"]
["2018年福华健康管理中心律师体检套餐"]
[]
["序号","项目类别","编码","体检项目","体检内容","临床意义","男性","未婚\n女性","已婚\n女性"]
["1","常规检查","1002","身高、体重、体重指数","身高、体重、体重指数","检查有无发育不良，超重，肥胖等。",10,10,10]
["2",null,"2001","常规检查（含内、外科）（男）","既往病史、心脏(内科)、肺部、腹部、甲状腺(外科)、浅表淋巴结、皮肤、脊柱、神经反射：膝反射、四肢关节、肛门、直肠指诊、外生殖器、其它","通过视、触、叩、听体格检查方法，检查心、肺、肝、脾等重要脏器及神经系统基本状况，发现内科常见疾病的重要征兆，或初步排除常见疾病。",10,"-","-"]
["3",null,"2004","常规检查（含内、外科）（女）","既往病史、心脏(内科)、肺部、腹部、乳房、甲状腺(外科)、浅表淋巴结、皮肤、脊柱、神经反射：膝反射、四肢关节、肛门、直肠指诊、其它","通过视、触、叩、听体格检查方法，检查心、肺、肝、脾等重要脏器及神经系统基本状况，发现内科常见疾病的重要征兆，或初步排除常见疾病， 了解是否有乳腺疾病。","-",10,10]
["4",null,"3006","视力 色觉","裸视力(左)、裸视力(右)、矫正视力(左)、矫正视力(右)、色觉、眼科其它","主要是检查有无屈光不正及色盲或色弱等",5,5,5]
["5",null,"3007","眼科常规检查","外眼、眼科其它","主要了解眼部疾患，如眼球运动、眼睑、结膜、角膜等眼表疾病。",10,10,10]
["6",null,"3004","裂隙灯检查","裂隙灯检查","通过裂隙灯显微镜可以清楚地观察眼睑、结膜、巩膜、角膜、前房、虹膜、瞳孔、晶状体及玻璃体前1/3，可确定病变的位置、性质、大小及其深度。",15,15,15]
["7","彩超检查",7013,"腹部（肝胆脾胰双肾）彩超","肝、胆、脾、胰、双肾","对人体腹部内脏器官（肝、胆、脾、胰、双肾）的状况和各种病变（如肿瘤、结石、积水、脂肪肝等）提供高清晰度的彩色动态超声断层图像判断，依病灶周围血管情况、病灶内血流血供情况-良恶性病变鉴别。",180,180,180]
["8",null,"7011","膀胱 子宫附件彩超（含图文片）","膀胱、附件、子宫","通过彩超检查，发现膀胱，子宫附件的病变。","-",120,120]
["8",null,"7011","膀胱 前列腺彩超（含图文片）","膀胱、前列腺","通过彩超检查，发现膀胱，前列腺的病变。",120,"-","-"]
["9",null,"6011","胸部正位（DR机、无激光片）","胸部","检查心肺疾病，如心脏增大，各种肺结核，各种肺炎，肺癌，纵膈肿瘤等",70,70,70]
["10","仪器检测","4003","骨密度检查","骨密度","1、检测骨矿含量，协助钙等营养缺乏的诊断，指导营养干预、治疗; 2、根据年龄相对应骨密度的状况，预测骨营养状态及生长速度; 3、骨质疏松症的诊断， 医生利用骨密度测量判断患者是否患有骨质疏松症。 4、骨折风险评估 骨密度(BMD)能够预测骨折风险",80,80,80]
["11",null,"4004","静息心电图","心电图","心电图是临床最常用的检查之一，应用广泛。应用范围包括：1.记录人体正常心脏的电活动。2.帮助诊断心律失常。3.帮助诊断心肌缺血、心肌梗死、判断心肌梗死的部位。4.诊断心脏扩大、肥厚。5.判断药物或电解质情况对心脏的影响。6.判断人工心脏起搏状况。",25,25,25]
["12",null,"1013","●人体成分均衡分析检测项目","人体成分均衡分析","可以测量出人体体重、脂肪量和肌肉量的分布情况。",60,60,60]
["—52—"]
["13","血液检测","8277","肾功四项二组","尿素氮/肌酐（UREA/CREA）、尿素氮（UREA）、肌酐（CREA）、尿酸（UA）","增高：肾灌注减少，（失水、低血容量性休克、充血性心衰等）尿路阻塞性病变，高蛋白等，分解代谢亢进状态，肾小球病变，应用糖皮质类固醇激素等。降低：急性肾小管坏死",24,24,24]
["14",null,"8147","肝功六项","丙氨酸氨基转移酶、天门冬氨酸氨基转移酶、γ-谷氨酰转移酶、总胆红素、直接胆红素、间接胆红素","评价肝功能情况。",38,38,38]
["15",null,"8016","血脂四项","总胆固醇、甘油三酯、低密度脂蛋白胆固醇、高密度脂蛋白胆固醇","测定血清中血脂含量，它们的增高或降低与动脉粥样硬化的形成有很大的关系。用于评价受检者的脂肪代谢水平，血脂代谢紊乱评价、动脉粥样硬化性疾病危险性预测和营养学评价。",46,46,46]
["16",null,"8039","空腹血糖（FPG）（店检）","空腹血糖","评价人体空腹状态下糖代谢是否正常，评估糖尿病患者空腹血糖控制是否达标。空腹血糖是诊断糖代谢紊乱的最常用和最重要指标。",8,8,8]
["17",null,"8078","血常规（五分类）","白细胞计数、中性粒细胞百分比、淋巴细胞百分比、单核细胞百分比、嗜酸性细胞百分比、嗜碱性细胞百分比、中性粒细胞绝对值、淋巴细胞绝对值、单核细胞绝对值、嗜酸性细胞绝对值、嗜碱性细胞绝对值、红细胞计数、血红蛋白、红细胞比积、平均红细胞体积、平均红细胞血红蛋白含量、平均红细胞血红蛋白浓度、红细胞分布宽度-变异系数、红细胞分布宽度-标准差、血小板计数、平均血小板体积、血小板分布宽度、血小板比积","通过血常规检查发现血液方面的问题，评价骨髓功能，有助于临床急慢性感染，病毒性疾病的判断；有助于了解有无贫血及贫血分类；有助于出血性疾病的诊断等。",23,23,23]
["18","尿液检查","8108","尿常规","尿液颜色、尿蛋白质、尿糖、尿胆原、尿胆红素、尿酮体、尿亚硝酸盐、尿隐血、尿酸碱度、尿白细胞、尿比重、尿液镜检","用于检查泌尿系统疾病，如泌尿系统感染、肿瘤、结石及了解肾功能，还可用于协助检查其他系统疾病，如糖尿病、高血压、肝炎等。",15,15,15]
["19","肿瘤检测","8080","甲胎蛋白定量（AFP）","甲胎蛋白定量（AFP）","对原发性肝癌的诊断、疗效观察和预后评估有重要的临床意义。在卵巢、胃、胰腺癌、睾丸癌等肿瘤及肝炎、肝硬化等疾病也有异常发现",50,50,50]
["20",null,"8076","癌胚抗原定量（CEA）","癌胚抗原定量（CEA）","系广谱性肿瘤标志物，对大肠癌、胰腺癌的筛查、疗效观察和预后评估有重要的临床意义。在胃、乳腺、肺癌等也可升高。",50,50,50]
["21",null,"8228","★▲总前列腺特异性抗原PSA（华大）","总前列腺特异性抗原（PSA）","f-PSA主要相关肿瘤：前列腺癌敏感度90%.\n",138,"-","-"]
["22",null,"8229","★▲糖类抗原CA125（华大）","糖类抗原125（CA125）（华大）","CA125：主要相关肿瘤：卵巢癌。其它相关肿瘤：肺癌、胰腺癌、乳腺癌、肝癌、胃肠道恶性肿瘤、子宫癌。","-",138,"-"]
["23","妇科项目","5001","妇科检查","外阴、阴道、宫颈、子宫、附件、妇科其它","通过各种检查了解女性生殖系统有无异常，以发现可能存在的各种炎症、肿瘤等病变。","-","-",10]
["24",null,"8059","白带常规","白带清洁度、白细胞(白带)、真菌、滴虫","用于诊断妇科炎症，及部分病原体的检查。","-","-",10]
["25",null,"8057","★▲宫颈TCT","宫颈TCT","是子宫颈癌及其癌前病变较先进的筛查方法.","-","-",200]
["26","赠送服务",9001,"总检评估","个检报告","根据个人健康状况及疾病发展趋势，由专家分析主要健康问题，确定相关危险因素，并提供一份完整的个性化的体检报告解读及基本健康改善指导原则。",0,0,0]
["—53—"]
["27","赠送服务",8581,"健康档案","个人健康档案建立",null,5,5,5]
["28",null,9020,"●“一对一”体检报告的讲解与分析","●“一对一”体检报告的讲解与分析",null,50,50,50]
["29",null,9022,"●《历年体检异常结果对比分析报告》","●《体检历史资料对比分析报告》制作与讲解",null,30,30,30]
["30",null,9017,"专家咨询","",null,80,80,80]
["31",null,9002,"早餐","营养早餐","燕麦粥 牛奶 水果 中粮包",10,10,10]
["套餐合计：",{"$nulls":5},{"$f":"SUM(G5:G38)","v":1152},{"$f":"SUM(H5:H38)","v":1152},{"$f":"SUM(I5:I38)","v":1234}]
["售价合计：",{"$nulls":5},400,400,400]
{"$rows_empty":49}
["—54—"]

{"sheet":"附件9福华自选项目","index":12,"n_rows":212,"n_cols":9,"rows_kept":212,"cut":false,"hidden":false,"merged":[[0,0,0,8],[1,0,1,8],[31,0,31,8],[60,0,60,8],[86,0,86,8],[114,0,114,8],[146,0,146,8],[177,0,177,8],[211,0,211,8],[3,0,16,0],[17,0,27,0],[29,0,30,0],[32,0,37,0],[39,0,53,0],[54,0,59,0],[61,0,85,0],[87,0,113,0],[115,0,145,0],[147,0,176,0],[178,0,186,0],[187,0,210,0],[40,8,44,8]]}
["2018年福华健康管理中心自选体检项目及报价                                      "]
["带“★”项目不享受团体7折优惠                 体检负责人：陈小姐13412130777"]
["项目分类","编码","项目名称","适用性别","临床意义","价格","优惠价","勾选"]
["常规检查","1001","身高、体重、体重指数、血压、脉搏","全部","通过仪器测量人体基本健康指标。例如：血压是否正常，有无体重偏低、超重或肥胖。",10,{"$f":"F4*0.7","v":7},"□"]
[null,"3002","眼底镜检查","全部","主要是玻璃体，视网膜，黄斑，视盘，视神经，眼底血管的检查",15,10.5,"□"]
[null,"3003","非接触性眼压测量","全部","用于原发性青光眼的早期诊断，病情评估；疗法选择、疗效评价。以可控空气脉冲力测量眼压，可避免眼压计接触角膜所致的交叉感染与对角膜表面麻醉剂的过敏可能性。",25,17.5,"□"]
[null,"3004","裂隙灯检查","全部","裂隙灯可检查结膜、角膜、虹膜、晶状体、瞳孔、玻璃体的情况及青光眼疾病的检查。",15,10.5,"□"]
[null,"3005","耳鼻喉科常规检查","全部","对耳鼻喉科的检查，从而发现耳鼻喉科常见的疾病。",10,7,"□"]
[null,"3006","视力 色觉","全部","主要是检查有无屈光不正及色盲或色弱等",5,3.5,"□"]
[null,"3007","眼科常规检查","全部","主要了解眼部疾患，如眼球运动、眼睑、结膜、角膜等眼表疾病。",5,3.5,"□"]
[null,"3009","眼底照相","全部","主要是玻璃体，视网膜，黄斑，视盘，视神经，眼底血管的检查",80,56,"□"]
[null,"2001","常规检查（含内、外科）（男）","男","通过视、触、叩、听体格检查方法，检查心、肺、肝、脾等重要脏器及神经系统基本状况，发现内科常见疾病的重要征兆，或初步排除常见疾病。",10,7,"□"]
[null,"2005","常规检查-外科(男)","男","通过外科医生检查，发现脊柱，四肢，淋巴结，外生殖器等的病变和男性乳腺增生。",5,3.5,"□"]
[null,"2006","常规检查-内科(男)","男","通过内科医生的检查，发现心，肺，腹部等的病变。",5,3.5,"□"]
[null,"2004","常规检查（含内、外科）（女）","女","通过视、触、叩、听体格检查方法，检查心、肺、肝、脾等重要脏器及神经系统基本状况，发现内科常见疾病的重要征兆，或初步排除常见疾病， 了解是否有乳腺疾病。",10,7,"□"]
[null,"2007","常规检查-外科(女)","女","通过外科医生检查，发现脊柱，四肢，淋巴结，肛门等的病变。",5,3.5,"□"]
[null,"2008","常规检查-内科(女)","女","通过内科医生的检查，发现心，肺，腹部等的病变。",5,3.5,"□"]
["超声检查","7007","膀胱 前列腺彩超(含图文片）","男","通过彩超检查，发现膀胱，前列腺的病变。",120,84,"□"]
[null,"7001","前列腺彩超(含图文片）","男","在膀胱充盈时通过彩色超声仪器检查。更清晰地观察前列腺大小、形态、结构等情况，判断有无前列腺增大、囊肿、结石，恶性病变等。",100,70,"□"]
[null,"7011","膀胱子宫附件彩超(含图文片）","女","通过彩超检查，发现膀胱，子宫附件的病变。",120,84,"□"]
[null,"7008","阴式子宫附件彩超(含图文片）","女","通过彩超检查，发现子宫附件的病变。",150,105,"□"]
[null,"7004","腹部（肝胆脾肾）彩超(含图文片）","全部","对人体腹部内脏器官（肝、胆、脾、胰、双肾）的状况和各种病变（如肿瘤、结石、积水、脂肪肝等）提供高清晰度的彩色动态超声断层图像判断，依病灶周围血管情况、病灶内血流血供情况-良恶性病变鉴别。",180,126,"□"]
[null,"7010","肝胆脾彩超(含图文片）","全部","通过彩超检查，发现肝胆脾脏的病变。",120,84,"□"]
[null,"7012","双肾彩超(含图文片）","全部","通过彩超检查，发现双肾的病变。",100,70,"□"]
[null,"7002","甲状腺彩超(含图文片）","全部","通过彩色超声仪器更清晰地观察甲状腺肿物、结节、肿大、炎症；可发现甲状腺肿、甲状腺囊肿、甲状腺炎、甲状腺瘤、甲状腺癌等疾病。",150,105,"□"]
[null,"7003","颈动脉彩超(含图文片）","全部","通过彩色超声仪器采用无创性检查方法，检测颈动脉结构和动脉粥样硬化斑形态、范围、性质、动脉狭窄程度等；早期发现动脉血管病变，为有效预防和减少冠心病、缺血性脑血管病等心脑血管疾病发病提供客观的血流动力学依据。",170,119,"□"]
[null,"7005","心脏彩超(含图文片）","全部","超声心动图是应用超声波扫描技术观察心血管结构、血流动力学状况及心功能的一种无创伤性检查方法，它可了解心脏各组成部分的形态以及功能状态，了解心脏内畸形位置、大小、大血管的关系以及其他畸形情况和病变程度。",280,196,"□"]
[null,"7006","乳腺彩超(含图文片）","女","通过彩色超声仪器检查乳腺，发现乳腺增生、肿物、结节、囊肿、腺瘤、乳腺癌等病变。",150,105,"□"]
[null,7027,"胃造影彩超(含图文片）","全部","胃部彩超：对胃部诊断",265,185.5]
["仪器项目","4001","无创动脉硬化检测","全部","通过无创动脉检测仪检测全身动脉有无硬化、弹性减退等。",80,56,"□"]
[null,"4002","经颅多普勒","全部","以超声波多普勒效应进行颅内血管检测，无创伤和痛苦；了解颅内及颅外各血管、脑动脉环血管及其分支的血流情况，判断有无硬化、狭窄、缺血、痉挛等血管病变。可对脑血管疾病进行动态监测。",180,126,"□"]
["—55—"]
["仪器项目","4003","骨密度检查","全部","通过检查跟骨或手部骨量测定，可早期发现骨量减少及估计骨质疏松的程度，及时进行有效防治。",80,{"$f":"F33*0.7","v":56},"□"]
[null,"4004","静息心电图","全部","通过在体表特定部位同步记录和分析心脏每一个心动周期所产生电活动变化的曲线图形，为心脏疾病诊断、疗效评价、预后评估提供重要的依据。",25,17.5,"□"]
[null,"4005","肺功能检查","全部","通过肺功能检查仪检查肺功能的情况。",55,38.5,"□"]
[null,"4006","红外线乳透检查","女","检查乳腺的病变，如乳腺炎、结节、增生等。",50,35,"□"]
[null,"4007","半小时心率变异分析","全部","有助于判断是否有心律失常、各种心脏病引起的心房或心室肥大、心肌炎、心肌缺血、心肌梗塞及全身性疾病引起心脏病变。动态心电图更易发现上述病变或更小病变。",100,70,"□"]
[null,"4009","骨龄","全部","检测骨质发育情况，预测成年后身高高度。",80,56,"□"]
["胃部\n检测",1048,"★碳14","全部","用于检测幽门螺旋杆菌，幽门螺旋杆菌是导致胃炎、胃溃疡、胃癌的重要致病菌。",120,120,"□"]
["女性项目","5001","妇科检查","已婚女","通过各种检查了解女性生殖系统有无异常，以发现可能存在的各种炎症、肿瘤等病变。",10,{"$f":"F40*0.7","v":7},"□"]
[null,"8057","★宫颈TCT","已婚女","是子宫颈癌及其癌前病变较先进的筛查方法，并能筛查滴虫、霉菌性阴道炎及人乳头瘤病毒和疱疹病毒的感染。",200,200,"□","妇科采样项目默认与（5001）妇科检查为组合项目。"]
[null,"8058","宫颈涂片","已婚女","可以检测到宫颈病变的早期变化，是目前广泛检查子宫颈癌简便有效的筛查方法。",50,35,"□"]
[null,"8059","白带常规","已婚女","用于诊断妇科炎症，及部分病原体的检查。",10,7,"□"]
[null,"8210","白带常规+BV","已婚女","妇科病辅助诊断",40,28,"□"]
[null,"8170","阴道病五联检","已婚女","用于女性阴道微生态评估，感染性疾病的筛查辅助诊断和疗效评估。",80,56,"□"]
[null,"8118","★沙眼衣原体DNA定量（女）（CT-DNA）","女","用于诊断沙眼衣原体感染，也有作为疗效监测的标准。",180,180,"□"]
[null,"8119","★沙眼衣原体DNA定性（女）（CT-DNA）","女","用于诊断沙眼衣原体感染，直接反应人体内沙眼衣原体是否存在。",130,130,"□"]
[null,"8120","★淋球菌DNA定性（女）（NGH-DNA）","女","用于诊断淋病。",130,130,"□"]
[null,"8121","★解脲支原体DNA定量（女）（UU-DNA）","女","用于诊断解脲支原体感染，直接反应人体内解脲支原体是否存在。",180,180,"□"]
[null,"8122","★解脲支原体DNA定性（女）（UU-DNA）","女","用于诊断解脲支原体感染，直接反应人体内解脲支原体是否存在。",130,130,"□"]
[null,"8123","★淋球菌DNA定量（女）（NGH-DNA）","女","用于诊断淋病。",180,180,"□"]
[null,"8194","★HPV人乳头瘤病毒分型(全套)","女","用于诊断尖锐湿疣，和宫颈癌的筛查。",345,345,"□"]
[null,"8090","★人乳头瘤病毒6、11型DNA测定","女","用于诊断尖锐湿疣。",165,165,"□"]
[null,"8094","★人乳头瘤病毒16、18型DNA测定","女","用于宫颈癌的筛查。",165,165,"□"]
["检验项目","8108","尿常规","全部","用于检查泌尿系统疾病，如泌尿系统感染、肿瘤、结石及了解肾功能，还可用于协助检查其他系统疾病，如糖尿病、高血压、肝炎等。",15,{"$f":"F55*0.7","v":10.5},"□"]
[null,"8011","大便隐血","全部","检查粪便中隐藏的红细胞或血红蛋白的一项实验。这对检出引起消化道出血的疾病：如急慢性胃炎、胃十二指肠溃疡、胃癌、肠癌等是非常有用的。",10,7,"□"]
[null,"8001","大便常规","全部","对了解胃肠道及肝、胆、胰腺等器官病变；判断胃肠、胰腺、肝胆系统功能有重要价值。",10,7,"□"]
[null,"8169","★大便培养","全部","主要检查有无寄生虫感染。",75,75,"□"]
[null,"8060","尿妊娠定性试验","女","用于早孕的检测。",15,{"$f":"F59*0.7","v":10.5},"□"]
[null,"8129","★尿微量白蛋白定量","全部","尿微量白蛋白定量增高提示肾小球受损早期。",60,60,"□"]
["—56—"]
["血液\n项目","8078","血常规(五分类)","全部","通过血常规检查发现血液方面的问题，评价骨髓功能，有助于临床急慢性感染，病毒性疾病的判断；有助于了解有无贫血及贫血分类；有助于出血性疾病的诊断等。",23,{"$f":"F62*0.7","v":16.1},"□"]
[null,"8050","血流变(需做血常规)","全部","主要用于检查血液粘稠性况，从而评估心脑血管风险。",70,49,"□"]
[null,"8005","ABO血型","全部","血型分O、A、B、AB四型；平时作出血型鉴定是保证紧急状态下输血安全的必要措施；对遗传、法医学也有很大价值。",15,10.5,"□"]
[null,"8211","血型二项（ABO血型、Rh血型）","全部","辅助血型诊断",40,28,"□"]
[null,"8131","Rh血型","全部","熊猫血检查",30,21,"□"]
[null,"8006","肾功三项（尿酸、肌酐、尿素）","全部","用于肾功能评价，测定肾功能损害程度及估计预后。",24,16.8,"□"]
[null,"8026","肾功四项（血清胱抑素C、尿酸、肌酐、尿素）","全部","用于评估肾功能。",84,58.8,"□"]
[null,"8008","★性激素六项（雌二醇、卵泡刺激素、孕酮、泌乳素、促黄体生成激素、睾酮）","全部","通过女性激素六项检测，对女性内分泌疾病、不孕症、下丘脑或垂体病变筛查具有重要意义。",360,360,"□"]
[null,"8017","心肌酶四项（α-羟丁酸脱氢酶、肌酸激酶、肌酸激酶同工酶、乳酸脱氢酶）","全部","主要存在于心肌、脑、肝、组织及骨骼；在急性心肌梗死、心肌损害时肌酸激酶、尤其CK-MB升高，另外，重症肺炎、心衰、尿毒症、急性颅脑损伤等均可升高。",58,{"$f":"F70*0.7","v":40.6},"□"]
[null,"8025","丙肝病毒抗体(HCV-Ab)","全部","对了解有无丙肝病毒感染，有重要临床意义。",33,23.1,"□"]
[null,"8031","肝功二项\n（天门冬氨酸氨基转移酶、丙氨酸氨基转移酶）","全部","可较好地了解肝脏功能状况。ALT、 AST主要存在于肝心脑肾组织细胞内，肝细胞损伤越大ALT、 AST就越高。急慢性肝炎、脂肪肝、肝硬化、肝癌等疾病均可引起ALT、 AST升高。",12,8.4,"□"]
[null,"8206","肝功三项","全部","\n评价肝功能。（丙氨酸氨基转移酶、天门冬氨酸氨基转移酶、谷草/谷丙）",12,8.4,"□"]
[null,"8128","肝功四项1组","全部","初步了解肝脏功能状况，是否有肝功能减退、异常等。\n（总胆红素、γ-谷氨酰转移酶、天门冬氨酸氨基转移酶、丙氨酸氨基转移酶）",26,18.2,"□"]
[null,"8209","肝功四项2组","全部","评价肝功能\n（丙氨酸氨基转移酶、天门冬氨酸氨基转移酶、总胆红素、总蛋白）",22,15.4,"□"]
[null,"8147","肝功六项","全部","评价肝功能情况。\n（丙氨酸氨基转移酶、天门冬氨酸氨基转移酶、γ-谷氨酰转移酶、总胆红素、直接胆红素、间接胆红素）",38,26.6,"□"]
[null,"8150","肝功八项","全部","有于评估肝功能 。\n（丙氨酸氨基转移酶、天门冬氨酸氨基转移酶、γ-谷氨酰转移酶、碱性磷酸酶、乳酸脱氢酶、总胆红素、直接胆红素、间接胆红素）",50,35,"□"]
[null,"8125","肝功十二项    （全项）","全部","初步了解肝脏功能状况，是否有肝功能减退、异常等。\n（丙氨酸氨基转移酶、天门冬氨酸氨基转移酶、γ-谷氨酰转移酶、碱性磷酸酶、总胆红素、直接胆红素、间接胆红素、总蛋白、白蛋白、球蛋白、白蛋白/球蛋白比值、乳酸脱氢酶）",75,52.5,"□"]
[null,"8207","血清蛋白四项","全部","肝脏分泌指标；急慢性肝病营养式吸收不良，消耗性疾病等；",18,12.6,"□"]
[null,"8208","胆红素四项","全部","肝脏分泌功能指标，用于黄疸诊断鉴别诊断。",20,14,"□"]
[null,"8035","血脂二项（总胆固醇、甘油三酯）","全部","测定血清中血脂含量，它们的增高或降低与动脉粥样硬化的形成有很大的关系。用于评价受检者的脂肪代谢水平。",16,11.2,"□"]
[null,"8016","血脂四项            （高密度脂蛋白胆固醇、总胆固醇、低密度脂蛋白胆固醇、甘油三酯）","全部","测定血清中血脂含量，它们的增高或降低与动脉粥样硬化的形成有很大的关系。用于评价受检者的脂肪代谢水平，血脂代谢紊乱评价、动脉粥样硬化性疾病危险性预测和营养学评价。",46,32.2,"□"]
[null,"8077","血脂七项","全部","测定血清中血脂含量，它们的增高或降低与动脉粥样硬化的形成有很大的关系。用于评价受检者的脂肪代谢水平，血脂代谢紊乱评价、动脉粥样硬化性疾病危险性预测和营养学评价。",116,81.2,"□"]
[null,"8036","血沉(ESR)","全部","各种炎症性疾病、组织损伤、心肝肾血液代谢疾病、恶性肿瘤等可见增快。",20,14,"□"]
[null,"8037","类风湿因子(RF)","全部","阳性示类风湿性疾病；其他自身免疫性疾病和某些感染性疾病也可见阳性反应。",38,26.6,"□"]
[null,"8038","超敏C反应蛋白(HS-CRP)","全部","高敏C-反应蛋白对心血管疾病的风险预测有重要意义。C-反应蛋白也是细菌感染和严重组织损伤的一项诊断指标，其升高可见于组织损伤、细菌感染、心肌梗死及结缔组织病等。",40,28,"□"]
["—57—"]
["血液\n项目","8039","空腹血糖.（FPG）","全部","评价人体空腹状态下糖代谢是否正常，评估糖尿病患者空腹血糖控制是否达标。空腹血糖是诊断糖代谢紊乱的最常用和最重要指标。",8,{"$f":"F88*0.7","v":5.6},"□"]
[null,"8040","★糖化血红蛋白(HbA1C)","全部","检测HbA1c对高血糖、尤在血糖和尿糖波动较大时有特殊诊断意义；反映近2-3个月的平均血糖水平；用于筛检糖尿病、预测血管并发症、鉴别高血糖原因，评价糖尿病控制程度。",98,98,"□"]
[null,"8048","餐后2小时血糖（Glu/2h）","全部","主要用于糖尿病的诊断和治疗评估。",8,{"$f":"F90*0.7","v":5.6},"□"]
[null,"8138","胃蛋白酶原三项（PGI、PGII、PGI/PGII）","全部","1：PGⅠ≥70ng/ml或者PGⅠ/Ⅱ比值>3：。提示胃部正常或良性疾病改变\n2: PGⅠ<70ng/ml并且PGⅠ/Ⅱ比值<3:阳性（+），胃部轻度萎缩 。\n3： PGⅠ<50ng/ml并且PGⅠ/Ⅱ比值<3:中度阳性（++），胃部中度萎缩。\n4： PGⅠ<30ng/ml并且PGⅠ/Ⅱ比值<2:强阳性（+++），高度萎缩。",168,117.6,"□"]
[null,"8083","抗链球菌溶血素“O”（ASO）","全部","“ASO”或抗“0”阳性表示受检者近期内有A群溶血性链球菌感染，常见于活动性风湿热、急性肾炎、上呼吸道感染、皮肤和软组织的感染等。",34,23.8,"□"]
[null,"8073","幽门螺旋杆菌抗体.(Hp-Ab)","全部","幽门螺杆菌抗体阳性提示既往感染过或正在感染幽门螺杆菌，它与胃十二指肠溃疡、胃部炎症、胃癌的发生密切关联。",60,42,"□"]
[null,"8107","★乙型肝炎病毒表面抗原定量（HBsAg）","全部","乙肝病毒的活跃情况，是已感染乙肝病毒的标志之一。",40,40,"□"]
[null,"8092","★乙型肝炎病毒表面抗体定量（HBsAb）","全部","本定量对是否要注射疫苗有参考作用。",40,40,"□"]
[null,"8079","乙型肝炎病毒两对半定性","全部","用于评价是否感染乙肝病毒和目前处于一种什么样的状态，同时可以了解对乙肝是否有免疫力、有无传染性、是否需要进一步深入检查及治疗。",46,{"$f":"F96*0.7","v":32.2},"□"]
[null,"8067","★乙型肝炎病毒DNA定量（HBV-DNA）","全部","乙肝病毒DNA是乙肝病毒的基因物质，也是乙肝的直接诊断证据；阳性表明乙肝病毒复制及有传染性。",182,182,"□"]
[null,"8064","★乙型肝炎病毒两对半定量测定","全部","能更准确地评价是否感染乙肝病毒和目前处于一种什么样的状态，同时可以了解对乙肝是否有免疫力、有无传染性、是否需要进一步深入检查及治疗。",200,200,"□"]
[null,8237,"★人绒毛膜促性腺激素(β-HCG)","全部","对早期妊娠诊断有重要意义，对与妊娠相关疾病、滋养细胞肿瘤等疾病的筛查等有一定价值。",138,138,"□"]
[null,"8066","★糖类抗原50测定（CA50）(化学发光法)","全部","是一种广谱的肿瘤标志物，主要用于消化道肿瘤的筛查，如胰腺癌，结肠癌\r\n",138,138,"□"]
[null,"8069","★微量元素五项（镁、钙、铁、锌、铜）","全部","通过对人体微量和常量元素的检测，了解机体微量营养素的代谢情况，对了解机体组构成分、生理功能正常与否有重要意义。",60,60,"□"]
[null,"8072","★C-肽(测定)(C-P)","全部","用于评价胰岛B细胞分泌、储备功能，可真实反映实际胰岛素水平；用于糖尿病分型诊断。降低见于糖尿病。",69,69,"□"]
[null,"8074","甲肝病毒抗体-IgM","全部","对了解有无甲肝病毒感染，有重要临床意义。",15,{"$f":"F103*0.7","v":10.5},"□"]
[null,"8075","★人免疫缺陷病毒抗体(HIV-Ab)","全部","用于对艾滋病的初筛。",40,40,"□"]
[null,"8082","★结核杆菌抗体（TB-Ab）","全部","阳性表示有结核分枝杆菌感染。",53,53,"□"]
[null,"8084","★甲型肝炎病毒抗体IgG （HAV-IgG）","全部","检查是否有对甲肝的免役力。",23,23,"□"]
[null,"8086","★丁型肝炎病毒IgM抗体（HDV-IgM）","全部","检查丁肝病毒感染的早期。",22,22,"□"]
[null,"8093","★单纯疱疹病毒Ⅱ型DNA测定","全部","用于怀孕前检测。",130,130,"□"]
[null,"8095","★优生优育检测十项","全部","用于怀孕前检测。",464,464,"□"]
[null,"8096","★地中海贫血筛查试验（血红蛋白电泳、红细胞渗透脆性试验、G6PD活性）","全部","用于筛查地中海贫血。",85,85,"□"]
[null,"8097","★甲状腺球蛋白（TG）","全部","用于部分早状腺疾病的鉴别诊断。",46,46,"□"]
[null,"8098","★淋球菌DNA定性（男）（NGH-DNA）","男","用于诊断淋病，直接反映人体内淋球菌是否存在",130,130,"□"]
[null,"8099","★铁蛋白(FER)","全部","对贫血的辅助诊断。",55,55,"□"]
[null,"8100","★同型半胱氨酸（Hcy）","全部","为心脑血管疾病的敏感指标之一。",100,100,"□"]
["—58—"]
["血液\n项目","8103","★优生优育检测五项IgM","全部","用于怀孕前检测。",232,232,"□"]
[null,"8104","★肺炎支原体抗体两项（Mp-IgM、IgG）","全部","阳性有助于肺炎支原体感染的早期诊断",100,100,"□"]
[null,"8105","★解脲支原体DNA定量（男）（UU-DNA）","男","其拷贝数直接反映解脲支原体是否存在及病毒复制活跃程度",180,180,"□"]
[null,"8106","★过敏源检测（PANEL6综合组）","全部","用于检测过敏源。",700,700,"□"]
[null,"8112","★微量元素六项（镁、钙、铅、铁、锌、铜）","全部","检查人体有无缺乏微量元素。",88,88,"□"]
[null,"8130","★免疫球蛋白(IgG)","全部","检测免疫球蛋白可了解机体的体液免疫功能状态。IgG是对再次感染的免疫应答抗体；对病毒、细菌、寄生虫等都有抗体活性；结合临床表现，有助于感染性、免疫增生性疾病和免疫缺陷病等鉴别诊断、疾病监控。",26,26,"□"]
[null,"8140","★戊型肝炎病毒IgM抗体（HEV-IgM）","全部","用于检查有无戊肝。",79,79,"□"]
[null,"8141","★过敏原食入组","全部","",430,430,"□"]
[null,"8142","★抗甲状腺微粒体抗体（TM-Ab）","全部","用于甲状腺疾病的辅助检查。",46,46,"□"]
[null,"8143","★肝吸虫IgG抗体(加选)","全部","",30,30,"□"]
[null,"8144","胱抑素C（CysC）","全部","血清胱抑素C较血清肌酶有更多的敏感性和特异性，是早期较为理想的反映肾小球滤过率(GFR)的内源性标志物。",60,{"$f":"F126*0.7","v":42},"□"]
[null,"8146","★过敏原吸入组","全部","用于过敏性疾病的诊断和治疗。",310,310,"□"]
[null,"8148","风湿三项（超敏C反应蛋白、抗链球菌溶血素“O”、类风湿因子）","全部","用于风湿性疾病的诊断和治疗观察。",112,{"$f":"F128*0.7","v":78.4},"□"]
[null,"8162","★骨型碱性磷酸酶测定（BAP）","全部","用于血钙水平检测，指导科学补钙。",70,70,"□"]
[null,"8163","★电解质4项（钾、钠、氯、钙）","全部","用于检查电解质是否平衡。",35,35,"□"]
[null,"8166","★抗甲状腺球蛋白抗体（TG-Ab）（化学发光法）","全部","用于甲状腺疾病的辅助诊断。",80,80,"□"]
[null,"8174","★支原体培养+药敏","全部","",130,130,"□"]
[null,"8175","★α-L-岩藻糖苷酶（AFU）","全部","α-L-岩藻糖苷酶，是原发性肝癌的标志物之一。",40,40,"□"]
[null,"8176","★胆碱酯酶（CHE）","全部","检测血清CHE主要用于诊断肝脏疾病和有机磷中毒。",10,10,"□"]
[null,"8177","★抗可溶性抗原(风湿七项)","全部","辅助诊断自身免疫性疾病。",150,150,"□"]
[null,"8179","梅毒血清试验(TRUST)","全部","梅毒感染初筛实验，辅助诊断梅毒。",30,{"$f":"F136*0.7","v":21},"□"]
[null,"8180","★梅毒螺旋体特异抗体测定(TPPA)","全部","梅毒螺旋体特异抗体测定",60,60,"□"]
[null,"8023","★甲功五项(TSH、T3、T4、FT3、FT4）","全部","用于甲状腺功能亢进或甲状腺功能减低等筛查。",260,260,"□"]
[null,"8068","★甲功三项（TSH、TT3、TT4)","全部","用于甲状腺功能评价、甲状腺疾病诊断及治疗监测。",154,156,"□"]
[null,"8184","★甲功三项（TSH、FT3、FT4）","全部","用于甲状腺功能评价、甲状腺疾病的诊断和治疗监测。",154,156,"□"]
[null,"8189","★唐氏综合症Ⅰ期筛查(孕早期)","女","运用风险评估软件结合年龄、体重、身高、孕周、吸烟史、糖尿病史等资料评估出胎儿患病的危险度，筛查21-三体综合症。",177,177,"□"]
[null,"8190","★唐氏综合症Ⅱ期筛查(孕中期)","女","运用风险评估软件结合年龄、体重、身高、孕周、吸烟史、糖尿病史等资料评估出胎儿患病的危险度，筛查21-三体综合症、神经管畸形等。",178,178,"□"]
[null,"8193","★总IgE测定","全部","常见于超敏反应性疾病；寄生虫感染及高IgE型多发性骨髓瘤、AIDS、高IgE综合征患者；过敏反应诊断指标。",70,70,"□"]
[null,"8203","★总胆汁酸测定(TBA)","全部","辅助诊断肝功能",30,30,"□"]
[null,"8204","★乳酸脱氢同工酶1测定(LDH-1)","全部","",5,5,"□"]
[null,"8212","★免疫球蛋白三项测定","全部","辅助诊断免疫系统疾病",60,60,"□"]
["—59—"]
["放         射        项          目    ","6011","胸部正位（DR机、无激光片)怀孕或可能怀孕者禁检","全部","检查心肺疾病，如心脏增大，各种肺结核，各种肺炎，肺癌，纵膈肿瘤等",70,{"$f":"F148*0.7","v":49},"□"]
[null,"6006","颈椎侧位（DR机、无激光片)","全部","检查有无颈椎病、骨质增生、退行性变等。",45,31.5,"□"]
[null,"6015","腰椎侧位（DR机、无激光片)","全部","检查有无腰椎间盆突出、骨质增生、退行性变等。",70,49,"□"]
[null,"6001","左侧膝关节正侧位（DR机、无激光片)","全部","用于膝关节病变的检查。",90,63,"□"]
[null,"6002","胸部侧位（DR机、无激光片)","全部","检查心肺疾病，如心脏增大，各种肺结核，各种肺炎，肺癌，纵膈肿瘤等",70,49,"□"]
[null,"6003","颈椎正侧位（DR机、无激光片)","全部","检查有无颈椎病、骨质增生、退行性变等。",90,63,"□"]
[null,"6004","右侧肘关节正侧位（DR机、无激光片)","全部","用于肘关节病变的检查。",90,63,"□"]
[null,"6005","胸部正侧位（DR机、无激光片)","全部","检查心肺疾病，如心脏增大，各种肺结核，各种肺炎，肺癌，纵膈肿瘤等",130,91,"□"]
[null,"6007","颈椎双斜位（DR机、无激光片)","全部","检查有无颈椎病、骨质增生、退行性变等。",90,63,"□"]
[null,"6008","颈椎正侧双斜位（DR机、无激光片)","全部","检查有无颈椎病、骨质增生、退行性变等。",180,126,"□"]
[null,"6009","腰椎正侧位（DR机、无激光片)","全部","检查有无腰椎间盆突出、骨质增生、退行性变等。",130,91,"□"]
[null,"6010","左侧肘关节正侧位（DR机、无激光片)","全部","用于肘关节病变的检查。",90,63,"□"]
[null,"6012","左侧腕关节正侧位（DR机、无激光片)","全部","用于腕关节病变的检查。",90,63,"□"]
[null,"6013","右侧膝关节正侧位（DR机、无激光片)","全部","用于膝关节病变的检查。",90,63,"□"]
[null,"6014","右侧腕关节正侧位（DR机、无激光片)","全部","用于腕关节病变的检查。",90,63,"□"]
[null,"6016","胸透","全部","主要检查心肺疾患。",12,8.4,"□"]
[null,"6017","节育环透视","女","用于检查节育环形态及位置。",12,8.4,"□"]
[null,"6018","颈椎正位（DR机、无激光片)","全部","检查有无颈椎病、骨质增生、退行性变等。",45,31.5,"□"]
[null,"6019","颈椎侧斜位（DR机、无激光片)","全部","检查有无颈椎病、骨质增生、退行性变等。",45,31.5,"□"]
[null,"6020","腰椎正位（DR机、无激光片)","全部","检查有无腰椎间盆突出、骨质增生、退行性变等。",70,49,"□"]
[null,"6021","骨盆正位（DR机、无激光片)","全部","用于骨盆病变 的检查。",70,49,"□"]
[null,"6022","胸椎侧位（DR机、无激光片)","全部","用于胸椎变的检查。",70,49,"□"]
[null,"6023","胸椎正侧位（DR机、无激光片)","全部","用于胸椎变的检查。    ",130,91,"□"]
[null,"6024","左侧肩关节正位（DR机、无激光片)","全部","用于肩关节病变的检查。",70,49,"□"]
[null,"6025","右侧肩关节正位（DR机、无激光片)","全部","用于肩关节病变的检查。",70,49,"□"]
[null,"6026","左侧踝关节正侧位（DR机、无激光片)","全部","用于踝关节病变的检查。",90,63,"□"]
[null,"6027","右侧踝关节正侧位（DR机、无激光片)","全部","用于踝关节病变的检查。",90,63,"□"]
[null,"6028","左足背正斜位（DR机、无激光片)","全部","用于足背病变的检查。",90,63,"□"]
[null,"6029","右足背正斜位（DR机、无激光片)","全部","用于足背病变的检查。",90,63,"□"]
[null,"6030","骶尾椎侧位（DR机、无激光片)","全部","用于骶尾椎病变的检查。",70,49,"□"]
["—60—"]
["放         射        项          目    ","6031","双手正位（DR机、无激光片)","全部","用于双手病变的检查。",55,{"$f":"F179*0.7","v":38.5},"□"]
[null,"6032","左侧髋关节正位（DR机、无激光片)","全部","用于髋关节病变的检查。",70,49,"□"]
[null,"6033","右侧髋关节正位（DR机、无激光片)","全部","用于髋关节病变的检查。",70,49,"□"]
[null,"6034","左侧股骨正侧位（DR机、无激光片)","全部","用于股骨病变的检查。",130,91,"□"]
[null,"6035","右侧股骨正侧位（DR机、无激光片)","全部","用于股骨病变的检查。",130,91,"□"]
[null,"6036","左侧胫腓骨正侧位（DR机、无激光片)","全部","用于胫腓骨病变的检查。",130,91,"□"]
[null,"6037","右侧胫腓骨正侧位（DR机、无激光片)","全部","用于胫腓骨病变的检查。",130,91,"□"]
[null,"6039","左侧膝关节侧位（DR机、无激光片)","全部","用于膝关节病变的检查。",35,24.5,"□"]
[null,"6040","右侧膝关节侧位（DR机、无激光片)","全部","用于膝关节病变的检查。",35,24.5,"□"]
["CT检查","8868","颅脑CT平扫（无激光片）","全部","颅脑平扫",380,266,"□"]
[null,"8869","颅底薄层CT平扫（无激光片）","全部","颅脑底薄层平扫",380,266,"□"]
[null,"8870","副鼻窦CT平扫（无激光片）","全部","副鼻窦平扫",380,266,"□"]
[null,"8871","鼻骨CT平扫（无激光片）","全部","鼻骨平扫",380,266,"□"]
[null,"8872","鼻咽部CT平扫（无激光片）","全部","鼻咽部平扫",380,266,"□"]
[null,"8873","双眼CT平扫（无激光片）","全部","双眼平扫",380,266,"□"]
[null,"8874","颈部CT平扫（无激光片）","全部","颈部平扫",380,266,"□"]
[null,"8875","胸部CT平扫(无激光片）","全部","胸部平扫",380,266,"□"]
[null,"8876","上腹部CT平扫（无激光片）","全部","上腹部平扫",380,266,"□"]
[null,"8877","下腹部CT平扫（无激光片）","全部","下腹部平扫",380,266,"□"]
[null,"8878","男性盆腔CT平扫（无激光片）","全部","男性盆腔平扫",380,266,"□"]
[null,"8879","女性盆腔CT平扫（无激光片）","全部","女性盆腔平扫",380,266,"□"]
[null,"8880","双肾CT平扫（无激光片）","全部","双肾平扫",380,266,"□"]
[null,"8881","泌尿系CT平扫（无激光片）","全部","泌尿系平扫",380,266,"□"]
[null,"8882","颈椎CT平扫（无激光片）","全部","颈椎平扫",380,266,"□"]
[null,"8883","颈椎椎间盘CT平扫（无激光片）","全部","颈椎椎间盘平扫",380,266,"□"]
[null,"8884","胸椎CT平扫（无激光片）","全部","胸椎平扫",380,266,"□"]
[null,"8885","腰椎CT平扫（无激光片）","全部","腰椎平扫",380,266,"□"]
[null,"8886","腰椎椎间盘CT平扫（无激光片）","全部","腰椎椎间盘平扫",380,266,"□"]
[null,"8890","足部CT平扫（无激光片）","全部","足部平扫",380,266,"□"]
[null,"8891","踝关节CT平扫（无激光片）","全部","踝关节平扫",380,266,"□"]
[null,"8892","手部CT平扫（无激光片）","全部","手部平扫",380,266,"□"]
[null,"8894","肩关节CT平扫（无激光片）","全部","肩关节平扫",380,266,"□"]
[null,"9973","其他部位CT平扫（无激光片）","全部","其他部位平扫",380,266,"□"]
["—61—"]

{"sheet":"附件10宏元套餐","index":13,"n_rows":111,"n_cols":5,"rows_kept":111,"cut":false,"hidden":false,"merged":[[0,0,0,4],[1,0,1,4],[2,1,2,2],[17,0,17,4],[31,0,31,4],[35,0,35,4],[38,0,38,4],[39,1,39,2],[43,0,43,4],[61,0,61,4],[68,0,68,4],[72,0,72,4],[78,0,78,4],[79,1,79,2],[86,0,86,4],[104,0,104,4],[108,0,108,4],[110,0,110,4],[32,0,34,1],[69,0,71,1],[73,0,75,4],[105,0,107,1]]}
["附件10"]
["2018年东莞宏元中医医院律师体检套餐（女已婚）"]
["序号","体检项目",null,"临床意义","价格"]
[1,"一般检查","身高、体重、血压（BP）","身高 、体重、血压基本健康状态参数，了解体重是否正常，有无体重不足、超重或肥胖，为相关科室的诊断提供依据。",25]
[2,"内科","心、肺听诊，腹部触诊","心肺有无异常，肝脾有无肿大、腹部有无包块等。",10]
[3,"外科","浅表淋巴结，甲状腺、乳房、脊柱、四肢、外生殖器、前列腺、肛肠指检、皮肤等","淋巴结有无肿大，甲状腺、乳房、肛肠有无异常、四肢脊柱有无畸形等",10]
[4,"中医脉诊","搭脉，看舌苔","中医辩证",50]
[5,"中医体质辨识",null,"辨识九种体质。",40]
[6,"血常规","检查白细胞、红细胞、血小板等","通过检测血液细胞的计数及不同种类细胞、成分的分类来反映身体状况，如：贫血、感染、血液系统疾病、物理化学因素损伤等。",15]
[7,"血型","血型，Rh定性","可鉴别血型及定性",18]
[8,"肝功能四项","丙氨酸氨基转移酶(ALT)、血清白蛋白，血清总蛋白，血清胆红素","可提示肝胆系统疾病。 ",24]
[9,"肾功能四项","尿素（Urea）、肌酐（CR）、尿酸（UA），葡萄糖","主要用于了解肾功能异常，痛风，尿酸偏高等。",30]
[10,"血脂四项","甘油三酯(TG)、总胆固醇(CHOL)、高密度脂蛋白（HDL）、低密度脂蛋白（LDL）","用于评估受检者的脂肪代谢水平及血脂代谢紊乱评价、动脉粥样硬化性疾病危险性预测和营养学评价。",36]
[11,"乙肝两对半","表面抗原，表面抗体，e抗原，e抗体，核心抗体\n","可提示有无肝炎",40]
[12,"肿瘤标志检测","甲胎蛋白定量(AFP)","可提示有无原发性肝癌，生殖腺胚胎性肿瘤，肝硬化等。",11]
[13,"肿瘤标志检测","癌胚抗原定量(CEA)","为广谱肿瘤标志物，可提示直肠癌、结肠癌、肺癌、乳腺癌、胰腺癌等。",69]
[14,"尿常规","颜色、比重、酸碱度、尿糖、隐血、尿胆素、尿胆原、胆红素、尿蛋白、亚硝酸盐、镜检","可提示有无泌尿系统疾患：如急、慢性肾炎，肾盂肾炎，膀胱炎，尿道炎，肾病综合征，狼疮性肾炎，血红蛋白尿，肾梗塞、肾小管重金属盐及药物导致急性肾小管坏死，肾或膀胱肿瘤以及有无尿糖等。",10]
["—62—"]
[15,"妇科（已婚项目）","妇科常规检查","检查女性生殖器有无异常改变、有无宫颈及阴道异常病变。",8]
[16,"妇科（已婚项目）","白带常规","了解阴道分泌物的清洁度，阴道有无炎症、白细胞、霉菌、滴虫等。",31]
[17,"心电图","十二导心电图","用于心肌梗死、心律失常、心肌缺血等心脏疾病的检查。",26]
[18,"数字X光减影（DR）","颈椎正侧位","有无颈椎骨质增生、椎管狭窄等",110]
[19,"数字X光减影（DR）","腰椎正侧位","有无腰椎骨质增生、椎管狭窄等",110]
[20,"数字X光减影（DR）","胸部正位片","有无肺部疾病及心脏、主动脉、纵膈、横膈疾病等。",60]
[21,"彩色超声","肝胆脾胰彩超","更清晰的检查肝脏、胆囊、胆管、脾脏、胰腺等是否异常病变发生。",120]
[22,"彩色超声","泌尿系彩超","检查能较好的显示前列腺、双肾、输尿管、膀胱的形态、大小，对于有无增生、结石、肥大、钙化等疾病具有诊断意义。",120]
[23,"彩色超声","子宫附件彩超","更清晰的观察子宫、卵巢、盆腔等生殖器是否有病变发生。",120]
[24,"图文报告费","1次彩超报告，2次DR报告",null,15]
[25,"静脉采血",null,null,2.5]
[26,"材料费","采血针，采血管",null,6.5]
[27,"一次性材料","材料",null,10.23]
["费用共计：1127.00   折后价：400.00"]
["赠送中医特色疗法一次           （三选一）",null,"外治疗法","推拿或正骨",138]
[null,null,"中医艾灸养生","中药艾灸条保养",60]
[null,null,"生物能量治疗","针对亚健康、多种慢性疾病（含中药外治酵素浴）",398]
["东莞宏元中医医院  地址：南城区众利路（艺展中心对面） 预约电话：0769-38959555"]
[]
[]
["2018年东莞宏元中医医院律师体检套餐（女未婚）"]
["序号","体检项目",null,"临床意义","价格"]
[1,"一般检查","身高、体重、血压（BP）","身高 、体重、血压基本健康状态参数，了解体重是否正常，有无体重不足、超重或肥胖，为相关科室的诊断提供依据。",25]
[2,"内科","心、肺听诊，腹部触诊","心肺有无异常，肝脾有无肿大、腹部有无包块等。",10]
[3,"外科","浅表淋巴结，甲状腺、乳房、脊柱、四肢、外生殖器、前列腺、肛肠指检、皮肤等","淋巴结有无肿大，甲状腺、乳房、肛肠有无异常、四肢脊柱有无畸形等",10]
["—63—"]
[4,"中医脉诊","搭脉，看舌苔","中医辩证",50]
[5,"中医体质辨识",null,"辨识九种体质。",40]
[6,"血常规","检查白细胞、红细胞、血小板等","通过检测血液细胞的计数及不同种类细胞、成分的分类来反映身体状况，如：贫血、感染、血液系统疾病、物理化学因素损伤等。",15]
[7,"血型","血型，Rh定性","可鉴别血型及定性",18]
[8,"肝功能四项","丙氨酸氨基转移酶(ALT)、血清白蛋白，血清总蛋白，血清胆红素","可提示肝胆系统疾病。 ",24]
[9,"肾功能四项","尿素（Urea）、肌酐（CR）、尿酸（UA），葡萄糖","主要用于了解肾功能异常，痛风，尿酸偏高等。",30]
[10,"血脂四项","甘油三酯(TG)、总胆固醇(CHOL)、高密度脂蛋白（HDL）、低密度脂蛋白（LDL）","用于评估受检者的脂肪代谢水平及血脂代谢紊乱评价、动脉粥样硬化性疾病危险性预测和营养学评价。",36]
[11,"乙肝两对半","表面抗原，表面抗体，e抗原，e抗体，核心抗体\n","可提示有无肝炎",40]
[12,"肿瘤标志检测","甲胎蛋白定量(AFP)","可提示有无原发性肝癌，生殖腺胚胎性肿瘤，肝硬化等。",11]
[13,"肿瘤标志检测","癌胚抗原定量(CEA)","为广谱肿瘤标志物，可提示直肠癌、结肠癌、肺癌、乳腺癌、胰腺癌等。",69]
[14,"EB病毒检测","EBV-EA抗体","检测鼻咽癌标志物",20]
[15,"尿常规","颜色、比重、酸碱度、尿糖、隐血、尿胆素、尿胆原、胆红素、尿蛋白、亚硝酸盐、镜检","可提示有无泌尿系统疾患：如急、慢性肾炎，肾盂肾炎，膀胱炎，尿道炎，肾病综合征，狼疮性肾炎，血红蛋白尿，肾梗塞、肾小管重金属盐及药物导致急性肾小管坏死，肾或膀胱肿瘤以及有无尿糖等。",10]
[16,"心电图","十二导心电图","用于心肌梗死、心律失常、心肌缺血等心脏疾病的检查。",26]
[17,"数字X光减影（DR）","颈椎正侧位","有无颈椎骨质增生、椎管狭窄等",110]
[18,"数字X光减影（DR）","腰椎正侧位","有无腰椎骨质增生、椎管狭窄等",110]
[19,"数字X光减影（DR）","胸部正侧位","有无肺部疾病及心脏、主动脉、纵膈、横膈疾病等。",50]
[20,"彩色超声","肝胆脾胰彩超","更清晰的检查肝脏、胆囊、胆管、脾脏、胰腺等是否异常病变发生。",120]
["—64—"]
[21,"彩色超声","泌尿系彩超","检查能较好的显示前列腺、双肾、输尿管、膀胱的形态、大小，对于有无增生、结石、肥大、钙化等疾病具有诊断意义。",120]
[22,"彩色超声","子宫附件彩超","更清晰的观察子宫、卵巢、盆腔等生殖器是否有病变发生。",120]
[23,"图文报告费","1次彩超报告，2次DR报告",null,45]
[24,"静脉采血",null,null,2.5]
[25,"材料费","采血针，采血管",null,6.5]
[26,"一次性材料","材料",null,10.23]
["费用共计：1177.23   折后价：400.00"]
["赠送中医特色疗法一次（三选一）",null,"外治疗法","推拿或正骨",138]
[null,null,"中医艾灸","中药艾灸条保养",60]
[null,null,"生物能量治疗","针对亚健康、多种慢性疾病（含中药外治酵素浴）",398]
["东莞宏元中医医院  地址：南城区众利路（艺展中心对面） 预约电话：0769-38959555"]
[]
[]
[]
[]
[]
["2018年东莞宏元中医医院律师体检套餐（男）"]
["序号","体检项目",null,"临床意义","价格"]
[1,"一般检查","身高、体重、血压（BP）","身高 、体重、血压基本健康状态参数，了解体重是否正常，有无体重不足、超重或肥胖，为相关科室的诊断提供依据。",25]
[2,"内科","心、肺听诊，腹部触诊","心肺有无异常，肝脾有无肿大、腹部有无包块等",10]
[3,"外科","浅表淋巴结，甲状腺、乳房、脊柱、四肢、外生殖器、前列腺、肛肠指检、皮肤等","淋巴结有无肿大，甲状腺、乳房、肛肠有无异常、四肢脊柱有无畸形等。",10]
[4,"中医脉诊","搭脉，看舌苔","中医辩证",50]
[5,"中医体质辨识",null,"辨识九种体质。",40]
[6,"血常规","检查白细胞、红细胞、血小板等","通过检测血液细胞的计数及不同种类细胞、成分的分类来反映身体状况，如：贫血、感染、血液系统疾病、物理化学因素损伤等。",15]
["—65—"]
[7,"血型","血型，Rh定性","可鉴别血型及定性",18]
[8,"肝功能九项","丙氨酸氨基转移酶(ALT)、血清白蛋白，血清总蛋白，血清胆红素等","可提示肝胆系统疾病。 ",78]
[9,"血脂四项","甘油三酯(TG)、总胆固醇(CHOL)、高密度脂蛋白（HDL）、低密度脂蛋白（LDL）","用于评估受检者的脂肪代谢水平及血脂代谢紊乱评价、动脉粥样硬化性疾病危险性预测和营养学评价。",36]
[10,"肾功能四项","尿素（Urea）、肌酐（CR）、尿酸（UA），葡萄糖","主要用于了解肾功能异常，痛风，尿酸偏高等。",30]
[11,"乙肝两对半","表面抗原，表面抗体，e抗原，e抗体，核心抗体\n","可提示有无肝炎",40]
[12,"肿瘤标志检测","癌胚抗原定量(CEA)","为广谱肿瘤标志物，可提示直肠癌、结肠癌、肺癌、乳腺癌、胰腺癌等。",69]
[null,"肿瘤标志检测","甲胎蛋白定量(AFP)","可提示有无原发性肝癌，生殖腺胚胎性肿瘤，肝硬化等。",11]
[13,"尿常规","颜色、比重、酸碱度、尿糖、隐血、尿胆素、尿胆原、胆红素、尿蛋白、亚硝酸盐、镜检","可提示有无泌尿系统疾患：如急、慢性肾炎，肾盂肾炎，膀胱炎，尿道炎，肾病综合征，狼疮性肾炎，血红蛋白尿，肾梗塞、肾小管重金属盐及药物导致急性肾小管坏死，肾或膀胱肿瘤以及有无尿糖等。",10]
[16,"心电图","十二导心电图","用于心肌梗死、心律失常、心肌缺血等心脏疾病的检查。",26]
[17,"数字X光减影（DR）","胸部正位片","有无肺部疾病及心脏、主动脉、纵膈、横膈疾病等。",60]
[18,"数字X光减影（DR）","腰椎正侧位","有无腰椎骨质增生、椎管狭窄等",110]
[19,"数字X光减影（DR）","颈椎正侧位","有无颈椎骨质增生、椎管狭窄等",110]
[20,"彩色超声","肝胆脾胰彩超","更清晰的检查肝脏、胆囊、胆管、脾脏、胰腺等是否异常病变发生。",120]
[21,"彩色超声","泌尿系彩超","检查能较好的显示前列腺、双肾、输尿管、膀胱的形态、大小，对于有无增生、结石、肥大、钙化等疾病具有诊断意义。",120]
[22,"图文报告费","2次彩超报告，3次DR报告",null,15]
[23,"静脉采血",null,null,2.5]
[24,"材料费","采血针、采血管",null,6.5]
["费用总计：1012 .00  折后价：400.00"]
["赠送中医特色疗法一次           （三选一）",null,"外治疗法","推拿或正骨",138]
[null,null,"中医艾灸","中药艾灸条保养",60]
[null,null,"生物能量治疗","针对亚健康、多种慢性疾病（含中药外治酵素浴）",398]
["东莞宏元中医医院  地址：南城区众利路（艺展中心对面） 预约电话：0769-38959555"]
[]
["—66—"]

{"sheet":"附件10宏元自选项目","index":14,"n_rows":118,"n_cols":7,"rows_kept":118,"cut":false,"hidden":false,"merged":[[0,0,0,6],[2,0,2,6],[3,2,3,3],[24,0,24,6],[44,0,44,6],[70,0,70,6],[117,0,117,6],[4,1,23,1],[25,1,42,1],[47,1,53,1],[54,1,59,1],[60,1,69,1],[71,1,99,1],[101,0,105,6]]}
["2018年东莞宏元中医医院自选体检项目及报价 "]
[]
["注：自选项目价格每项折扣为7折"]
["序号",null,"体检项目",null,"临床意义","价格","优惠价"]
[1,"化\n验\n类\n项\n目","性激素六项","FSH、LH、P、PRL、T、E2","性激素分泌水平检测，闭经、性早熟、妊娠、不孕、不育、高泌乳素血症等指标",345,{"$f":"F5*0.7","v":241.5}]
[2,null,"糖化血红蛋白","Hb1A1C","反应2-3个月内平均血糖的水平，用于糖尿病疗效观察",80,56]
[3,null,"微量元素六项","Fe、Mg、Ca、Zn、Pb","判断人体微量元素平衡状态，评价营养状况，预防微量元素失衡所致疾病的发生",58,40.6]
[4,null,"糖尿病三项","INS、ICA、GAD-Ab","糖尿病诊断治疗监测",148,103.6]
[5,null,"幽门螺旋杆菌IgG抗体检测","IgG抗体","为慢性胃炎的致病因素之一，与消化性溃疡，尤其是十二指肠溃疡有密切关系，长期感染也有可能引起胃癌的危险因素",46,32.2]
[6,null,"血液流变学检查","全血粘度、还原性粘度、红细胞集聚指数，红细胞刚性指数，红细胞变形指数，红细胞压积","监测是否存在高血压、高血脂、糖尿病、冠心病、心肌梗塞、血栓形成等危险因素。",64,44.8]
[7,null,"甲功5项","FT3、FT4、rT3、TGAb、TMAb","判断甲状腺功能。鉴别免疫性疾病",280,196]
[8,null,"电解质六项","钾测定、钠测定、氯测定、钙测定、镁测定、铁测定","电解质平衡，电解质失衡导致人体乏力、眩晕、恶心等",30,21]
[9,null,"凝血四项","血浆凝血酶原时间测定(PT)、凝血酶原时间、血浆纤维蛋白原测定、活化部分凝血活酶时间测定(APTT)\n","了解凝血情况。",92,64.4]
[10,null,"高血压四项","AT-I、AT-II、PRA、ALD","高血压的鉴别诊断及疗效评价",195,136.5]
[11,null,"风湿九项","EMA-8、ACA","类风湿关节炎辅助诊断",154.4,108.08]
[12,null,"贫血三项","FOL、VB12、FER","贫血诊断分型和病情监测",190,133]
[13,null,"胰岛素测定",null,"评估低血糖、糖尿病分型、评估胰岛素β细胞活性，研究胰岛素抵抗",63,44.1]
[14,null,"血沉","ECR","恶性肿瘤、急性炎症、活动性肺结核等",9,6.3]
[15,null,"C-反应蛋白",null,"心血管病变的独立危险因素，对血管病变存在和发生心血管意外预测和预防具有重要意义",16,11.2]
[16,null,"肝功能十二项","丙氨酸氨基转移酶(ALT)、天门冬氨酸氨基转移酶(AST)、天冬/丙氨(AST/ALT)、谷氨酰转肽酶(GGT)、碱性磷酸酶(ALP)、总胆红素(TBIL)、直接胆红素(DBIL)、间接胆红素(IBIL)、总蛋白(TP)、白蛋白(ALB)、球蛋白(GLO)、白/球比值(A/G)","通过对肝脏酶、蛋白、胆红素的检测，可反映肝细胞的合成功能情况，肝细胞实质受损情况，肝内、外胆道阻塞情况等。",133,93.1]
[17,null,"肝功能九项","丙氨酸氨基转移酶(ALT)、天门冬氨酸氨基转移酶(AST)、谷氨酰转肽酶(GGT)、碱性磷酸酶(ALP)、总胆红素(TBIl)、总胆汁酸、总蛋白(TP)、白蛋白（ALB） ","了解肝脏功能情况，是否有肝细胞损害，胆道梗阻、急慢性肝炎、脂肪肝、肝硬化等病症",78,54.6]
[18,null,"肝功能五项","丙氨酸氨基转移酶(ALT)、天门冬氨酸氨基转移酶(AST)、白蛋白(ALB)、总蛋白(TP)、总胆红素(TBIL)","了解肝脏功能情况，是否有肝细胞损害、肝脏疾病及胆道疾病等病症",34,23.8]
[19,null,"肝功能二项","丙氨酸氨基转移酶(ALT)、天门冬氨酸氨基转移酶(AST)","ALT与AST在肝细胞内的浓度较高，相结合可用于诊断各类肝脏性疾病。",10,7]
[20,null,"肝功能一项","丙氨酸氨基转移酶(ALT)","可检测急、慢性病毒性肝炎、酒精性肝病、肝癌、肝硬化、脂肪肝等。",5,3.5]
["—67—"]
[21,"化\n验\n类\n项\n目","肝功能","天门冬氨酸氨基转移酶(AST)","可检测急、慢性病毒性肝炎、酒精性肝病、肝癌、肝硬化、脂肪肝、心肌梗死等。",5,{"$f":"F26*0.7","v":3.5}]
[22,null,"肝功能","谷氨酰转肽酶(GGT)","可检测胆道阻塞性疾病、急慢性肝炎、肝硬化、酒精性肝炎、脂肪肝、胰腺炎、胰腺肿瘤等。",5,3.5]
[23,null,"胆碱脂酶","胆碱脂酶","用于有机磷中度，严重消耗性疾病，肝实质损伤等的检测",15,10.5]
[24,null,"肝功能","碱性磷酸酶(ALP)","用于检测肝胆系统疾病、黄疸的鉴别诊断、骨骼疾病等。",5,3.5]
[25,null,"肝功能","总胆红素(TBIL)","用于黄疸性肝炎及各类溶血性黄疸的诊断与鉴别诊断。",5,3.5]
[26,null,"肝功能","白蛋白(ALB)","检测肠道吸收障碍、营养不良、慢性消耗性疾病、肾病综合征、肝硬化等。",7,4.9]
[27,null,"血脂六项","载脂蛋A1(ApoAI)、载脂蛋白B(APO-B)、高密度脂蛋白（HDL）、低密度脂蛋白（LDL）、甘油三酯(TG)、总胆固醇(CHOL)","用于动脉粥样硬化、高血压、脑血管病、冠心病、糖尿病、肥胖与高脂血症、肾病综合症等预警及诊断。",86,60.2]
[28,null,"血脂四项","甘油三酯(TG)、总胆固醇(CHOL)、高密度脂蛋白（HDL）、低密度脂蛋白（LDL）","用于评估受检者的脂肪代谢水平及血脂代谢紊乱评价、动脉粥样硬化性疾病危险性预测和营养学评价。",36,25.2]
[29,null,"血脂二项","甘油三酯(TG)、总胆固醇(CHOL)","血脂浓度与心脑血管疾病关系密切，对诊断动脉硬化症，冠心病及肾病综合症有参考意义。",10,7]
[30,null,"血脂一项","甘油三脂（TG）","血脂浓度与心脑血管疾病关系密切，对诊断动脉硬化症，冠心病及肾病综合症有参考意义。",5,3.5]
[31,null,"血脂一项","总胆固醇(CHOL)","血脂浓度与心脑血管疾病关系密切，对诊断动脉硬化症，冠心病及肾病综合症有参考意义。",5,3.5]
[32,null,"血脂一项","低密度脂蛋白（LDL）","血脂浓度与心脑血管疾病关系密切，对诊断动脉硬化症，冠心病及肾病综合症有参考意义。",11,7.7]
[33,null,"心肌酶谱四项","天门冬氨酸氨基转移酶②(AST)、乳酸脱氢酶(LDH)、肌酸激酶(CK)、α-羟丁酸脱氢酶(α-HBDH)","用于心肌梗塞、心肌炎、皮肌炎等的辅助诊断",30,21]
[34,null,"心肌酶六谱","天门冬氨酸氨基转移酶②(AST)、乳酸脱氢酶(LDH)、肌酸激酶(CK)、肌酸激酶同工酶(CK-MB)、丙氨酸氨基转移酶(ALT)、α-羟丁酸脱氢酶(α-HBDH)","用于心肌梗塞、心肌炎、皮肌炎等的辅助诊断",93,65.1]
[35,null,"肌钙蛋白T","（TnT-ghs）","心肌损伤的特异指标",69,48.3]
[36,null,"丙肝",null,"阳性见于丙肝感染",28,19.6]
[37,null,"梅毒TRUST半定量","TRUST","辅助诊断梅毒",50,35]
[38,null,"人类免疫缺陷病毒抗体检测","HIV-Ab","辅助诊断艾滋病感染指标",40,28]
[39,"尿液检查","尿常规","颜色、比重、酸碱度、尿糖、隐血、尿胆素、尿胆原、胆红素、尿蛋白、亚硝酸盐、镜检","可提示有无泌尿系统疾患：如急、慢性肾炎，肾盂肾炎，膀胱炎，尿道炎，肾病综合征，狼疮性肾炎，血红蛋白尿，肾梗塞、肾小管重金属盐及药物导致急性肾小管坏死，肾或膀胱肿瘤以及有无尿糖等",10,7]
["—68—"]
[40,"大便检查","大便检查","颜色、外观性状、红细胞、白细胞、粘液、虫卵、真菌+隐血","主要检查项目是大便的性状、是否存在白细胞、以及是否存在潜血等情况，检查粪便中隐藏的红细胞或血红蛋白的一项实验。这对检出引起消化道出血的疾病：如急慢性胃炎、胃十二指肠溃疡、胃癌、肠癌等是非常有用的。",19,{"$f":"F46*0.7","v":13.3}]
[41,"男性专项","精液检查","精液","检查精子的活跃度、存活率",35,24.5]
[42,"女性专项","女性专项检查（已婚项目）","人乳头瘤病毒检测HPV","宫颈癌筛查，AS-CUS结果分流，术后回访",345,241.5]
[43,null,"女性专项检查（已婚项目）","妇科常规检查","检查女性生殖器有无异常改变、有无宫颈及阴道异常病变。",8,5.6]
[44,null,"女性专项检查（已婚项目）","白带常规","了解阴道分泌物的清洁度，阴道有无炎症、白细胞、霉菌、滴虫等。",9,6.3]
[45,null,"女性专项检查（已婚项目）","宫颈涂片","又称宫颈细胞巴氏分级，主要是宫颈癌细胞学检查，能检查出部分癌前病变以及微生物的感染。",200,140]
[46,null,"女性专项检查（已婚项目）","细菌性阴道病检测(BV)","用于细菌性阴道疾病致病菌的筛查。",15,10.5]
[47,null,"女性专项检查（已婚项目）","宫颈液基细胞检测(LCT或TCT)","对宫颈癌前病变的筛查率在97%以上，还能了解宫颈炎性的改变及其他各类病毒感染引起的病变，如HPV感染等",200,140]
[48,null,"女性专项检查（已婚项目）","电子阴道镜","直观、有效地发现宫颈糜烂、用于诊断癌症及其它妇科疾病和性疾病，建议中度以上宫颈糜烂患者常规进行阴道镜检查，该检查无任何创伤及副作用，对相关检查信息可以留存。",105,73.5]
[49,"彩\n超\n类\n项\n目","彩色超声检查","肝、胆、脾、胰彩超","更清晰的诊断炎症、囊肿、肿瘤、结石、梗阻、血管瘤、肝硬化、脂肪肝等，提供高清晰度的动态彩色超声诊断图像",120,84]
[50,null,"彩色超声检查","双肾彩超","更清晰的检查肾癌、游走肾等是否异常病变发生",120,84]
[51,null,"彩色超声检查","双肾、输尿管、膀胱彩超","检查诊断炎症、囊肿、肿瘤、结石、肾癌、游走肾、膀胱癌、膀胱畸形、输尿管膀胱积水等，提供高清晰度的动态彩色超声诊断图像",120,84]
[52,null,"彩色超声检查","前列腺彩超","检查能较好的显示前列腺的形态、大小，对于前列腺增生、肥大、钙化等疾病具有诊断意义。提供高清晰度的动态彩色超声断层图像诊断。",120,84]
[53,null,"彩色超声检查","子宫、附件彩超","更清晰的观察子宫、卵巢、盆腔等生殖器是否有病变发生，如子宫肌瘤、囊肿等。",120,84]
[54,null,"彩色超声检查","阴道彩超（子宫、附件彩超）","更清晰的观察子宫、卵巢、盆腔等生殖器是否有病变发生，如子宫肌瘤、囊肿等。",130,91]
[55,"放\n射\n科\n项\n目","胸部正位怀孕或可能怀孕者禁检","不含胶片","检查心肺疾病，如心脏增大，各种肺结核，各种肺炎，肺癌，纵膈肿瘤等",60,42]
[56,null,"颈椎侧位","不含胶片","检查有无颈椎病、骨质增生、退行性变等。",60,42]
[57,null,"腰椎侧位","不含胶片","检查有无腰椎间盆突出、骨质增生、退行性变等。",60,42]
[58,null,"左侧膝关节正侧位","不含胶片","用于膝关节病变的检查。",110,77]
[59,null,"胸部侧位","不含胶片","检查心肺疾病，如心脏增大，各种肺结核，各种肺炎，肺癌，纵膈肿瘤等",60,42]
[60,null,"颈椎正侧位","不含胶片","检查有无颈椎病、骨质增生、退行性变等。",110,77]
[61,null,"右侧肘关节正侧位","不含胶片","用于肘关节病变的检查。",110,77]
[62,null,"胸部正侧位","不含胶片","检查心肺疾病，如心脏增大，各种肺结核，各种肺炎，肺癌，纵膈肿瘤等",110,77]
[63,null,"颈椎双斜位","不含胶片","检查有无颈椎病、骨质增生、退行性变等。",110,77]
[64,null,"颈椎正侧双斜位","不含胶片","检查有无颈椎病、骨质增生、退行性变等。",220,154]
["—69—"]
[65,"放\n射\n科\n项\n目","腰椎正侧位","不含胶片","检查有无腰椎间盆突出、骨质增生、退行性变等。",110,{"$f":"F72*0.7","v":77}]
[66,null,"左侧肘关节正侧位","不含胶片","用于肘关节病变的检查。",110,77]
[67,null,"左侧腕关节正侧位","不含胶片","用于腕关节病变的检查。",110,77]
[68,null,"右侧膝关节正侧位","不含胶片","用于膝关节病变的检查。",110,77]
[69,null,"右侧腕关节正侧位","不含胶片","用于腕关节病变的检查。",110,77]
[70,null,"胸透","不含胶片","主要检查心肺疾患。",110,77]
[71,null,"节育环透视","不含胶片","用于检查节育环形态及位置。",9,6.3]
[72,null,"颈椎正位","不含胶片","检查有无颈椎病、骨质增生、退行性变等。",60,42]
[73,null,"颈椎侧斜位","不含胶片","检查有无颈椎病、骨质增生、退行性变等。",110,77]
[74,null,"腰椎正位","不含胶片","检查有无腰椎间盆突出、骨质增生、退行性变等。",60,42]
[75,null,"骨盆正位","不含胶片","用于骨盆病变 的检查。",60,42]
[76,null,"胸椎侧位","不含胶片","用于胸椎变的检查。",60,42]
[77,null,"胸椎正侧位","不含胶片","用于胸椎变的检查。    ",110,77]
[78,null,"左侧肩关节正位","不含胶片","用于肩关节病变的检查。",60,42]
[79,null,"右侧肩关节正位","不含胶片","用于肩关节病变的检查。",60,42]
[80,null,"左侧踝关节正侧位","不含胶片","用于踝关节病变的检查。",60,42]
[81,null,"右侧踝关节正侧位","不含胶片","用于踝关节病变的检查。",60,42]
[82,null,"左足背正斜位","不含胶片","用于足背病变的检查。",110,77]
[83,null,"右足背正斜位","不含胶片","用于足背病变的检查。",110,77]
[84,null,"骶尾椎侧位","不含胶片","用于骶尾椎病变的检查。",60,42]
[85,null,"双手正位","不含胶片","用于双手病变的检查。",110,77]
[86,null,"左侧髋关节正位","不含胶片","用于髋关节病变的检查。",60,42]
[87,null,"右侧髋关节正位","不含胶片","用于髋关节病变的检查。",60,42]
[88,null,"左侧股骨正侧位","不含胶片","用于股骨病变的检查。",110,77]
[89,null,"右侧股骨正侧位","不含胶片","用于股骨病变的检查。",110,77]
[90,null,"左侧胫腓骨正侧位","不含胶片","用于胫腓骨病变的检查。",110,77]
[91,null,"右侧胫腓骨正侧位","不含胶片","用于胫腓骨病变的检查。",110,77]
[92,null,"左侧膝关节侧位","不含胶片","用于膝关节病变的检查。",60,42]
[93,null,"右侧膝关节侧位","不含胶片","用于膝关节病变的检查。",60,42]
[]
["注意事项：1、抽血需要空腹进行。\n          2、如果您有晕血现象请提前告知医生。\n          3、做泌尿系彩超需要憋尿进行检查，请抽完血后多喝水。\n         "]
{"$rows_empty":15}
["—70—"]